Organisation Name,Organisation Code,Unique Ref No,Effective Date,Directorate,Supplier Name ,Payment Date,Net amount,Purpose of Spend,"Procurement Classification
(Higher level)","Procurement Classification
(Lower level)",CAPITAL / REVENUE
Walsall Council,http://opendatacommunities.org/id/metropolitan-district-council/walsall ,WC156-1,30.11.2023,"ECONOMY, ENVIRONMENT & COMMUNITIES",1974 RAPPORT LTD,10/11/2023,600.00,6410-External Training,INDIRECT EMPLOYEES,EXTERNAL TRAINING,REVENUE
Walsall Council,http://opendatacommunities.org/id/metropolitan-district-council/walsall ,WC156-2,30.11.2023,CHILDRENS,247 CARS (WILLENHALL) LIMITED,08/11/2023,"1,828.18",1220-Professional Fees & Services,SUPPLIES & SERVICES,SERVICES,REVENUE
Walsall Council,http://opendatacommunities.org/id/metropolitan-district-council/walsall ,WC156-3,30.11.2023,CHILDRENS,247 CARS (WILLENHALL) LIMITED,06/11/2023,"1,850.00",6241-Hire of Vehicle with Driver,TRANSPORT,DIRECT TRANSPORT COSTS,REVENUE
Walsall Council,http://opendatacommunities.org/id/metropolitan-district-council/walsall ,WC156-4,30.11.2023,CHILDRENS,247 CARS (WILLENHALL) LIMITED,06/11/2023,"1,850.00",6241-Hire of Vehicle with Driver,TRANSPORT,DIRECT TRANSPORT COSTS,REVENUE
Walsall Council,http://opendatacommunities.org/id/metropolitan-district-council/walsall ,WC156-5,30.11.2023,CHILDRENS,247 CARS (WILLENHALL) LIMITED,06/11/2023,"2,840.00",6241-Hire of Vehicle with Driver,TRANSPORT,DIRECT TRANSPORT COSTS,REVENUE
Walsall Council,http://opendatacommunities.org/id/metropolitan-district-council/walsall ,WC156-6,30.11.2023,CHILDRENS,247 CARS (WILLENHALL) LIMITED,06/11/2023,"2,400.00",6241-Hire of Vehicle with Driver,TRANSPORT,DIRECT TRANSPORT COSTS,REVENUE
Walsall Council,http://opendatacommunities.org/id/metropolitan-district-council/walsall ,WC156-7,30.11.2023,CHILDRENS,247 CARS (WILLENHALL) LIMITED,06/11/2023,"2,400.60",6241-Hire of Vehicle with Driver,TRANSPORT,DIRECT TRANSPORT COSTS,REVENUE
Walsall Council,http://opendatacommunities.org/id/metropolitan-district-council/walsall ,WC156-8,30.11.2023,CHILDRENS,247 CARS (WILLENHALL) LIMITED,06/11/2023,"3,316.60",6241-Hire of Vehicle with Driver,TRANSPORT,DIRECT TRANSPORT COSTS,REVENUE
Walsall Council,http://opendatacommunities.org/id/metropolitan-district-council/walsall ,WC156-9,30.11.2023,CHILDRENS,247 CARS (WILLENHALL) LIMITED,06/11/2023,"3,621.40",6241-Hire of Vehicle with Driver,TRANSPORT,DIRECT TRANSPORT COSTS,REVENUE
Walsall Council,http://opendatacommunities.org/id/metropolitan-district-council/walsall ,WC156-10,30.11.2023,CHILDRENS,247 CARS (WILLENHALL) LIMITED,06/11/2023,"1,330.00",6241-Hire of Vehicle with Driver,TRANSPORT,DIRECT TRANSPORT COSTS,REVENUE
Walsall Council,http://opendatacommunities.org/id/metropolitan-district-council/walsall ,WC156-11,30.11.2023,CHILDRENS,247 CARS (WILLENHALL) LIMITED,06/11/2023,"2,556.00",6241-Hire of Vehicle with Driver,TRANSPORT,DIRECT TRANSPORT COSTS,REVENUE
Walsall Council,http://opendatacommunities.org/id/metropolitan-district-council/walsall ,WC156-12,30.11.2023,CHILDRENS,247 CARS (WILLENHALL) LIMITED,06/11/2023,"2,556.00",6241-Hire of Vehicle with Driver,TRANSPORT,DIRECT TRANSPORT COSTS,REVENUE
Walsall Council,http://opendatacommunities.org/id/metropolitan-district-council/walsall ,WC156-13,30.11.2023,CHILDRENS,247 CARS (WILLENHALL) LIMITED,06/11/2023,"2,272.00",6241-Hire of Vehicle with Driver,TRANSPORT,DIRECT TRANSPORT COSTS,REVENUE
Walsall Council,http://opendatacommunities.org/id/metropolitan-district-council/walsall ,WC156-14,30.11.2023,CHILDRENS,247 CARS (WILLENHALL) LIMITED,06/11/2023,"2,556.00",6241-Hire of Vehicle with Driver,TRANSPORT,DIRECT TRANSPORT COSTS,REVENUE
Walsall Council,http://opendatacommunities.org/id/metropolitan-district-council/walsall ,WC156-15,30.11.2023,CHILDRENS,247 CARS (WILLENHALL) LIMITED,06/11/2023,"1,600.00",6241-Hire of Vehicle with Driver,TRANSPORT,DIRECT TRANSPORT COSTS,REVENUE
Walsall Council,http://opendatacommunities.org/id/metropolitan-district-council/walsall ,WC156-16,30.11.2023,CHILDRENS,247 CARS (WILLENHALL) LIMITED,06/11/2023,"1,873.50",6241-Hire of Vehicle with Driver,TRANSPORT,DIRECT TRANSPORT COSTS,REVENUE
Walsall Council,http://opendatacommunities.org/id/metropolitan-district-council/walsall ,WC156-17,30.11.2023,CHILDRENS,247 CARS (WILLENHALL) LIMITED,06/11/2023,"1,561.78",6241-Hire of Vehicle with Driver,TRANSPORT,DIRECT TRANSPORT COSTS,REVENUE
Walsall Council,http://opendatacommunities.org/id/metropolitan-district-council/walsall ,WC156-18,30.11.2023,CHILDRENS,247 CARS (WILLENHALL) LIMITED,06/11/2023,"2,885.00",6241-Hire of Vehicle with Driver,TRANSPORT,DIRECT TRANSPORT COSTS,REVENUE
Walsall Council,http://opendatacommunities.org/id/metropolitan-district-council/walsall ,WC156-19,30.11.2023,CHILDRENS,247 CARS (WILLENHALL) LIMITED,06/11/2023,"2,602.60",6241-Hire of Vehicle with Driver,TRANSPORT,DIRECT TRANSPORT COSTS,REVENUE
Walsall Council,http://opendatacommunities.org/id/metropolitan-district-council/walsall ,WC156-20,30.11.2023,CHILDRENS,247 CARS (WILLENHALL) LIMITED,06/11/2023,"2,469.25",6241-Hire of Vehicle with Driver,TRANSPORT,DIRECT TRANSPORT COSTS,REVENUE
Walsall Council,http://opendatacommunities.org/id/metropolitan-district-council/walsall ,WC156-21,30.11.2023,CHILDRENS,247 CARS (WILLENHALL) LIMITED,06/11/2023,848.16,6241-Hire of Vehicle with Driver,TRANSPORT,DIRECT TRANSPORT COSTS,REVENUE
Walsall Council,http://opendatacommunities.org/id/metropolitan-district-council/walsall ,WC156-22,30.11.2023,CHILDRENS,247 CARS (WILLENHALL) LIMITED,06/11/2023,"2,437.00",6241-Hire of Vehicle with Driver,TRANSPORT,DIRECT TRANSPORT COSTS,REVENUE
Walsall Council,http://opendatacommunities.org/id/metropolitan-district-council/walsall ,WC156-23,30.11.2023,CHILDRENS,247 CARS (WILLENHALL) LIMITED,06/11/2023,"2,272.00",6241-Hire of Vehicle with Driver,TRANSPORT,DIRECT TRANSPORT COSTS,REVENUE
Walsall Council,http://opendatacommunities.org/id/metropolitan-district-council/walsall ,WC156-24,30.11.2023,CHILDRENS,247 CARS (WILLENHALL) LIMITED,06/11/2023,"2,556.00",6241-Hire of Vehicle with Driver,TRANSPORT,DIRECT TRANSPORT COSTS,REVENUE
Walsall Council,http://opendatacommunities.org/id/metropolitan-district-council/walsall ,WC156-25,30.11.2023,CHILDRENS,247 CARS (WILLENHALL) LIMITED,06/11/2023,"2,556.00",6241-Hire of Vehicle with Driver,TRANSPORT,DIRECT TRANSPORT COSTS,REVENUE
Walsall Council,http://opendatacommunities.org/id/metropolitan-district-council/walsall ,WC156-26,30.11.2023,CHILDRENS,247 CARS (WILLENHALL) LIMITED,06/11/2023,"1,491.60",6241-Hire of Vehicle with Driver,TRANSPORT,DIRECT TRANSPORT COSTS,REVENUE
Walsall Council,http://opendatacommunities.org/id/metropolitan-district-council/walsall ,WC156-27,30.11.2023,CHILDRENS,247 CARS (WILLENHALL) LIMITED,06/11/2023,961.20,6241-Hire of Vehicle with Driver,TRANSPORT,DIRECT TRANSPORT COSTS,REVENUE
Walsall Council,http://opendatacommunities.org/id/metropolitan-district-council/walsall ,WC156-28,30.11.2023,CHILDRENS,247 CARS (WILLENHALL) LIMITED,06/11/2023,"2,720.00",6241-Hire of Vehicle with Driver,TRANSPORT,DIRECT TRANSPORT COSTS,REVENUE
Walsall Council,http://opendatacommunities.org/id/metropolitan-district-council/walsall ,WC156-29,30.11.2023,CHILDRENS,247 CARS (WILLENHALL) LIMITED,06/11/2023,"2,554.00",6241-Hire of Vehicle with Driver,TRANSPORT,DIRECT TRANSPORT COSTS,REVENUE
Walsall Council,http://opendatacommunities.org/id/metropolitan-district-council/walsall ,WC156-30,30.11.2023,CHILDRENS,247 CARS (WILLENHALL) LIMITED,06/11/2023,"1,850.00",6241-Hire of Vehicle with Driver,TRANSPORT,DIRECT TRANSPORT COSTS,REVENUE
Walsall Council,http://opendatacommunities.org/id/metropolitan-district-council/walsall ,WC156-31,30.11.2023,CHILDRENS,247 CARS (WILLENHALL) LIMITED,06/11/2023,"1,850.00",6241-Hire of Vehicle with Driver,TRANSPORT,DIRECT TRANSPORT COSTS,REVENUE
Walsall Council,http://opendatacommunities.org/id/metropolitan-district-council/walsall ,WC156-32,30.11.2023,CHILDRENS,247 CARS (WILLENHALL) LIMITED,06/11/2023,"2,272.00",6241-Hire of Vehicle with Driver,TRANSPORT,DIRECT TRANSPORT COSTS,REVENUE
Walsall Council,http://opendatacommunities.org/id/metropolitan-district-council/walsall ,WC156-33,30.11.2023,CHILDRENS,247 CARS (WILLENHALL) LIMITED,06/11/2023,"2,114.60",6241-Hire of Vehicle with Driver,TRANSPORT,DIRECT TRANSPORT COSTS,REVENUE
Walsall Council,http://opendatacommunities.org/id/metropolitan-district-council/walsall ,WC156-34,30.11.2023,CHILDRENS,247 CARS (WILLENHALL) LIMITED,06/11/2023,"1,892.00",6241-Hire of Vehicle with Driver,TRANSPORT,DIRECT TRANSPORT COSTS,REVENUE
Walsall Council,http://opendatacommunities.org/id/metropolitan-district-council/walsall ,WC156-35,30.11.2023,CHILDRENS,247 CARS (WILLENHALL) LIMITED,06/11/2023,"-1,252.55",6241-Hire of Vehicle with Driver,TRANSPORT,DIRECT TRANSPORT COSTS,REVENUE
Walsall Council,http://opendatacommunities.org/id/metropolitan-district-council/walsall ,WC156-36,30.11.2023,CHILDRENS,247 CARS (WILLENHALL) LIMITED,06/11/2023,"2,191.60",6241-Hire of Vehicle with Driver,TRANSPORT,DIRECT TRANSPORT COSTS,REVENUE
Walsall Council,http://opendatacommunities.org/id/metropolitan-district-council/walsall ,WC156-37,30.11.2023,CHILDRENS,247 CARS (WILLENHALL) LIMITED,06/11/2023,"3,238.15",6241-Hire of Vehicle with Driver,TRANSPORT,DIRECT TRANSPORT COSTS,REVENUE
Walsall Council,http://opendatacommunities.org/id/metropolitan-district-council/walsall ,WC156-38,30.11.2023,CHILDRENS,247 CARS (WILLENHALL) LIMITED,06/11/2023,"1,780.00",6241-Hire of Vehicle with Driver,TRANSPORT,DIRECT TRANSPORT COSTS,REVENUE
Walsall Council,http://opendatacommunities.org/id/metropolitan-district-council/walsall ,WC156-39,30.11.2023,CHILDRENS,247 CARS (WILLENHALL) LIMITED,06/11/2023,"1,519.20",6241-Hire of Vehicle with Driver,TRANSPORT,DIRECT TRANSPORT COSTS,REVENUE
Walsall Council,http://opendatacommunities.org/id/metropolitan-district-council/walsall ,WC156-40,30.11.2023,CHILDRENS,247 CARS (WILLENHALL) LIMITED,06/11/2023,"1,462.64",6241-Hire of Vehicle with Driver,TRANSPORT,DIRECT TRANSPORT COSTS,REVENUE
Walsall Council,http://opendatacommunities.org/id/metropolitan-district-council/walsall ,WC156-41,30.11.2023,CHILDRENS,247 CARS (WILLENHALL) LIMITED,06/11/2023,"2,840.00",6241-Hire of Vehicle with Driver,TRANSPORT,DIRECT TRANSPORT COSTS,REVENUE
Walsall Council,http://opendatacommunities.org/id/metropolitan-district-council/walsall ,WC156-42,30.11.2023,CHILDRENS,247 CARS (WILLENHALL) LIMITED,06/11/2023,"2,140.00",6241-Hire of Vehicle with Driver,TRANSPORT,DIRECT TRANSPORT COSTS,REVENUE
Walsall Council,http://opendatacommunities.org/id/metropolitan-district-council/walsall ,WC156-43,30.11.2023,CHILDRENS,247 CARS (WILLENHALL) LIMITED,06/11/2023,"2,060.00",6241-Hire of Vehicle with Driver,TRANSPORT,DIRECT TRANSPORT COSTS,REVENUE
Walsall Council,http://opendatacommunities.org/id/metropolitan-district-council/walsall ,WC156-44,30.11.2023,CHILDRENS,247 CARS (WILLENHALL) LIMITED,06/11/2023,"1,690.00",6241-Hire of Vehicle with Driver,TRANSPORT,DIRECT TRANSPORT COSTS,REVENUE
Walsall Council,http://opendatacommunities.org/id/metropolitan-district-council/walsall ,WC156-45,30.11.2023,CHILDRENS,247 CARS (WILLENHALL) LIMITED,06/11/2023,"1,481.60",6241-Hire of Vehicle with Driver,TRANSPORT,DIRECT TRANSPORT COSTS,REVENUE
Walsall Council,http://opendatacommunities.org/id/metropolitan-district-council/walsall ,WC156-46,30.11.2023,CHILDRENS,247 CARS (WILLENHALL) LIMITED,06/11/2023,393.30,6241-Hire of Vehicle with Driver,TRANSPORT,DIRECT TRANSPORT COSTS,REVENUE
Walsall Council,http://opendatacommunities.org/id/metropolitan-district-council/walsall ,WC156-47,30.11.2023,RESOURCES AND TRANSFORMATION,3 SPIRIT UK TRAINING & CONSULTANCY,08/11/2023,700.00,6625-Consultant Fees,SUPPLIES & SERVICES,SERVICES,REVENUE
Walsall Council,http://opendatacommunities.org/id/metropolitan-district-council/walsall ,WC156-48,30.11.2023,CHILDRENS,5 CARE SERVICES LTD,03/11/2023,288.00,6220-Professional Fees & Services,SUPPLIES & SERVICES,SERVICES,REVENUE
Walsall Council,http://opendatacommunities.org/id/metropolitan-district-council/walsall ,WC156-49,30.11.2023,CHILDRENS,5 CARE SERVICES LTD,03/11/2023,288.00,6220-Professional Fees & Services,SUPPLIES & SERVICES,SERVICES,REVENUE
Walsall Council,http://opendatacommunities.org/id/metropolitan-district-council/walsall ,WC156-50,30.11.2023,CHILDRENS,5 CARE SERVICES LTD,03/11/2023,702.00,6220-Professional Fees & Services,SUPPLIES & SERVICES,SERVICES,REVENUE
Walsall Council,http://opendatacommunities.org/id/metropolitan-district-council/walsall ,WC156-51,30.11.2023,CHILDRENS,5 CARE SERVICES LTD,03/11/2023,"2,520.00",6220-Professional Fees & Services,SUPPLIES & SERVICES,SERVICES,REVENUE
Walsall Council,http://opendatacommunities.org/id/metropolitan-district-council/walsall ,WC156-52,30.11.2023,CHILDRENS,5 CARE SERVICES LTD,21/11/2023,418.50,6220-Professional Fees & Services,SUPPLIES & SERVICES,SERVICES,REVENUE
Walsall Council,http://opendatacommunities.org/id/metropolitan-district-council/walsall ,WC156-53,30.11.2023,CHILDRENS,5 CARE SERVICES LTD,21/11/2023,486.00,6220-Professional Fees & Services,SUPPLIES & SERVICES,SERVICES,REVENUE
Walsall Council,http://opendatacommunities.org/id/metropolitan-district-council/walsall ,WC156-54,30.11.2023,CHILDRENS,5 CARE SERVICES LTD,21/11/2023,"2,502.00",6220-Professional Fees & Services,SUPPLIES & SERVICES,SERVICES,REVENUE
Walsall Council,http://opendatacommunities.org/id/metropolitan-district-council/walsall ,WC156-55,30.11.2023,ADULT SOCIAL CARE,5 CARE SERVICES LTD,06/11/2023,378.00,6541-Domiciliary Care,THIRD PARTY PAYMENTS,PRIVATE CONTRACTOR,REVENUE
Walsall Council,http://opendatacommunities.org/id/metropolitan-district-council/walsall ,WC156-56,30.11.2023,ADULT SOCIAL CARE,5 CARE SERVICES LTD,06/11/2023,567.00,6541-Domiciliary Care,THIRD PARTY PAYMENTS,PRIVATE CONTRACTOR,REVENUE
Walsall Council,http://opendatacommunities.org/id/metropolitan-district-council/walsall ,WC156-57,30.11.2023,ADULT SOCIAL CARE,5 CARE SERVICES LTD,06/11/2023,"1,008.00",6541-Domiciliary Care,THIRD PARTY PAYMENTS,PRIVATE CONTRACTOR,REVENUE
Walsall Council,http://opendatacommunities.org/id/metropolitan-district-council/walsall ,WC156-58,30.11.2023,ADULT SOCIAL CARE,5 CARE SERVICES LTD,06/11/2023,774.00,6541-Domiciliary Care,THIRD PARTY PAYMENTS,PRIVATE CONTRACTOR,REVENUE
Walsall Council,http://opendatacommunities.org/id/metropolitan-district-council/walsall ,WC156-59,30.11.2023,ADULT SOCIAL CARE,5 CARE SERVICES LTD,06/11/2023,846.00,6541-Domiciliary Care,THIRD PARTY PAYMENTS,PRIVATE CONTRACTOR,REVENUE
Walsall Council,http://opendatacommunities.org/id/metropolitan-district-council/walsall ,WC156-60,30.11.2023,ADULT SOCIAL CARE,5 CARE SERVICES LTD,06/11/2023,328.50,6541-Domiciliary Care,THIRD PARTY PAYMENTS,PRIVATE CONTRACTOR,REVENUE
Walsall Council,http://opendatacommunities.org/id/metropolitan-district-council/walsall ,WC156-61,30.11.2023,ADULT SOCIAL CARE,5 CARE SERVICES LTD,06/11/2023,378.00,6541-Domiciliary Care,THIRD PARTY PAYMENTS,PRIVATE CONTRACTOR,REVENUE
Walsall Council,http://opendatacommunities.org/id/metropolitan-district-council/walsall ,WC156-62,30.11.2023,ADULT SOCIAL CARE,5 CARE SERVICES LTD,06/11/2023,567.00,6541-Domiciliary Care,THIRD PARTY PAYMENTS,PRIVATE CONTRACTOR,REVENUE
Walsall Council,http://opendatacommunities.org/id/metropolitan-district-council/walsall ,WC156-63,30.11.2023,ADULT SOCIAL CARE,5 CARE SERVICES LTD,06/11/2023,283.50,6541-Domiciliary Care,THIRD PARTY PAYMENTS,PRIVATE CONTRACTOR,REVENUE
Walsall Council,http://opendatacommunities.org/id/metropolitan-district-council/walsall ,WC156-64,30.11.2023,ADULT SOCIAL CARE,5 CARE SERVICES LTD,06/11/2023,"1,386.00",6541-Domiciliary Care,THIRD PARTY PAYMENTS,PRIVATE CONTRACTOR,REVENUE
Walsall Council,http://opendatacommunities.org/id/metropolitan-district-council/walsall ,WC156-65,30.11.2023,ADULT SOCIAL CARE,5 CARE SERVICES LTD,06/11/2023,324.00,6541-Domiciliary Care,THIRD PARTY PAYMENTS,PRIVATE CONTRACTOR,REVENUE
Walsall Council,http://opendatacommunities.org/id/metropolitan-district-council/walsall ,WC156-66,30.11.2023,ADULT SOCIAL CARE,5 CARE SERVICES LTD,06/11/2023,651.00,6541-Domiciliary Care,THIRD PARTY PAYMENTS,PRIVATE CONTRACTOR,REVENUE
Walsall Council,http://opendatacommunities.org/id/metropolitan-district-council/walsall ,WC156-67,30.11.2023,ADULT SOCIAL CARE,5 CARE SERVICES LTD,06/11/2023,-675.00,6541-Domiciliary Care,THIRD PARTY PAYMENTS,PRIVATE CONTRACTOR,REVENUE
Walsall Council,http://opendatacommunities.org/id/metropolitan-district-council/walsall ,WC156-68,30.11.2023,ADULT SOCIAL CARE,5 CARE SERVICES LTD,06/11/2023,630.00,6541-Domiciliary Care,THIRD PARTY PAYMENTS,PRIVATE CONTRACTOR,REVENUE
Walsall Council,http://opendatacommunities.org/id/metropolitan-district-council/walsall ,WC156-69,30.11.2023,ADULT SOCIAL CARE,5 CARE SERVICES LTD,06/11/2023,567.00,6541-Domiciliary Care,THIRD PARTY PAYMENTS,PRIVATE CONTRACTOR,REVENUE
Walsall Council,http://opendatacommunities.org/id/metropolitan-district-council/walsall ,WC156-70,30.11.2023,ADULT SOCIAL CARE,5 CARE SERVICES LTD,06/11/2023,567.00,6541-Domiciliary Care,THIRD PARTY PAYMENTS,PRIVATE CONTRACTOR,REVENUE
Walsall Council,http://opendatacommunities.org/id/metropolitan-district-council/walsall ,WC156-71,30.11.2023,ADULT SOCIAL CARE,5 CARE SERVICES LTD,06/11/2023,283.50,6541-Domiciliary Care,THIRD PARTY PAYMENTS,PRIVATE CONTRACTOR,REVENUE
Walsall Council,http://opendatacommunities.org/id/metropolitan-district-council/walsall ,WC156-72,30.11.2023,ADULT SOCIAL CARE,5 CARE SERVICES LTD,06/11/2023,819.00,6541-Domiciliary Care,THIRD PARTY PAYMENTS,PRIVATE CONTRACTOR,REVENUE
Walsall Council,http://opendatacommunities.org/id/metropolitan-district-council/walsall ,WC156-73,30.11.2023,ADULT SOCIAL CARE,5 CARE SERVICES LTD,06/11/2023,283.50,6541-Domiciliary Care,THIRD PARTY PAYMENTS,PRIVATE CONTRACTOR,REVENUE
Walsall Council,http://opendatacommunities.org/id/metropolitan-district-council/walsall ,WC156-74,30.11.2023,ADULT SOCIAL CARE,5 CARE SERVICES LTD,06/11/2023,432.00,6541-Domiciliary Care,THIRD PARTY PAYMENTS,PRIVATE CONTRACTOR,REVENUE
Walsall Council,http://opendatacommunities.org/id/metropolitan-district-council/walsall ,WC156-75,30.11.2023,ADULT SOCIAL CARE,5 CARE SERVICES LTD,06/11/2023,486.00,6541-Domiciliary Care,THIRD PARTY PAYMENTS,PRIVATE CONTRACTOR,REVENUE
Walsall Council,http://opendatacommunities.org/id/metropolitan-district-council/walsall ,WC156-76,30.11.2023,ADULT SOCIAL CARE,5 CARE SERVICES LTD,06/11/2023,567.00,6541-Domiciliary Care,THIRD PARTY PAYMENTS,PRIVATE CONTRACTOR,REVENUE
Walsall Council,http://opendatacommunities.org/id/metropolitan-district-council/walsall ,WC156-77,30.11.2023,ADULT SOCIAL CARE,5 CARE SERVICES LTD,06/11/2023,525.00,6541-Domiciliary Care,THIRD PARTY PAYMENTS,PRIVATE CONTRACTOR,REVENUE
Walsall Council,http://opendatacommunities.org/id/metropolitan-district-council/walsall ,WC156-78,30.11.2023,ADULT SOCIAL CARE,5 CARE SERVICES LTD,06/11/2023,256.50,6541-Domiciliary Care,THIRD PARTY PAYMENTS,PRIVATE CONTRACTOR,REVENUE
Walsall Council,http://opendatacommunities.org/id/metropolitan-district-council/walsall ,WC156-79,30.11.2023,ADULT SOCIAL CARE,5 CARE SERVICES LTD,06/11/2023,294.00,6541-Domiciliary Care,THIRD PARTY PAYMENTS,PRIVATE CONTRACTOR,REVENUE
Walsall Council,http://opendatacommunities.org/id/metropolitan-district-council/walsall ,WC156-80,30.11.2023,ADULT SOCIAL CARE,5 CARE SERVICES LTD,06/11/2023,315.00,6541-Domiciliary Care,THIRD PARTY PAYMENTS,PRIVATE CONTRACTOR,REVENUE
Walsall Council,http://opendatacommunities.org/id/metropolitan-district-council/walsall ,WC156-81,30.11.2023,ADULT SOCIAL CARE,5 CARE SERVICES LTD,06/11/2023,567.00,6541-Domiciliary Care,THIRD PARTY PAYMENTS,PRIVATE CONTRACTOR,REVENUE
Walsall Council,http://opendatacommunities.org/id/metropolitan-district-council/walsall ,WC156-82,30.11.2023,ADULT SOCIAL CARE,5 CARE SERVICES LTD,06/11/2023,"1,152.00",6541-Domiciliary Care,THIRD PARTY PAYMENTS,PRIVATE CONTRACTOR,REVENUE
Walsall Council,http://opendatacommunities.org/id/metropolitan-district-council/walsall ,WC156-83,30.11.2023,ADULT SOCIAL CARE,5 CARE SERVICES LTD,06/11/2023,567.00,6541-Domiciliary Care,THIRD PARTY PAYMENTS,PRIVATE CONTRACTOR,REVENUE
Walsall Council,http://opendatacommunities.org/id/metropolitan-district-council/walsall ,WC156-84,30.11.2023,ADULT SOCIAL CARE,5 CARE SERVICES LTD,06/11/2023,504.00,6541-Domiciliary Care,THIRD PARTY PAYMENTS,PRIVATE CONTRACTOR,REVENUE
Walsall Council,http://opendatacommunities.org/id/metropolitan-district-council/walsall ,WC156-85,30.11.2023,ADULT SOCIAL CARE,5 CARE SERVICES LTD,06/11/2023,666.00,6541-Domiciliary Care,THIRD PARTY PAYMENTS,PRIVATE CONTRACTOR,REVENUE
Walsall Council,http://opendatacommunities.org/id/metropolitan-district-council/walsall ,WC156-86,30.11.2023,ADULT SOCIAL CARE,5 CARE SERVICES LTD,06/11/2023,567.00,6541-Domiciliary Care,THIRD PARTY PAYMENTS,PRIVATE CONTRACTOR,REVENUE
Walsall Council,http://opendatacommunities.org/id/metropolitan-district-council/walsall ,WC156-87,30.11.2023,ADULT SOCIAL CARE,5 CARE SERVICES LTD,06/11/2023,"1,053.00",6541-Domiciliary Care,THIRD PARTY PAYMENTS,PRIVATE CONTRACTOR,REVENUE
Walsall Council,http://opendatacommunities.org/id/metropolitan-district-council/walsall ,WC156-88,30.11.2023,ADULT SOCIAL CARE,5 CARE SERVICES LTD,06/11/2023,774.00,6541-Domiciliary Care,THIRD PARTY PAYMENTS,PRIVATE CONTRACTOR,REVENUE
Walsall Council,http://opendatacommunities.org/id/metropolitan-district-council/walsall ,WC156-89,30.11.2023,ADULT SOCIAL CARE,5 CARE SERVICES LTD,06/11/2023,283.50,6541-Domiciliary Care,THIRD PARTY PAYMENTS,PRIVATE CONTRACTOR,REVENUE
Walsall Council,http://opendatacommunities.org/id/metropolitan-district-council/walsall ,WC156-90,30.11.2023,ADULT SOCIAL CARE,5 CARE SERVICES LTD,06/11/2023,283.50,6541-Domiciliary Care,THIRD PARTY PAYMENTS,PRIVATE CONTRACTOR,REVENUE
Walsall Council,http://opendatacommunities.org/id/metropolitan-district-council/walsall ,WC156-91,30.11.2023,ADULT SOCIAL CARE,5 CARE SERVICES LTD,06/11/2023,864.00,6541-Domiciliary Care,THIRD PARTY PAYMENTS,PRIVATE CONTRACTOR,REVENUE
Walsall Council,http://opendatacommunities.org/id/metropolitan-district-council/walsall ,WC156-92,30.11.2023,ADULT SOCIAL CARE,5 CARE SERVICES LTD,06/11/2023,756.00,6541-Domiciliary Care,THIRD PARTY PAYMENTS,PRIVATE CONTRACTOR,REVENUE
Walsall Council,http://opendatacommunities.org/id/metropolitan-district-council/walsall ,WC156-93,30.11.2023,ADULT SOCIAL CARE,5 CARE SERVICES LTD,06/11/2023,328.50,6541-Domiciliary Care,THIRD PARTY PAYMENTS,PRIVATE CONTRACTOR,REVENUE
Walsall Council,http://opendatacommunities.org/id/metropolitan-district-council/walsall ,WC156-94,30.11.2023,ADULT SOCIAL CARE,5 CARE SERVICES LTD,06/11/2023,567.00,6541-Domiciliary Care,THIRD PARTY PAYMENTS,PRIVATE CONTRACTOR,REVENUE
Walsall Council,http://opendatacommunities.org/id/metropolitan-district-council/walsall ,WC156-95,30.11.2023,ADULT SOCIAL CARE,5 CARE SERVICES LTD,06/11/2023,504.00,6541-Domiciliary Care,THIRD PARTY PAYMENTS,PRIVATE CONTRACTOR,REVENUE
Walsall Council,http://opendatacommunities.org/id/metropolitan-district-council/walsall ,WC156-96,30.11.2023,ADULT SOCIAL CARE,5 CARE SERVICES LTD,06/11/2023,"1,386.00",6541-Domiciliary Care,THIRD PARTY PAYMENTS,PRIVATE CONTRACTOR,REVENUE
Walsall Council,http://opendatacommunities.org/id/metropolitan-district-council/walsall ,WC156-97,30.11.2023,ADULT SOCIAL CARE,5 CARE SERVICES LTD,06/11/2023,324.00,6541-Domiciliary Care,THIRD PARTY PAYMENTS,PRIVATE CONTRACTOR,REVENUE
Walsall Council,http://opendatacommunities.org/id/metropolitan-district-council/walsall ,WC156-98,30.11.2023,ADULT SOCIAL CARE,5 CARE SERVICES LTD,06/11/2023,651.00,6541-Domiciliary Care,THIRD PARTY PAYMENTS,PRIVATE CONTRACTOR,REVENUE
Walsall Council,http://opendatacommunities.org/id/metropolitan-district-council/walsall ,WC156-99,30.11.2023,ADULT SOCIAL CARE,5 CARE SERVICES LTD,06/11/2023,630.00,6541-Domiciliary Care,THIRD PARTY PAYMENTS,PRIVATE CONTRACTOR,REVENUE
Walsall Council,http://opendatacommunities.org/id/metropolitan-district-council/walsall ,WC156-100,30.11.2023,ADULT SOCIAL CARE,5 CARE SERVICES LTD,06/11/2023,567.00,6541-Domiciliary Care,THIRD PARTY PAYMENTS,PRIVATE CONTRACTOR,REVENUE
Walsall Council,http://opendatacommunities.org/id/metropolitan-district-council/walsall ,WC156-101,30.11.2023,ADULT SOCIAL CARE,5 CARE SERVICES LTD,06/11/2023,567.00,6541-Domiciliary Care,THIRD PARTY PAYMENTS,PRIVATE CONTRACTOR,REVENUE
Walsall Council,http://opendatacommunities.org/id/metropolitan-district-council/walsall ,WC156-102,30.11.2023,ADULT SOCIAL CARE,5 CARE SERVICES LTD,06/11/2023,738.00,6541-Domiciliary Care,THIRD PARTY PAYMENTS,PRIVATE CONTRACTOR,REVENUE
Walsall Council,http://opendatacommunities.org/id/metropolitan-district-council/walsall ,WC156-103,30.11.2023,ADULT SOCIAL CARE,5 CARE SERVICES LTD,06/11/2023,567.00,6541-Domiciliary Care,THIRD PARTY PAYMENTS,PRIVATE CONTRACTOR,REVENUE
Walsall Council,http://opendatacommunities.org/id/metropolitan-district-council/walsall ,WC156-104,30.11.2023,ADULT SOCIAL CARE,5 CARE SERVICES LTD,06/11/2023,283.50,6541-Domiciliary Care,THIRD PARTY PAYMENTS,PRIVATE CONTRACTOR,REVENUE
Walsall Council,http://opendatacommunities.org/id/metropolitan-district-council/walsall ,WC156-105,30.11.2023,ADULT SOCIAL CARE,5 CARE SERVICES LTD,06/11/2023,819.00,6541-Domiciliary Care,THIRD PARTY PAYMENTS,PRIVATE CONTRACTOR,REVENUE
Walsall Council,http://opendatacommunities.org/id/metropolitan-district-council/walsall ,WC156-106,30.11.2023,ADULT SOCIAL CARE,5 CARE SERVICES LTD,06/11/2023,378.00,6541-Domiciliary Care,THIRD PARTY PAYMENTS,PRIVATE CONTRACTOR,REVENUE
Walsall Council,http://opendatacommunities.org/id/metropolitan-district-council/walsall ,WC156-107,30.11.2023,ADULT SOCIAL CARE,5 CARE SERVICES LTD,06/11/2023,567.00,6541-Domiciliary Care,THIRD PARTY PAYMENTS,PRIVATE CONTRACTOR,REVENUE
Walsall Council,http://opendatacommunities.org/id/metropolitan-district-council/walsall ,WC156-108,30.11.2023,ADULT SOCIAL CARE,5 CARE SERVICES LTD,06/11/2023,"1,008.00",6541-Domiciliary Care,THIRD PARTY PAYMENTS,PRIVATE CONTRACTOR,REVENUE
Walsall Council,http://opendatacommunities.org/id/metropolitan-district-council/walsall ,WC156-109,30.11.2023,ADULT SOCIAL CARE,5 CARE SERVICES LTD,06/11/2023,"1,053.00",6541-Domiciliary Care,THIRD PARTY PAYMENTS,PRIVATE CONTRACTOR,REVENUE
Walsall Council,http://opendatacommunities.org/id/metropolitan-district-council/walsall ,WC156-110,30.11.2023,ADULT SOCIAL CARE,5 CARE SERVICES LTD,06/11/2023,283.50,6541-Domiciliary Care,THIRD PARTY PAYMENTS,PRIVATE CONTRACTOR,REVENUE
Walsall Council,http://opendatacommunities.org/id/metropolitan-district-council/walsall ,WC156-111,30.11.2023,ADULT SOCIAL CARE,5 CARE SERVICES LTD,06/11/2023,567.00,6541-Domiciliary Care,THIRD PARTY PAYMENTS,PRIVATE CONTRACTOR,REVENUE
Walsall Council,http://opendatacommunities.org/id/metropolitan-district-council/walsall ,WC156-112,30.11.2023,ADULT SOCIAL CARE,5 CARE SERVICES LTD,06/11/2023,525.00,6541-Domiciliary Care,THIRD PARTY PAYMENTS,PRIVATE CONTRACTOR,REVENUE
Walsall Council,http://opendatacommunities.org/id/metropolitan-district-council/walsall ,WC156-113,30.11.2023,ADULT SOCIAL CARE,5 CARE SERVICES LTD,06/11/2023,256.50,6541-Domiciliary Care,THIRD PARTY PAYMENTS,PRIVATE CONTRACTOR,REVENUE
Walsall Council,http://opendatacommunities.org/id/metropolitan-district-council/walsall ,WC156-114,30.11.2023,ADULT SOCIAL CARE,5 CARE SERVICES LTD,06/11/2023,378.00,6541-Domiciliary Care,THIRD PARTY PAYMENTS,PRIVATE CONTRACTOR,REVENUE
Walsall Council,http://opendatacommunities.org/id/metropolitan-district-council/walsall ,WC156-115,30.11.2023,ADULT SOCIAL CARE,5 CARE SERVICES LTD,06/11/2023,567.00,6541-Domiciliary Care,THIRD PARTY PAYMENTS,PRIVATE CONTRACTOR,REVENUE
Walsall Council,http://opendatacommunities.org/id/metropolitan-district-council/walsall ,WC156-116,30.11.2023,ADULT SOCIAL CARE,5 CARE SERVICES LTD,06/11/2023,360.00,6541-Domiciliary Care,THIRD PARTY PAYMENTS,PRIVATE CONTRACTOR,REVENUE
Walsall Council,http://opendatacommunities.org/id/metropolitan-district-council/walsall ,WC156-117,30.11.2023,ADULT SOCIAL CARE,5 CARE SERVICES LTD,06/11/2023,486.00,6541-Domiciliary Care,THIRD PARTY PAYMENTS,PRIVATE CONTRACTOR,REVENUE
Walsall Council,http://opendatacommunities.org/id/metropolitan-district-council/walsall ,WC156-118,30.11.2023,ADULT SOCIAL CARE,5 CARE SERVICES LTD,06/11/2023,294.00,6541-Domiciliary Care,THIRD PARTY PAYMENTS,PRIVATE CONTRACTOR,REVENUE
Walsall Council,http://opendatacommunities.org/id/metropolitan-district-council/walsall ,WC156-119,30.11.2023,ADULT SOCIAL CARE,5 CARE SERVICES LTD,06/11/2023,315.00,6541-Domiciliary Care,THIRD PARTY PAYMENTS,PRIVATE CONTRACTOR,REVENUE
Walsall Council,http://opendatacommunities.org/id/metropolitan-district-council/walsall ,WC156-120,30.11.2023,ADULT SOCIAL CARE,5 CARE SERVICES LTD,06/11/2023,567.00,6541-Domiciliary Care,THIRD PARTY PAYMENTS,PRIVATE CONTRACTOR,REVENUE
Walsall Council,http://opendatacommunities.org/id/metropolitan-district-council/walsall ,WC156-121,30.11.2023,ADULT SOCIAL CARE,5 CARE SERVICES LTD,06/11/2023,315.00,6541-Domiciliary Care,THIRD PARTY PAYMENTS,PRIVATE CONTRACTOR,REVENUE
Walsall Council,http://opendatacommunities.org/id/metropolitan-district-council/walsall ,WC156-122,30.11.2023,ADULT SOCIAL CARE,5 CARE SERVICES LTD,15/11/2023,324.00,6554-Professional Services-Priv Contractor & Other Agencies,THIRD PARTY PAYMENTS,PRIVATE CONTRACTOR,REVENUE
Walsall Council,http://opendatacommunities.org/id/metropolitan-district-council/walsall ,WC156-123,30.11.2023,ADULT SOCIAL CARE,5 CARE SERVICES LTD,15/11/2023,"1,575.00",6554-Professional Services-Priv Contractor & Other Agencies,THIRD PARTY PAYMENTS,PRIVATE CONTRACTOR,REVENUE
Walsall Council,http://opendatacommunities.org/id/metropolitan-district-council/walsall ,WC156-124,30.11.2023,ADULT SOCIAL CARE,5 CARE SERVICES LTD,15/11/2023,747.00,6554-Professional Services-Priv Contractor & Other Agencies,THIRD PARTY PAYMENTS,PRIVATE CONTRACTOR,REVENUE
Walsall Council,http://opendatacommunities.org/id/metropolitan-district-council/walsall ,WC156-125,30.11.2023,ADULT SOCIAL CARE,5 CARE SERVICES LTD,21/11/2023,360.00,6541-Domiciliary Care,THIRD PARTY PAYMENTS,PRIVATE CONTRACTOR,REVENUE
Walsall Council,http://opendatacommunities.org/id/metropolitan-district-council/walsall ,WC156-126,30.11.2023,ADULT SOCIAL CARE,5 CARE SERVICES LTD,21/11/2023,378.00,6541-Domiciliary Care,THIRD PARTY PAYMENTS,PRIVATE CONTRACTOR,REVENUE
Walsall Council,http://opendatacommunities.org/id/metropolitan-district-council/walsall ,WC156-127,30.11.2023,ADULT SOCIAL CARE,5 CARE SERVICES LTD,21/11/2023,567.00,6541-Domiciliary Care,THIRD PARTY PAYMENTS,PRIVATE CONTRACTOR,REVENUE
Walsall Council,http://opendatacommunities.org/id/metropolitan-district-council/walsall ,WC156-128,30.11.2023,ADULT SOCIAL CARE,5 CARE SERVICES LTD,21/11/2023,"1,008.00",6541-Domiciliary Care,THIRD PARTY PAYMENTS,PRIVATE CONTRACTOR,REVENUE
Walsall Council,http://opendatacommunities.org/id/metropolitan-district-council/walsall ,WC156-129,30.11.2023,ADULT SOCIAL CARE,5 CARE SERVICES LTD,21/11/2023,756.00,6541-Domiciliary Care,THIRD PARTY PAYMENTS,PRIVATE CONTRACTOR,REVENUE
Walsall Council,http://opendatacommunities.org/id/metropolitan-district-council/walsall ,WC156-130,30.11.2023,ADULT SOCIAL CARE,5 CARE SERVICES LTD,21/11/2023,283.50,6541-Domiciliary Care,THIRD PARTY PAYMENTS,PRIVATE CONTRACTOR,REVENUE
Walsall Council,http://opendatacommunities.org/id/metropolitan-district-council/walsall ,WC156-131,30.11.2023,ADULT SOCIAL CARE,5 CARE SERVICES LTD,21/11/2023,378.00,6541-Domiciliary Care,THIRD PARTY PAYMENTS,PRIVATE CONTRACTOR,REVENUE
Walsall Council,http://opendatacommunities.org/id/metropolitan-district-council/walsall ,WC156-132,30.11.2023,ADULT SOCIAL CARE,5 CARE SERVICES LTD,21/11/2023,567.00,6541-Domiciliary Care,THIRD PARTY PAYMENTS,PRIVATE CONTRACTOR,REVENUE
Walsall Council,http://opendatacommunities.org/id/metropolitan-district-council/walsall ,WC156-133,30.11.2023,ADULT SOCIAL CARE,5 CARE SERVICES LTD,21/11/2023,283.50,6541-Domiciliary Care,THIRD PARTY PAYMENTS,PRIVATE CONTRACTOR,REVENUE
Walsall Council,http://opendatacommunities.org/id/metropolitan-district-council/walsall ,WC156-134,30.11.2023,ADULT SOCIAL CARE,5 CARE SERVICES LTD,21/11/2023,"1,386.00",6541-Domiciliary Care,THIRD PARTY PAYMENTS,PRIVATE CONTRACTOR,REVENUE
Walsall Council,http://opendatacommunities.org/id/metropolitan-district-council/walsall ,WC156-135,30.11.2023,ADULT SOCIAL CARE,5 CARE SERVICES LTD,21/11/2023,324.00,6541-Domiciliary Care,THIRD PARTY PAYMENTS,PRIVATE CONTRACTOR,REVENUE
Walsall Council,http://opendatacommunities.org/id/metropolitan-district-council/walsall ,WC156-136,30.11.2023,ADULT SOCIAL CARE,5 CARE SERVICES LTD,21/11/2023,651.00,6541-Domiciliary Care,THIRD PARTY PAYMENTS,PRIVATE CONTRACTOR,REVENUE
Walsall Council,http://opendatacommunities.org/id/metropolitan-district-council/walsall ,WC156-137,30.11.2023,ADULT SOCIAL CARE,5 CARE SERVICES LTD,21/11/2023,738.00,6541-Domiciliary Care,THIRD PARTY PAYMENTS,PRIVATE CONTRACTOR,REVENUE
Walsall Council,http://opendatacommunities.org/id/metropolitan-district-council/walsall ,WC156-138,30.11.2023,ADULT SOCIAL CARE,5 CARE SERVICES LTD,21/11/2023,567.00,6541-Domiciliary Care,THIRD PARTY PAYMENTS,PRIVATE CONTRACTOR,REVENUE
Walsall Council,http://opendatacommunities.org/id/metropolitan-district-council/walsall ,WC156-139,30.11.2023,ADULT SOCIAL CARE,5 CARE SERVICES LTD,21/11/2023,567.00,6541-Domiciliary Care,THIRD PARTY PAYMENTS,PRIVATE CONTRACTOR,REVENUE
Walsall Council,http://opendatacommunities.org/id/metropolitan-district-council/walsall ,WC156-140,30.11.2023,ADULT SOCIAL CARE,5 CARE SERVICES LTD,21/11/2023,567.00,6541-Domiciliary Care,THIRD PARTY PAYMENTS,PRIVATE CONTRACTOR,REVENUE
Walsall Council,http://opendatacommunities.org/id/metropolitan-district-council/walsall ,WC156-141,30.11.2023,ADULT SOCIAL CARE,5 CARE SERVICES LTD,21/11/2023,283.50,6541-Domiciliary Care,THIRD PARTY PAYMENTS,PRIVATE CONTRACTOR,REVENUE
Walsall Council,http://opendatacommunities.org/id/metropolitan-district-council/walsall ,WC156-142,30.11.2023,ADULT SOCIAL CARE,5 CARE SERVICES LTD,21/11/2023,819.00,6541-Domiciliary Care,THIRD PARTY PAYMENTS,PRIVATE CONTRACTOR,REVENUE
Walsall Council,http://opendatacommunities.org/id/metropolitan-district-council/walsall ,WC156-143,30.11.2023,ADULT SOCIAL CARE,5 CARE SERVICES LTD,21/11/2023,486.00,6541-Domiciliary Care,THIRD PARTY PAYMENTS,PRIVATE CONTRACTOR,REVENUE
Walsall Council,http://opendatacommunities.org/id/metropolitan-district-council/walsall ,WC156-144,30.11.2023,ADULT SOCIAL CARE,5 CARE SERVICES LTD,21/11/2023,567.00,6541-Domiciliary Care,THIRD PARTY PAYMENTS,PRIVATE CONTRACTOR,REVENUE
Walsall Council,http://opendatacommunities.org/id/metropolitan-district-council/walsall ,WC156-145,30.11.2023,ADULT SOCIAL CARE,5 CARE SERVICES LTD,21/11/2023,603.00,6541-Domiciliary Care,THIRD PARTY PAYMENTS,PRIVATE CONTRACTOR,REVENUE
Walsall Council,http://opendatacommunities.org/id/metropolitan-district-council/walsall ,WC156-146,30.11.2023,ADULT SOCIAL CARE,5 CARE SERVICES LTD,21/11/2023,256.50,6541-Domiciliary Care,THIRD PARTY PAYMENTS,PRIVATE CONTRACTOR,REVENUE
Walsall Council,http://opendatacommunities.org/id/metropolitan-district-council/walsall ,WC156-147,30.11.2023,ADULT SOCIAL CARE,5 CARE SERVICES LTD,21/11/2023,294.00,6541-Domiciliary Care,THIRD PARTY PAYMENTS,PRIVATE CONTRACTOR,REVENUE
Walsall Council,http://opendatacommunities.org/id/metropolitan-district-council/walsall ,WC156-148,30.11.2023,ADULT SOCIAL CARE,5 CARE SERVICES LTD,21/11/2023,315.00,6541-Domiciliary Care,THIRD PARTY PAYMENTS,PRIVATE CONTRACTOR,REVENUE
Walsall Council,http://opendatacommunities.org/id/metropolitan-district-council/walsall ,WC156-149,30.11.2023,ADULT SOCIAL CARE,5 CARE SERVICES LTD,21/11/2023,567.00,6541-Domiciliary Care,THIRD PARTY PAYMENTS,PRIVATE CONTRACTOR,REVENUE
Walsall Council,http://opendatacommunities.org/id/metropolitan-district-council/walsall ,WC156-150,30.11.2023,ADULT SOCIAL CARE,5 CARE SERVICES LTD,21/11/2023,504.00,6541-Domiciliary Care,THIRD PARTY PAYMENTS,PRIVATE CONTRACTOR,REVENUE
Walsall Council,http://opendatacommunities.org/id/metropolitan-district-council/walsall ,WC156-151,30.11.2023,ADULT SOCIAL CARE,5 CARE SERVICES LTD,21/11/2023,666.00,6541-Domiciliary Care,THIRD PARTY PAYMENTS,PRIVATE CONTRACTOR,REVENUE
Walsall Council,http://opendatacommunities.org/id/metropolitan-district-council/walsall ,WC156-152,30.11.2023,ADULT SOCIAL CARE,5 CARE SERVICES LTD,21/11/2023,567.00,6541-Domiciliary Care,THIRD PARTY PAYMENTS,PRIVATE CONTRACTOR,REVENUE
Walsall Council,http://opendatacommunities.org/id/metropolitan-district-council/walsall ,WC156-153,30.11.2023,ADULT SOCIAL CARE,5 CARE SERVICES LTD,21/11/2023,405.00,6541-Domiciliary Care,THIRD PARTY PAYMENTS,PRIVATE CONTRACTOR,REVENUE
Walsall Council,http://opendatacommunities.org/id/metropolitan-district-council/walsall ,WC156-154,30.11.2023,ADULT SOCIAL CARE,5 CARE SERVICES LTD,21/11/2023,283.50,6541-Domiciliary Care,THIRD PARTY PAYMENTS,PRIVATE CONTRACTOR,REVENUE
Walsall Council,http://opendatacommunities.org/id/metropolitan-district-council/walsall ,WC156-155,30.11.2023,ADULT SOCIAL CARE,5 CARE SERVICES LTD,21/11/2023,567.00,6541-Domiciliary Care,THIRD PARTY PAYMENTS,PRIVATE CONTRACTOR,REVENUE
Walsall Council,http://opendatacommunities.org/id/metropolitan-district-council/walsall ,WC156-156,30.11.2023,ADULT SOCIAL CARE,5 CARE SERVICES LTD,21/11/2023,283.50,6541-Domiciliary Care,THIRD PARTY PAYMENTS,PRIVATE CONTRACTOR,REVENUE
Walsall Council,http://opendatacommunities.org/id/metropolitan-district-council/walsall ,WC156-157,30.11.2023,ADULT SOCIAL CARE,5 CARE SERVICES LTD,21/11/2023,432.00,6541-Domiciliary Care,THIRD PARTY PAYMENTS,PRIVATE CONTRACTOR,REVENUE
Walsall Council,http://opendatacommunities.org/id/metropolitan-district-council/walsall ,WC156-158,30.11.2023,ADULT SOCIAL CARE,5 CARE SERVICES LTD,21/11/2023,756.00,6541-Domiciliary Care,THIRD PARTY PAYMENTS,PRIVATE CONTRACTOR,REVENUE
Walsall Council,http://opendatacommunities.org/id/metropolitan-district-council/walsall ,WC156-159,30.11.2023,ADULT SOCIAL CARE,5 CARE SERVICES LTD,21/11/2023,774.00,6541-Domiciliary Care,THIRD PARTY PAYMENTS,PRIVATE CONTRACTOR,REVENUE
Walsall Council,http://opendatacommunities.org/id/metropolitan-district-council/walsall ,WC156-160,30.11.2023,ADULT SOCIAL CARE,5 CARE SERVICES LTD,21/11/2023,283.50,6541-Domiciliary Care,THIRD PARTY PAYMENTS,PRIVATE CONTRACTOR,REVENUE
Walsall Council,http://opendatacommunities.org/id/metropolitan-district-council/walsall ,WC156-161,30.11.2023,ADULT SOCIAL CARE,5 CARE SERVICES LTD,21/11/2023,360.00,6541-Domiciliary Care,THIRD PARTY PAYMENTS,PRIVATE CONTRACTOR,REVENUE
Walsall Council,http://opendatacommunities.org/id/metropolitan-district-council/walsall ,WC156-162,30.11.2023,ADULT SOCIAL CARE,5 CARE SERVICES LTD,21/11/2023,378.00,6541-Domiciliary Care,THIRD PARTY PAYMENTS,PRIVATE CONTRACTOR,REVENUE
Walsall Council,http://opendatacommunities.org/id/metropolitan-district-council/walsall ,WC156-163,30.11.2023,ADULT SOCIAL CARE,5 CARE SERVICES LTD,21/11/2023,567.00,6541-Domiciliary Care,THIRD PARTY PAYMENTS,PRIVATE CONTRACTOR,REVENUE
Walsall Council,http://opendatacommunities.org/id/metropolitan-district-council/walsall ,WC156-164,30.11.2023,ADULT SOCIAL CARE,5 CARE SERVICES LTD,21/11/2023,"1,008.00",6541-Domiciliary Care,THIRD PARTY PAYMENTS,PRIVATE CONTRACTOR,REVENUE
Walsall Council,http://opendatacommunities.org/id/metropolitan-district-council/walsall ,WC156-165,30.11.2023,ADULT SOCIAL CARE,5 CARE SERVICES LTD,21/11/2023,567.00,6541-Domiciliary Care,THIRD PARTY PAYMENTS,PRIVATE CONTRACTOR,REVENUE
Walsall Council,http://opendatacommunities.org/id/metropolitan-district-council/walsall ,WC156-166,30.11.2023,ADULT SOCIAL CARE,5 CARE SERVICES LTD,21/11/2023,504.00,6541-Domiciliary Care,THIRD PARTY PAYMENTS,PRIVATE CONTRACTOR,REVENUE
Walsall Council,http://opendatacommunities.org/id/metropolitan-district-council/walsall ,WC156-167,30.11.2023,ADULT SOCIAL CARE,5 CARE SERVICES LTD,21/11/2023,"1,386.00",6541-Domiciliary Care,THIRD PARTY PAYMENTS,PRIVATE CONTRACTOR,REVENUE
Walsall Council,http://opendatacommunities.org/id/metropolitan-district-council/walsall ,WC156-168,30.11.2023,ADULT SOCIAL CARE,5 CARE SERVICES LTD,21/11/2023,324.00,6541-Domiciliary Care,THIRD PARTY PAYMENTS,PRIVATE CONTRACTOR,REVENUE
Walsall Council,http://opendatacommunities.org/id/metropolitan-district-council/walsall ,WC156-169,30.11.2023,ADULT SOCIAL CARE,5 CARE SERVICES LTD,21/11/2023,651.00,6541-Domiciliary Care,THIRD PARTY PAYMENTS,PRIVATE CONTRACTOR,REVENUE
Walsall Council,http://opendatacommunities.org/id/metropolitan-district-council/walsall ,WC156-170,30.11.2023,ADULT SOCIAL CARE,5 CARE SERVICES LTD,21/11/2023,630.00,6541-Domiciliary Care,THIRD PARTY PAYMENTS,PRIVATE CONTRACTOR,REVENUE
Walsall Council,http://opendatacommunities.org/id/metropolitan-district-council/walsall ,WC156-171,30.11.2023,ADULT SOCIAL CARE,5 CARE SERVICES LTD,21/11/2023,567.00,6541-Domiciliary Care,THIRD PARTY PAYMENTS,PRIVATE CONTRACTOR,REVENUE
Walsall Council,http://opendatacommunities.org/id/metropolitan-district-council/walsall ,WC156-172,30.11.2023,ADULT SOCIAL CARE,5 CARE SERVICES LTD,21/11/2023,567.00,6541-Domiciliary Care,THIRD PARTY PAYMENTS,PRIVATE CONTRACTOR,REVENUE
Walsall Council,http://opendatacommunities.org/id/metropolitan-district-council/walsall ,WC156-173,30.11.2023,ADULT SOCIAL CARE,5 CARE SERVICES LTD,21/11/2023,378.00,6541-Domiciliary Care,THIRD PARTY PAYMENTS,PRIVATE CONTRACTOR,REVENUE
Walsall Council,http://opendatacommunities.org/id/metropolitan-district-council/walsall ,WC156-174,30.11.2023,ADULT SOCIAL CARE,5 CARE SERVICES LTD,21/11/2023,567.00,6541-Domiciliary Care,THIRD PARTY PAYMENTS,PRIVATE CONTRACTOR,REVENUE
Walsall Council,http://opendatacommunities.org/id/metropolitan-district-council/walsall ,WC156-175,30.11.2023,ADULT SOCIAL CARE,5 CARE SERVICES LTD,21/11/2023,666.00,6541-Domiciliary Care,THIRD PARTY PAYMENTS,PRIVATE CONTRACTOR,REVENUE
Walsall Council,http://opendatacommunities.org/id/metropolitan-district-council/walsall ,WC156-176,30.11.2023,ADULT SOCIAL CARE,5 CARE SERVICES LTD,21/11/2023,567.00,6541-Domiciliary Care,THIRD PARTY PAYMENTS,PRIVATE CONTRACTOR,REVENUE
Walsall Council,http://opendatacommunities.org/id/metropolitan-district-council/walsall ,WC156-177,30.11.2023,ADULT SOCIAL CARE,5 CARE SERVICES LTD,21/11/2023,283.50,6541-Domiciliary Care,THIRD PARTY PAYMENTS,PRIVATE CONTRACTOR,REVENUE
Walsall Council,http://opendatacommunities.org/id/metropolitan-district-council/walsall ,WC156-178,30.11.2023,ADULT SOCIAL CARE,5 CARE SERVICES LTD,21/11/2023,819.00,6541-Domiciliary Care,THIRD PARTY PAYMENTS,PRIVATE CONTRACTOR,REVENUE
Walsall Council,http://opendatacommunities.org/id/metropolitan-district-council/walsall ,WC156-179,30.11.2023,ADULT SOCIAL CARE,5 CARE SERVICES LTD,21/11/2023,567.00,6541-Domiciliary Care,THIRD PARTY PAYMENTS,PRIVATE CONTRACTOR,REVENUE
Walsall Council,http://opendatacommunities.org/id/metropolitan-district-council/walsall ,WC156-180,30.11.2023,ADULT SOCIAL CARE,5 CARE SERVICES LTD,21/11/2023,256.50,6541-Domiciliary Care,THIRD PARTY PAYMENTS,PRIVATE CONTRACTOR,REVENUE
Walsall Council,http://opendatacommunities.org/id/metropolitan-district-council/walsall ,WC156-181,30.11.2023,ADULT SOCIAL CARE,5 CARE SERVICES LTD,21/11/2023,283.50,6541-Domiciliary Care,THIRD PARTY PAYMENTS,PRIVATE CONTRACTOR,REVENUE
Walsall Council,http://opendatacommunities.org/id/metropolitan-district-council/walsall ,WC156-182,30.11.2023,ADULT SOCIAL CARE,5 CARE SERVICES LTD,21/11/2023,567.00,6541-Domiciliary Care,THIRD PARTY PAYMENTS,PRIVATE CONTRACTOR,REVENUE
Walsall Council,http://opendatacommunities.org/id/metropolitan-district-council/walsall ,WC156-183,30.11.2023,ADULT SOCIAL CARE,5 CARE SERVICES LTD,21/11/2023,252.00,6541-Domiciliary Care,THIRD PARTY PAYMENTS,PRIVATE CONTRACTOR,REVENUE
Walsall Council,http://opendatacommunities.org/id/metropolitan-district-council/walsall ,WC156-184,30.11.2023,ADULT SOCIAL CARE,5 CARE SERVICES LTD,21/11/2023,328.50,6541-Domiciliary Care,THIRD PARTY PAYMENTS,PRIVATE CONTRACTOR,REVENUE
Walsall Council,http://opendatacommunities.org/id/metropolitan-district-council/walsall ,WC156-185,30.11.2023,ADULT SOCIAL CARE,5 CARE SERVICES LTD,21/11/2023,360.00,6541-Domiciliary Care,THIRD PARTY PAYMENTS,PRIVATE CONTRACTOR,REVENUE
Walsall Council,http://opendatacommunities.org/id/metropolitan-district-council/walsall ,WC156-186,30.11.2023,ADULT SOCIAL CARE,5 CARE SERVICES LTD,21/11/2023,486.00,6541-Domiciliary Care,THIRD PARTY PAYMENTS,PRIVATE CONTRACTOR,REVENUE
Walsall Council,http://opendatacommunities.org/id/metropolitan-district-council/walsall ,WC156-187,30.11.2023,ADULT SOCIAL CARE,5 CARE SERVICES LTD,21/11/2023,294.00,6541-Domiciliary Care,THIRD PARTY PAYMENTS,PRIVATE CONTRACTOR,REVENUE
Walsall Council,http://opendatacommunities.org/id/metropolitan-district-council/walsall ,WC156-188,30.11.2023,ADULT SOCIAL CARE,5 CARE SERVICES LTD,21/11/2023,315.00,6541-Domiciliary Care,THIRD PARTY PAYMENTS,PRIVATE CONTRACTOR,REVENUE
Walsall Council,http://opendatacommunities.org/id/metropolitan-district-council/walsall ,WC156-189,30.11.2023,ADULT SOCIAL CARE,5 CARE SERVICES LTD,21/11/2023,567.00,6541-Domiciliary Care,THIRD PARTY PAYMENTS,PRIVATE CONTRACTOR,REVENUE
Walsall Council,http://opendatacommunities.org/id/metropolitan-district-council/walsall ,WC156-190,30.11.2023,"ECONOMY, ENVIRONMENT & COMMUNITIES",A ASHTON,13/11/2023,279.00,6410-Purchase of Furniture & Equipment,SUPPLIES & SERVICES,EQUIPMENT FURNITURE & MATERIALS,REVENUE
Walsall Council,http://opendatacommunities.org/id/metropolitan-district-council/walsall ,WC156-191,30.11.2023,"ECONOMY, ENVIRONMENT & COMMUNITIES",A B WASTE MANAGEMENT LTD,02/11/2023,265.00,6414-Recycling & Disposal of Waste -Priv Contractor Fees,THIRD PARTY PAYMENTS,PRIVATE CONTRACTOR,REVENUE
Walsall Council,http://opendatacommunities.org/id/metropolitan-district-council/walsall ,WC156-192,30.11.2023,"ECONOMY, ENVIRONMENT & COMMUNITIES",A B WASTE MANAGEMENT LTD,29/11/2023,252.30,6414-Recycling & Disposal of Waste -Priv Contractor Fees,THIRD PARTY PAYMENTS,PRIVATE CONTRACTOR,REVENUE
Walsall Council,http://opendatacommunities.org/id/metropolitan-district-council/walsall ,WC156-193,30.11.2023,RESOURCES AND TRANSFORMATION,A D T FIRE AND SECURITY PLC,14/11/2023,618.17,6310-Security & Alarm Maintenance,PREMISES,REPAIRS & MAINTENANCE,REVENUE
Walsall Council,http://opendatacommunities.org/id/metropolitan-district-council/walsall ,WC156-194,30.11.2023,"ECONOMY, ENVIRONMENT & COMMUNITIES",A F BLAKEMORE & SON LTD,14/11/2023,-393.45,6413-Food & Drink Supplies,SUPPLIES & SERVICES,CATERING,REVENUE
Walsall Council,http://opendatacommunities.org/id/metropolitan-district-council/walsall ,WC156-195,30.11.2023,"ECONOMY, ENVIRONMENT & COMMUNITIES",A F BLAKEMORE & SON LTD,27/11/2023,334.50,6413-Food & Drink Supplies,SUPPLIES & SERVICES,CATERING,REVENUE
Walsall Council,http://opendatacommunities.org/id/metropolitan-district-council/walsall ,WC156-196,30.11.2023,"ECONOMY, ENVIRONMENT & COMMUNITIES",A F BLAKEMORE & SON LTD,27/11/2023,818.91,6413-Food & Drink Supplies,SUPPLIES & SERVICES,CATERING,REVENUE
Walsall Council,http://opendatacommunities.org/id/metropolitan-district-council/walsall ,WC156-197,30.11.2023,"ECONOMY, ENVIRONMENT & COMMUNITIES",A F BLAKEMORE & SON LTD,01/11/2023,360.55,6413-Food & Drink Supplies,SUPPLIES & SERVICES,CATERING,REVENUE
Walsall Council,http://opendatacommunities.org/id/metropolitan-district-council/walsall ,WC156-198,30.11.2023,"ECONOMY, ENVIRONMENT & COMMUNITIES",A F BLAKEMORE & SON LTD,01/11/2023,"1,165.04",6413-Food & Drink Supplies,SUPPLIES & SERVICES,CATERING,REVENUE
Walsall Council,http://opendatacommunities.org/id/metropolitan-district-council/walsall ,WC156-199,30.11.2023,"ECONOMY, ENVIRONMENT & COMMUNITIES",A F BLAKEMORE & SON LTD,09/11/2023,283.46,6413-Food & Drink Supplies,SUPPLIES & SERVICES,CATERING,REVENUE
Walsall Council,http://opendatacommunities.org/id/metropolitan-district-council/walsall ,WC156-200,30.11.2023,"ECONOMY, ENVIRONMENT & COMMUNITIES",A F BLAKEMORE & SON LTD,09/11/2023,"1,267.65",6413-Food & Drink Supplies,SUPPLIES & SERVICES,CATERING,REVENUE
Walsall Council,http://opendatacommunities.org/id/metropolitan-district-council/walsall ,WC156-201,30.11.2023,"ECONOMY, ENVIRONMENT & COMMUNITIES",A F BLAKEMORE & SON LTD,01/11/2023,260.64,6413-Food & Drink Supplies,SUPPLIES & SERVICES,CATERING,REVENUE
Walsall Council,http://opendatacommunities.org/id/metropolitan-district-council/walsall ,WC156-202,30.11.2023,"ECONOMY, ENVIRONMENT & COMMUNITIES",A F BLAKEMORE & SON LTD,01/11/2023,708.07,6413-Food & Drink Supplies,SUPPLIES & SERVICES,CATERING,REVENUE
Walsall Council,http://opendatacommunities.org/id/metropolitan-district-council/walsall ,WC156-203,30.11.2023,"ECONOMY, ENVIRONMENT & COMMUNITIES",A F BLAKEMORE & SON LTD,09/11/2023,553.58,6413-Food & Drink Supplies,SUPPLIES & SERVICES,CATERING,REVENUE
Walsall Council,http://opendatacommunities.org/id/metropolitan-district-council/walsall ,WC156-204,30.11.2023,"ECONOMY, ENVIRONMENT & COMMUNITIES",A F BLAKEMORE & SON LTD,10/11/2023,"1,544.53",6413-Food & Drink Supplies,SUPPLIES & SERVICES,CATERING,REVENUE
Walsall Council,http://opendatacommunities.org/id/metropolitan-district-council/walsall ,WC156-205,30.11.2023,"ECONOMY, ENVIRONMENT & COMMUNITIES",A F BLAKEMORE & SON LTD,07/11/2023,407.57,6413-Food & Drink Supplies,SUPPLIES & SERVICES,CATERING,REVENUE
Walsall Council,http://opendatacommunities.org/id/metropolitan-district-council/walsall ,WC156-206,30.11.2023,"ECONOMY, ENVIRONMENT & COMMUNITIES",A F BLAKEMORE & SON LTD,07/11/2023,966.33,6413-Food & Drink Supplies,SUPPLIES & SERVICES,CATERING,REVENUE
Walsall Council,http://opendatacommunities.org/id/metropolitan-district-council/walsall ,WC156-207,30.11.2023,"ECONOMY, ENVIRONMENT & COMMUNITIES",A F BLAKEMORE & SON LTD,14/11/2023,550.19,6413-Food & Drink Supplies,SUPPLIES & SERVICES,CATERING,REVENUE
Walsall Council,http://opendatacommunities.org/id/metropolitan-district-council/walsall ,WC156-208,30.11.2023,"ECONOMY, ENVIRONMENT & COMMUNITIES",A F BLAKEMORE & SON LTD,14/11/2023,"1,628.40",6413-Food & Drink Supplies,SUPPLIES & SERVICES,CATERING,REVENUE
Walsall Council,http://opendatacommunities.org/id/metropolitan-district-council/walsall ,WC156-209,30.11.2023,"ECONOMY, ENVIRONMENT & COMMUNITIES",A F BLAKEMORE & SON LTD,13/11/2023,283.46,6413-Food & Drink Supplies,SUPPLIES & SERVICES,CATERING,REVENUE
Walsall Council,http://opendatacommunities.org/id/metropolitan-district-council/walsall ,WC156-210,30.11.2023,"ECONOMY, ENVIRONMENT & COMMUNITIES",A F BLAKEMORE & SON LTD,13/11/2023,"1,267.65",6413-Food & Drink Supplies,SUPPLIES & SERVICES,CATERING,REVENUE
Walsall Council,http://opendatacommunities.org/id/metropolitan-district-council/walsall ,WC156-211,30.11.2023,CHILDRENS,A1 WALSALL RADIO CARS,06/11/2023,"1,577.00",6241-Hire of Vehicle with Driver,TRANSPORT,DIRECT TRANSPORT COSTS,REVENUE
Walsall Council,http://opendatacommunities.org/id/metropolitan-district-council/walsall ,WC156-212,30.11.2023,CHILDRENS,A1 WALSALL RADIO CARS,06/11/2023,"2,160.00",6241-Hire of Vehicle with Driver,TRANSPORT,DIRECT TRANSPORT COSTS,REVENUE
Walsall Council,http://opendatacommunities.org/id/metropolitan-district-council/walsall ,WC156-213,30.11.2023,CHILDRENS,A1 WALSALL RADIO CARS,06/11/2023,"3,360.00",6241-Hire of Vehicle with Driver,TRANSPORT,DIRECT TRANSPORT COSTS,REVENUE
Walsall Council,http://opendatacommunities.org/id/metropolitan-district-council/walsall ,WC156-214,30.11.2023,CHILDRENS,A1 WALSALL RADIO CARS,06/11/2023,490.00,6241-Hire of Vehicle with Driver,TRANSPORT,DIRECT TRANSPORT COSTS,REVENUE
Walsall Council,http://opendatacommunities.org/id/metropolitan-district-council/walsall ,WC156-215,30.11.2023,CHILDRENS,A1 WALSALL RADIO CARS,06/11/2023,"1,446.00",6241-Hire of Vehicle with Driver,TRANSPORT,DIRECT TRANSPORT COSTS,REVENUE
Walsall Council,http://opendatacommunities.org/id/metropolitan-district-council/walsall ,WC156-216,30.11.2023,CHILDRENS,A1 WALSALL RADIO CARS,06/11/2023,"2,100.00",6241-Hire of Vehicle with Driver,TRANSPORT,DIRECT TRANSPORT COSTS,REVENUE
Walsall Council,http://opendatacommunities.org/id/metropolitan-district-council/walsall ,WC156-217,30.11.2023,CHILDRENS,A1 WALSALL RADIO CARS,06/11/2023,980.00,6241-Hire of Vehicle with Driver,TRANSPORT,DIRECT TRANSPORT COSTS,REVENUE
Walsall Council,http://opendatacommunities.org/id/metropolitan-district-council/walsall ,WC156-218,30.11.2023,"ECONOMY, ENVIRONMENT & COMMUNITIES",AAINA COMMUNITY HUB,10/11/2023,"7,500.00",6430-Grants to Other Orgs,SUPPLIES & SERVICES,GRANTS (EXP) & SUBSCRIPTIONS,REVENUE
Walsall Council,http://opendatacommunities.org/id/metropolitan-district-council/walsall ,WC156-219,30.11.2023,ADULT SOCIAL CARE,REDACTED,02/11/2023,900.96,6541-Direct Payment,THIRD PARTY PAYMENTS,PRIVATE CONTRACTOR,REVENUE
Walsall Council,http://opendatacommunities.org/id/metropolitan-district-council/walsall ,WC156-220,30.11.2023,CHILDRENS,REDACTED,17/11/2023,558.00,1220-Professional Fees & Services,SUPPLIES & SERVICES,SERVICES,REVENUE
Walsall Council,http://opendatacommunities.org/id/metropolitan-district-council/walsall ,WC156-221,30.11.2023,CHILDRENS,REDACTED,23/11/2023,"1,082.05",1220-Professional Fees & Services,SUPPLIES & SERVICES,SERVICES,REVENUE
Walsall Council,http://opendatacommunities.org/id/metropolitan-district-council/walsall ,WC156-222,30.11.2023,CHILDRENS,ABACUS FOSTERING LTD,28/11/2023,"3,038.80",6223-Independent Foster Care-Oth Agency Provision,THIRD PARTY PAYMENTS,PRIVATE CONTRACTOR,REVENUE
Walsall Council,http://opendatacommunities.org/id/metropolitan-district-council/walsall ,WC156-223,30.11.2023,CHILDRENS,ABACUS FOSTERING LTD,28/11/2023,"2,984.80",6223-Independent Foster Care-Oth Agency Provision,THIRD PARTY PAYMENTS,PRIVATE CONTRACTOR,REVENUE
Walsall Council,http://opendatacommunities.org/id/metropolitan-district-council/walsall ,WC156-224,30.11.2023,CHILDRENS,ABACUS FOSTERING LTD,28/11/2023,"2,818.88",6223-Independent Foster Care-Oth Agency Provision,THIRD PARTY PAYMENTS,PRIVATE CONTRACTOR,REVENUE
Walsall Council,http://opendatacommunities.org/id/metropolitan-district-council/walsall ,WC156-225,30.11.2023,CHILDRENS,ABACUS FOSTERING LTD,28/11/2023,"3,198.72",6223-Independent Foster Care-Oth Agency Provision,THIRD PARTY PAYMENTS,PRIVATE CONTRACTOR,REVENUE
Walsall Council,http://opendatacommunities.org/id/metropolitan-district-council/walsall ,WC156-226,30.11.2023,ADULT SOCIAL CARE,ABBEY HEALTHCARE HOMES LTD,21/11/2023,"2,432.32",6541-Residential,THIRD PARTY PAYMENTS,PRIVATE CONTRACTOR,REVENUE
Walsall Council,http://opendatacommunities.org/id/metropolitan-district-council/walsall ,WC156-227,30.11.2023,ADULT SOCIAL CARE,ABBEY HEALTHCARE HOMES LTD,21/11/2023,"3,180.76",6541-Residential,THIRD PARTY PAYMENTS,PRIVATE CONTRACTOR,REVENUE
Walsall Council,http://opendatacommunities.org/id/metropolitan-district-council/walsall ,WC156-228,30.11.2023,ADULT SOCIAL CARE,ABBEY HEALTHCARE HOMES LTD,21/11/2023,"3,180.76",6541-Residential,THIRD PARTY PAYMENTS,PRIVATE CONTRACTOR,REVENUE
Walsall Council,http://opendatacommunities.org/id/metropolitan-district-council/walsall ,WC156-229,30.11.2023,ADULT SOCIAL CARE,ABBEY HEALTHCARE HOMES LTD,21/11/2023,"4,000.00",6541-Residential,THIRD PARTY PAYMENTS,PRIVATE CONTRACTOR,REVENUE
Walsall Council,http://opendatacommunities.org/id/metropolitan-district-council/walsall ,WC156-230,30.11.2023,ADULT SOCIAL CARE,REDACTED,02/11/2023,"2,438.24",6541-Direct Payment,THIRD PARTY PAYMENTS,PRIVATE CONTRACTOR,REVENUE
Walsall Council,http://opendatacommunities.org/id/metropolitan-district-council/walsall ,WC156-231,30.11.2023,ADULT SOCIAL CARE,ABILITY HEALTHCARE LTD,15/11/2023,"1,512.00",6541-Domiciliary Care,THIRD PARTY PAYMENTS,PRIVATE CONTRACTOR,REVENUE
Walsall Council,http://opendatacommunities.org/id/metropolitan-district-council/walsall ,WC156-232,30.11.2023,ADULT SOCIAL CARE,ABILITY HEALTHCARE LTD,15/11/2023,"2,268.00",6541-Domiciliary Care,THIRD PARTY PAYMENTS,PRIVATE CONTRACTOR,REVENUE
Walsall Council,http://opendatacommunities.org/id/metropolitan-district-council/walsall ,WC156-233,30.11.2023,ADULT SOCIAL CARE,ABILITY HEALTHCARE LTD,15/11/2023,"2,313.00",6541-Domiciliary Care,THIRD PARTY PAYMENTS,PRIVATE CONTRACTOR,REVENUE
Walsall Council,http://opendatacommunities.org/id/metropolitan-district-council/walsall ,WC156-234,30.11.2023,ADULT SOCIAL CARE,ABILITY HEALTHCARE LTD,15/11/2023,"2,268.00",6541-Domiciliary Care,THIRD PARTY PAYMENTS,PRIVATE CONTRACTOR,REVENUE
Walsall Council,http://opendatacommunities.org/id/metropolitan-district-council/walsall ,WC156-235,30.11.2023,ADULT SOCIAL CARE,ABILITY HEALTHCARE LTD,15/11/2023,"2,268.00",6541-Domiciliary Care,THIRD PARTY PAYMENTS,PRIVATE CONTRACTOR,REVENUE
Walsall Council,http://opendatacommunities.org/id/metropolitan-district-council/walsall ,WC156-236,30.11.2023,ADULT SOCIAL CARE,ABILITY HEALTHCARE LTD,15/11/2023,"1,134.00",6541-Domiciliary Care,THIRD PARTY PAYMENTS,PRIVATE CONTRACTOR,REVENUE
Walsall Council,http://opendatacommunities.org/id/metropolitan-district-council/walsall ,WC156-237,30.11.2023,ADULT SOCIAL CARE,ABILITY HEALTHCARE LTD,15/11/2023,"2,016.00",6541-Domiciliary Care,THIRD PARTY PAYMENTS,PRIVATE CONTRACTOR,REVENUE
Walsall Council,http://opendatacommunities.org/id/metropolitan-district-council/walsall ,WC156-238,30.11.2023,ADULT SOCIAL CARE,ABILITY HEALTHCARE LTD,15/11/2023,"3,528.00",6541-Domiciliary Care,THIRD PARTY PAYMENTS,PRIVATE CONTRACTOR,REVENUE
Walsall Council,http://opendatacommunities.org/id/metropolitan-district-council/walsall ,WC156-239,30.11.2023,ADULT SOCIAL CARE,ABILITY HEALTHCARE LTD,15/11/2023,"2,268.00",6541-Domiciliary Care,THIRD PARTY PAYMENTS,PRIVATE CONTRACTOR,REVENUE
Walsall Council,http://opendatacommunities.org/id/metropolitan-district-council/walsall ,WC156-240,30.11.2023,ADULT SOCIAL CARE,ABILITY HEALTHCARE LTD,15/11/2023,"1,998.00",6541-Domiciliary Care,THIRD PARTY PAYMENTS,PRIVATE CONTRACTOR,REVENUE
Walsall Council,http://opendatacommunities.org/id/metropolitan-district-council/walsall ,WC156-241,30.11.2023,ADULT SOCIAL CARE,ABILITY HEALTHCARE LTD,15/11/2023,891.00,6541-Domiciliary Care,THIRD PARTY PAYMENTS,PRIVATE CONTRACTOR,REVENUE
Walsall Council,http://opendatacommunities.org/id/metropolitan-district-council/walsall ,WC156-242,30.11.2023,ADULT SOCIAL CARE,ABILITY HEALTHCARE LTD,15/11/2023,"1,008.00",6541-Domiciliary Care,THIRD PARTY PAYMENTS,PRIVATE CONTRACTOR,REVENUE
Walsall Council,http://opendatacommunities.org/id/metropolitan-district-council/walsall ,WC156-243,30.11.2023,ADULT SOCIAL CARE,ABILITY HEALTHCARE LTD,15/11/2023,"2,286.00",6541-Domiciliary Care,THIRD PARTY PAYMENTS,PRIVATE CONTRACTOR,REVENUE
Walsall Council,http://opendatacommunities.org/id/metropolitan-district-council/walsall ,WC156-244,30.11.2023,ADULT SOCIAL CARE,ABILITY HEALTHCARE LTD,15/11/2023,"2,772.00",6541-Domiciliary Care,THIRD PARTY PAYMENTS,PRIVATE CONTRACTOR,REVENUE
Walsall Council,http://opendatacommunities.org/id/metropolitan-district-council/walsall ,WC156-245,30.11.2023,ADULT SOCIAL CARE,ABILITY HEALTHCARE LTD,15/11/2023,"2,304.00",6541-Domiciliary Care,THIRD PARTY PAYMENTS,PRIVATE CONTRACTOR,REVENUE
Walsall Council,http://opendatacommunities.org/id/metropolitan-district-council/walsall ,WC156-246,30.11.2023,ADULT SOCIAL CARE,ABILITY HEALTHCARE LTD,15/11/2023,"2,016.00",6541-Domiciliary Care,THIRD PARTY PAYMENTS,PRIVATE CONTRACTOR,REVENUE
Walsall Council,http://opendatacommunities.org/id/metropolitan-district-council/walsall ,WC156-247,30.11.2023,ADULT SOCIAL CARE,ABILITY HEALTHCARE LTD,15/11/2023,486.00,6541-Domiciliary Care,THIRD PARTY PAYMENTS,PRIVATE CONTRACTOR,REVENUE
Walsall Council,http://opendatacommunities.org/id/metropolitan-district-council/walsall ,WC156-248,30.11.2023,ADULT SOCIAL CARE,ABILITY HEALTHCARE LTD,15/11/2023,"1,668.00",6541-Domiciliary Care,THIRD PARTY PAYMENTS,PRIVATE CONTRACTOR,REVENUE
Walsall Council,http://opendatacommunities.org/id/metropolitan-district-council/walsall ,WC156-249,30.11.2023,ADULT SOCIAL CARE,ABILITY HEALTHCARE LTD,15/11/2023,"2,016.00",6541-Domiciliary Care,THIRD PARTY PAYMENTS,PRIVATE CONTRACTOR,REVENUE
Walsall Council,http://opendatacommunities.org/id/metropolitan-district-council/walsall ,WC156-250,30.11.2023,ADULT SOCIAL CARE,ABILITY HEALTHCARE LTD,15/11/2023,"1,680.00",6541-Domiciliary Care,THIRD PARTY PAYMENTS,PRIVATE CONTRACTOR,REVENUE
Walsall Council,http://opendatacommunities.org/id/metropolitan-district-council/walsall ,WC156-251,30.11.2023,ADULT SOCIAL CARE,ABILITY HEALTHCARE LTD,15/11/2023,"2,268.00",6541-Domiciliary Care,THIRD PARTY PAYMENTS,PRIVATE CONTRACTOR,REVENUE
Walsall Council,http://opendatacommunities.org/id/metropolitan-district-council/walsall ,WC156-252,30.11.2023,ADULT SOCIAL CARE,ABILITY HEALTHCARE LTD,15/11/2023,"2,268.00",6541-Domiciliary Care,THIRD PARTY PAYMENTS,PRIVATE CONTRACTOR,REVENUE
Walsall Council,http://opendatacommunities.org/id/metropolitan-district-council/walsall ,WC156-253,30.11.2023,ADULT SOCIAL CARE,ABILITY HEALTHCARE LTD,15/11/2023,336.00,6541-Domiciliary Care,THIRD PARTY PAYMENTS,PRIVATE CONTRACTOR,REVENUE
Walsall Council,http://opendatacommunities.org/id/metropolitan-district-council/walsall ,WC156-254,30.11.2023,ADULT SOCIAL CARE,ABILITY HEALTHCARE LTD,15/11/2023,"1,764.00",6541-Domiciliary Care,THIRD PARTY PAYMENTS,PRIVATE CONTRACTOR,REVENUE
Walsall Council,http://opendatacommunities.org/id/metropolitan-district-council/walsall ,WC156-255,30.11.2023,ADULT SOCIAL CARE,ABILITY HEALTHCARE LTD,15/11/2023,"1,344.00",6541-Domiciliary Care,THIRD PARTY PAYMENTS,PRIVATE CONTRACTOR,REVENUE
Walsall Council,http://opendatacommunities.org/id/metropolitan-district-council/walsall ,WC156-256,30.11.2023,ADULT SOCIAL CARE,ABILITY HEALTHCARE LTD,15/11/2023,"2,016.00",6541-Domiciliary Care,THIRD PARTY PAYMENTS,PRIVATE CONTRACTOR,REVENUE
Walsall Council,http://opendatacommunities.org/id/metropolitan-district-council/walsall ,WC156-257,30.11.2023,ADULT SOCIAL CARE,ABILITY HEALTHCARE LTD,15/11/2023,"1,251.00",6541-Domiciliary Care,THIRD PARTY PAYMENTS,PRIVATE CONTRACTOR,REVENUE
Walsall Council,http://opendatacommunities.org/id/metropolitan-district-council/walsall ,WC156-258,30.11.2023,ADULT SOCIAL CARE,ABILITY HEALTHCARE LTD,15/11/2023,"2,100.00",6541-Domiciliary Care,THIRD PARTY PAYMENTS,PRIVATE CONTRACTOR,REVENUE
Walsall Council,http://opendatacommunities.org/id/metropolitan-district-council/walsall ,WC156-259,30.11.2023,ADULT SOCIAL CARE,ABILITY HEALTHCARE LTD,15/11/2023,378.00,6541-Domiciliary Care,THIRD PARTY PAYMENTS,PRIVATE CONTRACTOR,REVENUE
Walsall Council,http://opendatacommunities.org/id/metropolitan-district-council/walsall ,WC156-260,30.11.2023,ADULT SOCIAL CARE,ABILITY HEALTHCARE LTD,15/11/2023,405.00,6554-Professional Services-Priv Contractor & Other Agencies,THIRD PARTY PAYMENTS,PRIVATE CONTRACTOR,REVENUE
Walsall Council,http://opendatacommunities.org/id/metropolitan-district-council/walsall ,WC156-261,30.11.2023,ADULT SOCIAL CARE,ABILITY HEALTHCARE LTD,15/11/2023,"2,268.00",6554-Professional Services-Priv Contractor & Other Agencies,THIRD PARTY PAYMENTS,PRIVATE CONTRACTOR,REVENUE
Walsall Council,http://opendatacommunities.org/id/metropolitan-district-council/walsall ,WC156-262,30.11.2023,ADULT SOCIAL CARE,ABILITY HEALTHCARE LTD,15/11/2023,891.00,6554-Professional Services-Priv Contractor & Other Agencies,THIRD PARTY PAYMENTS,PRIVATE CONTRACTOR,REVENUE
Walsall Council,http://opendatacommunities.org/id/metropolitan-district-council/walsall ,WC156-263,30.11.2023,ADULT SOCIAL CARE,ABILITY HEALTHCARE LTD,15/11/2023,"1,377.00",6554-Professional Services-Priv Contractor & Other Agencies,THIRD PARTY PAYMENTS,PRIVATE CONTRACTOR,REVENUE
Walsall Council,http://opendatacommunities.org/id/metropolitan-district-council/walsall ,WC156-264,30.11.2023,ADULT SOCIAL CARE,ABILITY HEALTHCARE LTD,15/11/2023,"2,673.00",6554-Professional Services-Priv Contractor & Other Agencies,THIRD PARTY PAYMENTS,PRIVATE CONTRACTOR,REVENUE
Walsall Council,http://opendatacommunities.org/id/metropolitan-district-council/walsall ,WC156-265,30.11.2023,CHILDRENS,ABLEWELL CARS,06/11/2023,"1,264.00",6241-Hire of Vehicle with Driver,TRANSPORT,DIRECT TRANSPORT COSTS,REVENUE
Walsall Council,http://opendatacommunities.org/id/metropolitan-district-council/walsall ,WC156-266,30.11.2023,CHILDRENS,ABLEWELL CARS,06/11/2023,"1,683.20",6241-Hire of Vehicle with Driver,TRANSPORT,DIRECT TRANSPORT COSTS,REVENUE
Walsall Council,http://opendatacommunities.org/id/metropolitan-district-council/walsall ,WC156-267,30.11.2023,CHILDRENS,ABLEWELL CARS,06/11/2023,"1,332.00",6241-Hire of Vehicle with Driver,TRANSPORT,DIRECT TRANSPORT COSTS,REVENUE
Walsall Council,http://opendatacommunities.org/id/metropolitan-district-council/walsall ,WC156-268,30.11.2023,CHILDRENS,ABLEWELL CARS,06/11/2023,"2,850.00",6241-Hire of Vehicle with Driver,TRANSPORT,DIRECT TRANSPORT COSTS,REVENUE
Walsall Council,http://opendatacommunities.org/id/metropolitan-district-council/walsall ,WC156-269,30.11.2023,CHILDRENS,ABS TAXIS (ALDRIDGE),06/11/2023,"1,875.30",6241-Hire of Vehicle with Driver,TRANSPORT,DIRECT TRANSPORT COSTS,REVENUE
Walsall Council,http://opendatacommunities.org/id/metropolitan-district-council/walsall ,WC156-270,30.11.2023,CHILDRENS,ABS TAXIS (ALDRIDGE),06/11/2023,"2,552.00",6241-Hire of Vehicle with Driver,TRANSPORT,DIRECT TRANSPORT COSTS,REVENUE
Walsall Council,http://opendatacommunities.org/id/metropolitan-district-council/walsall ,WC156-271,30.11.2023,CHILDRENS,ABS TAXIS (ALDRIDGE),06/11/2023,"1,529.50",6241-Hire of Vehicle with Driver,TRANSPORT,DIRECT TRANSPORT COSTS,REVENUE
Walsall Council,http://opendatacommunities.org/id/metropolitan-district-council/walsall ,WC156-272,30.11.2023,CHILDRENS,ABS TAXIS (ALDRIDGE),06/11/2023,"1,005.00",6241-Hire of Vehicle with Driver,TRANSPORT,DIRECT TRANSPORT COSTS,REVENUE
Walsall Council,http://opendatacommunities.org/id/metropolitan-district-council/walsall ,WC156-273,30.11.2023,ADULT SOCIAL CARE,ABSOLUTE HEALTHCARE SWAN HOUSE LTD,21/11/2023,"2,413.36",6541-Residential EMI,THIRD PARTY PAYMENTS,PRIVATE CONTRACTOR,REVENUE
Walsall Council,http://opendatacommunities.org/id/metropolitan-district-council/walsall ,WC156-274,30.11.2023,ADULT SOCIAL CARE,ABSOLUTE HEALTHCARE SWAN HOUSE LTD,21/11/2023,"1,221.33",6541-Residential,THIRD PARTY PAYMENTS,PRIVATE CONTRACTOR,REVENUE
Walsall Council,http://opendatacommunities.org/id/metropolitan-district-council/walsall ,WC156-275,30.11.2023,ADULT SOCIAL CARE,ABSOLUTE HEALTHCARE SWAN HOUSE LTD,21/11/2023,"5,240.48",6541-Nursing EMI,THIRD PARTY PAYMENTS,PRIVATE CONTRACTOR,REVENUE
Walsall Council,http://opendatacommunities.org/id/metropolitan-district-council/walsall ,WC156-276,30.11.2023,ADULT SOCIAL CARE,ABSOLUTE HEALTHCARE SWAN HOUSE LTD,21/11/2023,"2,400.00",6554-Professional Services-Priv Contractor & Other Agencies,THIRD PARTY PAYMENTS,PRIVATE CONTRACTOR,REVENUE
Walsall Council,http://opendatacommunities.org/id/metropolitan-district-council/walsall ,WC156-277,30.11.2023,ADULT SOCIAL CARE,ABSOLUTE HEALTHCARE SWAN HOUSE LTD,21/11/2023,"1,428.57",6554-Professional Services-Priv Contractor & Other Agencies,THIRD PARTY PAYMENTS,PRIVATE CONTRACTOR,REVENUE
Walsall Council,http://opendatacommunities.org/id/metropolitan-district-council/walsall ,WC156-278,30.11.2023,ADULT SOCIAL CARE,ABSOLUTE HEALTHCARE SWAN HOUSE LTD,21/11/2023,"2,413.36",6541-Residential EMI,THIRD PARTY PAYMENTS,PRIVATE CONTRACTOR,REVENUE
Walsall Council,http://opendatacommunities.org/id/metropolitan-district-council/walsall ,WC156-279,30.11.2023,ADULT SOCIAL CARE,ABSOLUTE HEALTHCARE SWAN HOUSE LTD,21/11/2023,"2,277.32",6541-Residential,THIRD PARTY PAYMENTS,PRIVATE CONTRACTOR,REVENUE
Walsall Council,http://opendatacommunities.org/id/metropolitan-district-council/walsall ,WC156-280,30.11.2023,ADULT SOCIAL CARE,ABSOLUTE HEALTHCARE SWAN HOUSE LTD,21/11/2023,"2,137.32",6541-Residential,THIRD PARTY PAYMENTS,PRIVATE CONTRACTOR,REVENUE
Walsall Council,http://opendatacommunities.org/id/metropolitan-district-council/walsall ,WC156-281,30.11.2023,ADULT SOCIAL CARE,ABSOLUTE HEALTHCARE SWAN HOUSE LTD,21/11/2023,"2,137.32",6541-Residential,THIRD PARTY PAYMENTS,PRIVATE CONTRACTOR,REVENUE
Walsall Council,http://opendatacommunities.org/id/metropolitan-district-council/walsall ,WC156-282,30.11.2023,ADULT SOCIAL CARE,ABSOLUTE HEALTHCARE SWAN HOUSE LTD,21/11/2023,"2,137.32",6541-Residential,THIRD PARTY PAYMENTS,PRIVATE CONTRACTOR,REVENUE
Walsall Council,http://opendatacommunities.org/id/metropolitan-district-council/walsall ,WC156-283,30.11.2023,ADULT SOCIAL CARE,ABSOLUTE HEALTHCARE SWAN HOUSE LTD,21/11/2023,"2,413.36",6541-Residential EMI,THIRD PARTY PAYMENTS,PRIVATE CONTRACTOR,REVENUE
Walsall Council,http://opendatacommunities.org/id/metropolitan-district-council/walsall ,WC156-284,30.11.2023,ADULT SOCIAL CARE,ABSOLUTE HEALTHCARE SWAN HOUSE LTD,21/11/2023,"2,507.14",6554-Professional Services-Priv Contractor & Other Agencies,THIRD PARTY PAYMENTS,PRIVATE CONTRACTOR,REVENUE
Walsall Council,http://opendatacommunities.org/id/metropolitan-district-council/walsall ,WC156-285,30.11.2023,ADULT SOCIAL CARE,ABSOLUTE HEALTHCARE SWAN HOUSE LTD,21/11/2023,"2,413.36",6541-Residential EMI,THIRD PARTY PAYMENTS,PRIVATE CONTRACTOR,REVENUE
Walsall Council,http://opendatacommunities.org/id/metropolitan-district-council/walsall ,WC156-286,30.11.2023,ADULT SOCIAL CARE,ABSOLUTE HEALTHCARE SWAN HOUSE LTD,21/11/2023,"2,274.29",6554-Professional Services-Priv Contractor & Other Agencies,THIRD PARTY PAYMENTS,PRIVATE CONTRACTOR,REVENUE
Walsall Council,http://opendatacommunities.org/id/metropolitan-district-council/walsall ,WC156-287,30.11.2023,ADULT SOCIAL CARE,ABSOLUTE HEALTHCARE SWAN HOUSE LTD,21/11/2023,"3,400.00",6541-Residential EMI,THIRD PARTY PAYMENTS,PRIVATE CONTRACTOR,REVENUE
Walsall Council,http://opendatacommunities.org/id/metropolitan-district-council/walsall ,WC156-288,30.11.2023,ADULT SOCIAL CARE,ABSOLUTE HEALTHCARE SWAN HOUSE LTD,21/11/2023,"3,048.96",6541-Nursing,THIRD PARTY PAYMENTS,PRIVATE CONTRACTOR,REVENUE
Walsall Council,http://opendatacommunities.org/id/metropolitan-district-council/walsall ,WC156-289,30.11.2023,ADULT SOCIAL CARE,ABSOLUTE HEALTHCARE SWAN HOUSE LTD,21/11/2023,"3,336.92",6541-Nursing EMI,THIRD PARTY PAYMENTS,PRIVATE CONTRACTOR,REVENUE
Walsall Council,http://opendatacommunities.org/id/metropolitan-district-council/walsall ,WC156-290,30.11.2023,ADULT SOCIAL CARE,ABSOLUTE HEALTHCARE SWAN HOUSE LTD,21/11/2023,"3,600.00",6541-Residential,THIRD PARTY PAYMENTS,PRIVATE CONTRACTOR,REVENUE
Walsall Council,http://opendatacommunities.org/id/metropolitan-district-council/walsall ,WC156-291,30.11.2023,ADULT SOCIAL CARE,ABSOLUTE HEALTHCARE SWAN HOUSE LTD,21/11/2023,"4,056.00",6541-Residential,THIRD PARTY PAYMENTS,PRIVATE CONTRACTOR,REVENUE
Walsall Council,http://opendatacommunities.org/id/metropolitan-district-council/walsall ,WC156-292,30.11.2023,ADULT SOCIAL CARE,ABSOLUTE HEALTHCARE SWAN HOUSE LTD,21/11/2023,"2,137.32",6541-Residential,THIRD PARTY PAYMENTS,PRIVATE CONTRACTOR,REVENUE
Walsall Council,http://opendatacommunities.org/id/metropolitan-district-council/walsall ,WC156-293,30.11.2023,ADULT SOCIAL CARE,ABSOLUTE HEALTHCARE SWAN HOUSE LTD,21/11/2023,"2,413.36",6541-Residential EMI,THIRD PARTY PAYMENTS,PRIVATE CONTRACTOR,REVENUE
Walsall Council,http://opendatacommunities.org/id/metropolitan-district-council/walsall ,WC156-294,30.11.2023,ADULT SOCIAL CARE,ABSOLUTE HEALTHCARE SWAN HOUSE LTD,21/11/2023,"4,000.00",6554-Professional Services-Priv Contractor & Other Agencies,THIRD PARTY PAYMENTS,PRIVATE CONTRACTOR,REVENUE
Walsall Council,http://opendatacommunities.org/id/metropolitan-district-council/walsall ,WC156-295,30.11.2023,ADULT SOCIAL CARE,ABSOLUTE HEALTHCARE SWAN HOUSE LTD,21/11/2023,"4,000.00",6554-Professional Services-Priv Contractor & Other Agencies,THIRD PARTY PAYMENTS,PRIVATE CONTRACTOR,REVENUE
Walsall Council,http://opendatacommunities.org/id/metropolitan-district-council/walsall ,WC156-296,30.11.2023,ADULT SOCIAL CARE,ABSOLUTE HEALTHCARE SWAN HOUSE LTD,21/11/2023,"4,000.00",6541-Nursing EMI,THIRD PARTY PAYMENTS,PRIVATE CONTRACTOR,REVENUE
Walsall Council,http://opendatacommunities.org/id/metropolitan-district-council/walsall ,WC156-297,30.11.2023,ADULT SOCIAL CARE,ABSOLUTE HEALTHCARE SWAN HOUSE LTD,21/11/2023,"1,200.00",6541-Residential,THIRD PARTY PAYMENTS,PRIVATE CONTRACTOR,REVENUE
Walsall Council,http://opendatacommunities.org/id/metropolitan-district-council/walsall ,WC156-298,30.11.2023,ADULT SOCIAL CARE,ABSOLUTE HEALTHCARE SWAN HOUSE LTD,17/11/2023,"11,592.72",6541-Residential,THIRD PARTY PAYMENTS,PRIVATE CONTRACTOR,REVENUE
Walsall Council,http://opendatacommunities.org/id/metropolitan-district-council/walsall ,WC156-299,30.11.2023,ADULT SOCIAL CARE,ABSOLUTE HEALTHCARE SWAN HOUSE LTD,17/11/2023,"9,245.59",6541-Residential EMI,THIRD PARTY PAYMENTS,PRIVATE CONTRACTOR,REVENUE
Walsall Council,http://opendatacommunities.org/id/metropolitan-district-council/walsall ,WC156-300,30.11.2023,ADULT SOCIAL CARE,ABSOLUTE HEALTHCARE SWAN HOUSE LTD,17/11/2023,"1,609.89",6541-Nursing,THIRD PARTY PAYMENTS,PRIVATE CONTRACTOR,REVENUE
Walsall Council,http://opendatacommunities.org/id/metropolitan-district-council/walsall ,WC156-301,30.11.2023,ADULT SOCIAL CARE,ABSOLUTE HEALTHCARE SWAN HOUSE LTD,17/11/2023,"4,062.34",6541-Nursing EMI,THIRD PARTY PAYMENTS,PRIVATE CONTRACTOR,REVENUE
Walsall Council,http://opendatacommunities.org/id/metropolitan-district-council/walsall ,WC156-302,30.11.2023,CHILDRENS,ACCALIA CARE SERVICES LTD,28/11/2023,"3,778.57",6223-External Residential Care-Oth Agency Provision,THIRD PARTY PAYMENTS,PRIVATE CONTRACTOR,REVENUE
Walsall Council,http://opendatacommunities.org/id/metropolitan-district-council/walsall ,WC156-303,30.11.2023,CHILDRENS,ACCEPTING BEHAVIOUR LTD,23/11/2023,"1,137.50",1220-Professional Fees & Services,SUPPLIES & SERVICES,SERVICES,REVENUE
Walsall Council,http://opendatacommunities.org/id/metropolitan-district-council/walsall ,WC156-304,30.11.2023,ADULT SOCIAL CARE,ACCESS UK LTD ,03/11/2023,"18,315.00",6551-Professional Fees & Services,SUPPLIES & SERVICES,SERVICES,REVENUE
Walsall Council,http://opendatacommunities.org/id/metropolitan-district-council/walsall ,WC156-305,30.11.2023,ADULT SOCIAL CARE,ACCORD HOUSING ASSOCIATION LIMITED - HOBS MEADOW,21/11/2023,"4,776.84",6541-Residential,THIRD PARTY PAYMENTS,PRIVATE CONTRACTOR,REVENUE
Walsall Council,http://opendatacommunities.org/id/metropolitan-district-council/walsall ,WC156-306,30.11.2023,ADULT SOCIAL CARE,ACCORD HOUSING ASSOCIATION LIMITED - HOBS MEADOW,21/11/2023,"4,776.84",6541-Residential,THIRD PARTY PAYMENTS,PRIVATE CONTRACTOR,REVENUE
Walsall Council,http://opendatacommunities.org/id/metropolitan-district-council/walsall ,WC156-307,30.11.2023,ADULT SOCIAL CARE,ACCORD HOUSING ASSOCIATION LIMITED - HOBS MEADOW,21/11/2023,"4,776.84",6541-Residential,THIRD PARTY PAYMENTS,PRIVATE CONTRACTOR,REVENUE
Walsall Council,http://opendatacommunities.org/id/metropolitan-district-council/walsall ,WC156-308,30.11.2023,ADULT SOCIAL CARE,ACCORD HOUSING ASSOCIATION LIMITED - HOBS MEADOW,21/11/2023,"4,776.84",6541-Residential,THIRD PARTY PAYMENTS,PRIVATE CONTRACTOR,REVENUE
Walsall Council,http://opendatacommunities.org/id/metropolitan-district-council/walsall ,WC156-309,30.11.2023,CHILDRENS,ACE CARS & MINIBUSES LTD,06/11/2023,"2,360.00",6241-Hire of Vehicle with Driver,TRANSPORT,DIRECT TRANSPORT COSTS,REVENUE
Walsall Council,http://opendatacommunities.org/id/metropolitan-district-council/walsall ,WC156-310,30.11.2023,CHILDRENS,ACE CARS & MINIBUSES LTD,06/11/2023,"2,690.40",6241-Hire of Vehicle with Driver,TRANSPORT,DIRECT TRANSPORT COSTS,REVENUE
Walsall Council,http://opendatacommunities.org/id/metropolitan-district-council/walsall ,WC156-311,30.11.2023,CHILDRENS,ACE CARS & MINIBUSES LTD,06/11/2023,"2,501.60",6241-Hire of Vehicle with Driver,TRANSPORT,DIRECT TRANSPORT COSTS,REVENUE
Walsall Council,http://opendatacommunities.org/id/metropolitan-district-council/walsall ,WC156-312,30.11.2023,CHILDRENS,ACE CARS & MINIBUSES LTD,06/11/2023,"2,280.00",6241-Hire of Vehicle with Driver,TRANSPORT,DIRECT TRANSPORT COSTS,REVENUE
Walsall Council,http://opendatacommunities.org/id/metropolitan-district-council/walsall ,WC156-313,30.11.2023,CHILDRENS,ACE CARS & MINIBUSES LTD,06/11/2023,"2,360.00",6241-Hire of Vehicle with Driver,TRANSPORT,DIRECT TRANSPORT COSTS,REVENUE
Walsall Council,http://opendatacommunities.org/id/metropolitan-district-council/walsall ,WC156-314,30.11.2023,CHILDRENS,ACE CARS & MINIBUSES LTD,06/11/2023,"3,783.80",6241-Hire of Vehicle with Driver,TRANSPORT,DIRECT TRANSPORT COSTS,REVENUE
Walsall Council,http://opendatacommunities.org/id/metropolitan-district-council/walsall ,WC156-315,30.11.2023,CHILDRENS,ACE CARS & MINIBUSES LTD,06/11/2023,"2,722.00",6241-Hire of Vehicle with Driver,TRANSPORT,DIRECT TRANSPORT COSTS,REVENUE
Walsall Council,http://opendatacommunities.org/id/metropolitan-district-council/walsall ,WC156-316,30.11.2023,CHILDRENS,ACE CARS & MINIBUSES LTD,06/11/2023,"3,075.80",6241-Hire of Vehicle with Driver,TRANSPORT,DIRECT TRANSPORT COSTS,REVENUE
Walsall Council,http://opendatacommunities.org/id/metropolitan-district-council/walsall ,WC156-317,30.11.2023,CHILDRENS,ACE CARS & MINIBUSES LTD,06/11/2023,"3,115.20",6241-Hire of Vehicle with Driver,TRANSPORT,DIRECT TRANSPORT COSTS,REVENUE
Walsall Council,http://opendatacommunities.org/id/metropolitan-district-council/walsall ,WC156-318,30.11.2023,CHILDRENS,ACE CARS & MINIBUSES LTD,06/11/2023,"2,280.00",6241-Hire of Vehicle with Driver,TRANSPORT,DIRECT TRANSPORT COSTS,REVENUE
Walsall Council,http://opendatacommunities.org/id/metropolitan-district-council/walsall ,WC156-319,30.11.2023,CHILDRENS,ACE CARS & MINIBUSES LTD,06/11/2023,"2,280.00",6241-Hire of Vehicle with Driver,TRANSPORT,DIRECT TRANSPORT COSTS,REVENUE
Walsall Council,http://opendatacommunities.org/id/metropolitan-district-council/walsall ,WC156-320,30.11.2023,CHILDRENS,ACE CARS & MINIBUSES LTD,06/11/2023,"2,390.00",6241-Hire of Vehicle with Driver,TRANSPORT,DIRECT TRANSPORT COSTS,REVENUE
Walsall Council,http://opendatacommunities.org/id/metropolitan-district-council/walsall ,WC156-321,30.11.2023,CHILDRENS,ACE CARS & MINIBUSES LTD,06/11/2023,"2,140.00",6241-Hire of Vehicle with Driver,TRANSPORT,DIRECT TRANSPORT COSTS,REVENUE
Walsall Council,http://opendatacommunities.org/id/metropolitan-district-council/walsall ,WC156-322,30.11.2023,CHILDRENS,ACE CARS & MINIBUSES LTD,06/11/2023,"2,140.00",6241-Hire of Vehicle with Driver,TRANSPORT,DIRECT TRANSPORT COSTS,REVENUE
Walsall Council,http://opendatacommunities.org/id/metropolitan-district-council/walsall ,WC156-323,30.11.2023,CHILDRENS,ACE CARS & MINIBUSES LTD,06/11/2023,"2,360.00",6241-Hire of Vehicle with Driver,TRANSPORT,DIRECT TRANSPORT COSTS,REVENUE
Walsall Council,http://opendatacommunities.org/id/metropolitan-district-council/walsall ,WC156-324,30.11.2023,CHILDRENS,ACE CARS & MINIBUSES LTD,06/11/2023,"3,393.80",6241-Hire of Vehicle with Driver,TRANSPORT,DIRECT TRANSPORT COSTS,REVENUE
Walsall Council,http://opendatacommunities.org/id/metropolitan-district-council/walsall ,WC156-325,30.11.2023,CHILDRENS,ACE CARS & MINIBUSES LTD,06/11/2023,"2,140.00",6241-Hire of Vehicle with Driver,TRANSPORT,DIRECT TRANSPORT COSTS,REVENUE
Walsall Council,http://opendatacommunities.org/id/metropolitan-district-council/walsall ,WC156-326,30.11.2023,CHILDRENS,ACE CARS & MINIBUSES LTD,06/11/2023,"2,140.00",6241-Hire of Vehicle with Driver,TRANSPORT,DIRECT TRANSPORT COSTS,REVENUE
Walsall Council,http://opendatacommunities.org/id/metropolitan-district-council/walsall ,WC156-327,30.11.2023,CHILDRENS,ACE CARS & MINIBUSES LTD,06/11/2023,"2,140.00",6241-Hire of Vehicle with Driver,TRANSPORT,DIRECT TRANSPORT COSTS,REVENUE
Walsall Council,http://opendatacommunities.org/id/metropolitan-district-council/walsall ,WC156-328,30.11.2023,CHILDRENS,ACE CARS & MINIBUSES LTD,06/11/2023,"2,140.00",6241-Hire of Vehicle with Driver,TRANSPORT,DIRECT TRANSPORT COSTS,REVENUE
Walsall Council,http://opendatacommunities.org/id/metropolitan-district-council/walsall ,WC156-329,30.11.2023,CHILDRENS,ACE CARS & MINIBUSES LTD,06/11/2023,"2,140.00",6241-Hire of Vehicle with Driver,TRANSPORT,DIRECT TRANSPORT COSTS,REVENUE
Walsall Council,http://opendatacommunities.org/id/metropolitan-district-council/walsall ,WC156-330,30.11.2023,CHILDRENS,ACE CARS & MINIBUSES LTD,06/11/2023,"2,360.00",6241-Hire of Vehicle with Driver,TRANSPORT,DIRECT TRANSPORT COSTS,REVENUE
Walsall Council,http://opendatacommunities.org/id/metropolitan-district-council/walsall ,WC156-331,30.11.2023,CHILDRENS,ACE CARS & MINIBUSES LTD,06/11/2023,"3,170.00",6241-Hire of Vehicle with Driver,TRANSPORT,DIRECT TRANSPORT COSTS,REVENUE
Walsall Council,http://opendatacommunities.org/id/metropolitan-district-council/walsall ,WC156-332,30.11.2023,CHILDRENS,ACE CARS & MINIBUSES LTD,06/11/2023,"3,390.00",6241-Hire of Vehicle with Driver,TRANSPORT,DIRECT TRANSPORT COSTS,REVENUE
Walsall Council,http://opendatacommunities.org/id/metropolitan-district-council/walsall ,WC156-333,30.11.2023,CHILDRENS,ACE CARS & MINIBUSES LTD,06/11/2023,"2,390.00",6241-Hire of Vehicle with Driver,TRANSPORT,DIRECT TRANSPORT COSTS,REVENUE
Walsall Council,http://opendatacommunities.org/id/metropolitan-district-council/walsall ,WC156-334,30.11.2023,CHILDRENS,ACE CARS & MINIBUSES LTD,06/11/2023,"2,629.00",6241-Hire of Vehicle with Driver,TRANSPORT,DIRECT TRANSPORT COSTS,REVENUE
Walsall Council,http://opendatacommunities.org/id/metropolitan-district-council/walsall ,WC156-335,30.11.2023,CHILDRENS,ACE CARS & MINIBUSES LTD,06/11/2023,"2,722.00",6241-Hire of Vehicle with Driver,TRANSPORT,DIRECT TRANSPORT COSTS,REVENUE
Walsall Council,http://opendatacommunities.org/id/metropolitan-district-council/walsall ,WC156-336,30.11.2023,CHILDRENS,ACE CARS & MINIBUSES LTD,06/11/2023,"2,722.00",6241-Hire of Vehicle with Driver,TRANSPORT,DIRECT TRANSPORT COSTS,REVENUE
Walsall Council,http://opendatacommunities.org/id/metropolitan-district-council/walsall ,WC156-337,30.11.2023,CHILDRENS,ACE CARS & MINIBUSES LTD,06/11/2023,"2,390.00",6241-Hire of Vehicle with Driver,TRANSPORT,DIRECT TRANSPORT COSTS,REVENUE
Walsall Council,http://opendatacommunities.org/id/metropolitan-district-council/walsall ,WC156-338,30.11.2023,CHILDRENS,ACE CARS & MINIBUSES LTD,06/11/2023,"2,280.00",6241-Hire of Vehicle with Driver,TRANSPORT,DIRECT TRANSPORT COSTS,REVENUE
Walsall Council,http://opendatacommunities.org/id/metropolitan-district-council/walsall ,WC156-339,30.11.2023,CHILDRENS,ACE CARS & MINIBUSES LTD,06/11/2023,"2,140.00",6241-Hire of Vehicle with Driver,TRANSPORT,DIRECT TRANSPORT COSTS,REVENUE
Walsall Council,http://opendatacommunities.org/id/metropolitan-district-council/walsall ,WC156-340,30.11.2023,CHILDRENS,ACE CARS & MINIBUSES LTD,06/11/2023,"4,248.00",6241-Hire of Vehicle with Driver,TRANSPORT,DIRECT TRANSPORT COSTS,REVENUE
Walsall Council,http://opendatacommunities.org/id/metropolitan-district-council/walsall ,WC156-341,30.11.2023,CHILDRENS,ACE CARS & MINIBUSES LTD,06/11/2023,"2,140.00",6241-Hire of Vehicle with Driver,TRANSPORT,DIRECT TRANSPORT COSTS,REVENUE
Walsall Council,http://opendatacommunities.org/id/metropolitan-district-council/walsall ,WC156-342,30.11.2023,CHILDRENS,ACE CARS & MINIBUSES LTD,06/11/2023,"2,140.00",6241-Hire of Vehicle with Driver,TRANSPORT,DIRECT TRANSPORT COSTS,REVENUE
Walsall Council,http://opendatacommunities.org/id/metropolitan-district-council/walsall ,WC156-343,30.11.2023,CHILDRENS,ACE CARS & MINIBUSES LTD,06/11/2023,"2,140.00",6241-Hire of Vehicle with Driver,TRANSPORT,DIRECT TRANSPORT COSTS,REVENUE
Walsall Council,http://opendatacommunities.org/id/metropolitan-district-council/walsall ,WC156-344,30.11.2023,CHILDRENS,ACE CARS & MINIBUSES LTD,06/11/2023,"2,360.00",6241-Hire of Vehicle with Driver,TRANSPORT,DIRECT TRANSPORT COSTS,REVENUE
Walsall Council,http://opendatacommunities.org/id/metropolitan-district-council/walsall ,WC156-345,30.11.2023,CHILDRENS,ACE CARS & MINIBUSES LTD,06/11/2023,"2,722.00",6241-Hire of Vehicle with Driver,TRANSPORT,DIRECT TRANSPORT COSTS,REVENUE
Walsall Council,http://opendatacommunities.org/id/metropolitan-district-council/walsall ,WC156-346,30.11.2023,CHILDRENS,ACE CARS & MINIBUSES LTD,06/11/2023,"2,722.00",6241-Hire of Vehicle with Driver,TRANSPORT,DIRECT TRANSPORT COSTS,REVENUE
Walsall Council,http://opendatacommunities.org/id/metropolitan-district-council/walsall ,WC156-347,30.11.2023,CHILDRENS,ACE CARS & MINIBUSES LTD,06/11/2023,"2,722.00",6241-Hire of Vehicle with Driver,TRANSPORT,DIRECT TRANSPORT COSTS,REVENUE
Walsall Council,http://opendatacommunities.org/id/metropolitan-district-council/walsall ,WC156-348,30.11.2023,CHILDRENS,ACE CARS & MINIBUSES LTD,06/11/2023,"3,848.00",6241-Hire of Vehicle with Driver,TRANSPORT,DIRECT TRANSPORT COSTS,REVENUE
Walsall Council,http://opendatacommunities.org/id/metropolitan-district-council/walsall ,WC156-349,30.11.2023,ADULT SOCIAL CARE,ACEPAY LTD (COTTAGE NUR HOME),21/11/2023,"2,819.08",6541-Nursing EMI,THIRD PARTY PAYMENTS,PRIVATE CONTRACTOR,REVENUE
Walsall Council,http://opendatacommunities.org/id/metropolitan-district-council/walsall ,WC156-350,30.11.2023,ADULT SOCIAL CARE,ACEPAY LTD (COTTAGE NUR HOME),21/11/2023,"2,413.36",6541-Residential EMI,THIRD PARTY PAYMENTS,PRIVATE CONTRACTOR,REVENUE
Walsall Council,http://opendatacommunities.org/id/metropolitan-district-council/walsall ,WC156-351,30.11.2023,ADULT SOCIAL CARE,ACEPAY LTD (COTTAGE NUR HOME),21/11/2023,"2,413.36",6541-Residential EMI,THIRD PARTY PAYMENTS,PRIVATE CONTRACTOR,REVENUE
Walsall Council,http://opendatacommunities.org/id/metropolitan-district-council/walsall ,WC156-352,30.11.2023,ADULT SOCIAL CARE,ACEPAY LTD (COTTAGE NUR HOME),21/11/2023,"2,819.08",6541-Nursing EMI,THIRD PARTY PAYMENTS,PRIVATE CONTRACTOR,REVENUE
Walsall Council,http://opendatacommunities.org/id/metropolitan-district-council/walsall ,WC156-353,30.11.2023,ADULT SOCIAL CARE,ACEPAY LTD (COTTAGE NUR HOME),21/11/2023,"2,505.36",6541-Nursing,THIRD PARTY PAYMENTS,PRIVATE CONTRACTOR,REVENUE
Walsall Council,http://opendatacommunities.org/id/metropolitan-district-council/walsall ,WC156-354,30.11.2023,ADULT SOCIAL CARE,ACEPAY LTD (COTTAGE NUR HOME),21/11/2023,"2,819.08",6541-Nursing EMI,THIRD PARTY PAYMENTS,PRIVATE CONTRACTOR,REVENUE
Walsall Council,http://opendatacommunities.org/id/metropolitan-district-council/walsall ,WC156-355,30.11.2023,ADULT SOCIAL CARE,ACEPAY LTD (COTTAGE NUR HOME),21/11/2023,"2,505.36",6541-Nursing,THIRD PARTY PAYMENTS,PRIVATE CONTRACTOR,REVENUE
Walsall Council,http://opendatacommunities.org/id/metropolitan-district-council/walsall ,WC156-356,30.11.2023,ADULT SOCIAL CARE,ACEPAY LTD (COTTAGE NUR HOME),21/11/2023,"2,505.36",6541-Nursing,THIRD PARTY PAYMENTS,PRIVATE CONTRACTOR,REVENUE
Walsall Council,http://opendatacommunities.org/id/metropolitan-district-council/walsall ,WC156-357,30.11.2023,ADULT SOCIAL CARE,ACEPAY LTD (COTTAGE NUR HOME),21/11/2023,"2,819.08",6541-Nursing EMI,THIRD PARTY PAYMENTS,PRIVATE CONTRACTOR,REVENUE
Walsall Council,http://opendatacommunities.org/id/metropolitan-district-council/walsall ,WC156-358,30.11.2023,ADULT SOCIAL CARE,ACEPAY LTD (COTTAGE NUR HOME),21/11/2023,"2,413.36",6541-Residential EMI,THIRD PARTY PAYMENTS,PRIVATE CONTRACTOR,REVENUE
Walsall Council,http://opendatacommunities.org/id/metropolitan-district-council/walsall ,WC156-359,30.11.2023,ADULT SOCIAL CARE,ACEPAY LTD (COTTAGE NUR HOME),21/11/2023,"2,505.36",6541-Nursing,THIRD PARTY PAYMENTS,PRIVATE CONTRACTOR,REVENUE
Walsall Council,http://opendatacommunities.org/id/metropolitan-district-council/walsall ,WC156-360,30.11.2023,ADULT SOCIAL CARE,ACEPAY LTD (COTTAGE NUR HOME),21/11/2023,"2,505.36",6541-Nursing,THIRD PARTY PAYMENTS,PRIVATE CONTRACTOR,REVENUE
Walsall Council,http://opendatacommunities.org/id/metropolitan-district-council/walsall ,WC156-361,30.11.2023,ADULT SOCIAL CARE,ACEPAY LTD (COTTAGE NUR HOME),21/11/2023,"2,413.36",6541-Residential EMI,THIRD PARTY PAYMENTS,PRIVATE CONTRACTOR,REVENUE
Walsall Council,http://opendatacommunities.org/id/metropolitan-district-council/walsall ,WC156-362,30.11.2023,ADULT SOCIAL CARE,ACEPAY LTD (COTTAGE NUR HOME),21/11/2023,"2,505.36",6541-Nursing,THIRD PARTY PAYMENTS,PRIVATE CONTRACTOR,REVENUE
Walsall Council,http://opendatacommunities.org/id/metropolitan-district-council/walsall ,WC156-363,30.11.2023,ADULT SOCIAL CARE,ACEPAY LTD (COTTAGE NUR HOME),21/11/2023,"2,505.36",6541-Nursing,THIRD PARTY PAYMENTS,PRIVATE CONTRACTOR,REVENUE
Walsall Council,http://opendatacommunities.org/id/metropolitan-district-council/walsall ,WC156-364,30.11.2023,ADULT SOCIAL CARE,ACEPAY LTD (COTTAGE NUR HOME),21/11/2023,"2,505.36",6541-Nursing,THIRD PARTY PAYMENTS,PRIVATE CONTRACTOR,REVENUE
Walsall Council,http://opendatacommunities.org/id/metropolitan-district-council/walsall ,WC156-365,30.11.2023,ADULT SOCIAL CARE,ACEPAY LTD (COTTAGE NUR HOME),21/11/2023,"2,505.36",6541-Nursing,THIRD PARTY PAYMENTS,PRIVATE CONTRACTOR,REVENUE
Walsall Council,http://opendatacommunities.org/id/metropolitan-district-council/walsall ,WC156-366,30.11.2023,ADULT SOCIAL CARE,ACEPAY LTD (COTTAGE NUR HOME),21/11/2023,"2,505.36",6541-Nursing,THIRD PARTY PAYMENTS,PRIVATE CONTRACTOR,REVENUE
Walsall Council,http://opendatacommunities.org/id/metropolitan-district-council/walsall ,WC156-367,30.11.2023,ADULT SOCIAL CARE,ACEPAY LTD (COTTAGE NUR HOME),21/11/2023,"2,505.36",6541-Nursing,THIRD PARTY PAYMENTS,PRIVATE CONTRACTOR,REVENUE
Walsall Council,http://opendatacommunities.org/id/metropolitan-district-council/walsall ,WC156-368,30.11.2023,ADULT SOCIAL CARE,ACEPAY LTD (COTTAGE NUR HOME),21/11/2023,"1,812.27",6541-Nursing EMI,THIRD PARTY PAYMENTS,PRIVATE CONTRACTOR,REVENUE
Walsall Council,http://opendatacommunities.org/id/metropolitan-district-council/walsall ,WC156-369,30.11.2023,ADULT SOCIAL CARE,ACEPAY LTD (COTTAGE NUR HOME),21/11/2023,"3,059.08",6541-Nursing EMI,THIRD PARTY PAYMENTS,PRIVATE CONTRACTOR,REVENUE
Walsall Council,http://opendatacommunities.org/id/metropolitan-district-council/walsall ,WC156-370,30.11.2023,ADULT SOCIAL CARE,ACEPAY LTD (COTTAGE NUR HOME),21/11/2023,"2,505.36",6541-Nursing,THIRD PARTY PAYMENTS,PRIVATE CONTRACTOR,REVENUE
Walsall Council,http://opendatacommunities.org/id/metropolitan-district-council/walsall ,WC156-371,30.11.2023,ADULT SOCIAL CARE,ACHIEVE TOGETHER LIMITED,21/11/2023,"5,506.08",6541-Residential,THIRD PARTY PAYMENTS,PRIVATE CONTRACTOR,REVENUE
Walsall Council,http://opendatacommunities.org/id/metropolitan-district-council/walsall ,WC156-372,30.11.2023,ADULT SOCIAL CARE,ACHIEVE TOGETHER LIMITED,21/11/2023,"9,178.80",6541-Residential,THIRD PARTY PAYMENTS,PRIVATE CONTRACTOR,REVENUE
Walsall Council,http://opendatacommunities.org/id/metropolitan-district-council/walsall ,WC156-373,30.11.2023,ADULT SOCIAL CARE,ACHIEVE TOGETHER LIMITED,21/11/2023,"3,852.80",6541-Residential,THIRD PARTY PAYMENTS,PRIVATE CONTRACTOR,REVENUE
Walsall Council,http://opendatacommunities.org/id/metropolitan-district-council/walsall ,WC156-374,30.11.2023,ADULT SOCIAL CARE,ACHIEVE TOGETHER LIMITED,21/11/2023,"4,920.72",6541-Residential,THIRD PARTY PAYMENTS,PRIVATE CONTRACTOR,REVENUE
Walsall Council,http://opendatacommunities.org/id/metropolitan-district-council/walsall ,WC156-375,30.11.2023,ADULT SOCIAL CARE,ACHIEVE TOGETHER LIMITED,21/11/2023,"6,572.72",6541-Residential,THIRD PARTY PAYMENTS,PRIVATE CONTRACTOR,REVENUE
Walsall Council,http://opendatacommunities.org/id/metropolitan-district-council/walsall ,WC156-376,30.11.2023,CHILDRENS,ACORN CARE & EDUCATION LTD (SALES),17/11/2023,"27,590.00",1220-Professional Fees & Services,SUPPLIES & SERVICES,SERVICES,REVENUE
Walsall Council,http://opendatacommunities.org/id/metropolitan-district-council/walsall ,WC156-377,30.11.2023,CHILDRENS,ACORN CARE & EDUCATION LTD (SALES),14/11/2023,"6,389.17",1220-Professional Fees & Services,SUPPLIES & SERVICES,SERVICES,REVENUE
Walsall Council,http://opendatacommunities.org/id/metropolitan-district-council/walsall ,WC156-378,30.11.2023,CHILDRENS,ACORN CARE & EDUCATION LTD (SALES),28/11/2023,"21,011.60",6223-External Residential Care-Oth Agency Provision,THIRD PARTY PAYMENTS,PRIVATE CONTRACTOR,REVENUE
Walsall Council,http://opendatacommunities.org/id/metropolitan-district-council/walsall ,WC156-379,30.11.2023,CHILDRENS,ACORN FOSTERING SERVICES LTD,28/11/2023,"3,340.00",6223-Independent Foster Care-Oth Agency Provision,THIRD PARTY PAYMENTS,PRIVATE CONTRACTOR,REVENUE
Walsall Council,http://opendatacommunities.org/id/metropolitan-district-council/walsall ,WC156-380,30.11.2023,CHILDRENS CAPITAL,ACORN MOBILITY SERVICES LTD/ACORN STAIRLIFTS,27/11/2023,"3,390.00",7100-Private Grants,CAPITAL,CAPITAL GRANTS,CAPITAL GRANTS
Walsall Council,http://opendatacommunities.org/id/metropolitan-district-council/walsall ,WC156-381,30.11.2023,CHILDRENS,ACPAS LIMITED,21/11/2023,"1,076.40",6222-Consultant Fees,SUPPLIES & SERVICES,SERVICES,REVENUE
Walsall Council,http://opendatacommunities.org/id/metropolitan-district-council/walsall ,WC156-382,30.11.2023,CHILDRENS,ACPAS LIMITED,14/11/2023,"1,076.40",6222-Consultant Fees,SUPPLIES & SERVICES,SERVICES,REVENUE
Walsall Council,http://opendatacommunities.org/id/metropolitan-district-council/walsall ,WC156-383,30.11.2023,CHILDRENS,ACTIVE CARE SOLUTIONS LTD,28/11/2023,"3,384.40",6223-Independent Foster Care-Oth Agency Provision,THIRD PARTY PAYMENTS,PRIVATE CONTRACTOR,REVENUE
Walsall Council,http://opendatacommunities.org/id/metropolitan-district-council/walsall ,WC156-384,30.11.2023,CHILDRENS,ACTIVE CARE SOLUTIONS LTD,28/11/2023,"3,506.60",6223-Independent Foster Care-Oth Agency Provision,THIRD PARTY PAYMENTS,PRIVATE CONTRACTOR,REVENUE
Walsall Council,http://opendatacommunities.org/id/metropolitan-district-council/walsall ,WC156-385,30.11.2023,CHILDRENS,ACTIVE CARE SOLUTIONS LTD,28/11/2023,"3,514.80",6223-Independent Foster Care-Oth Agency Provision,THIRD PARTY PAYMENTS,PRIVATE CONTRACTOR,REVENUE
Walsall Council,http://opendatacommunities.org/id/metropolitan-district-council/walsall ,WC156-386,30.11.2023,ADULT SOCIAL CARE,REDACTED,02/11/2023,747.92,6541-Direct Payment,THIRD PARTY PAYMENTS,PRIVATE CONTRACTOR,REVENUE
Walsall Council,http://opendatacommunities.org/id/metropolitan-district-council/walsall ,WC156-387,30.11.2023,CHILDRENS,REDACTED,01/11/2023,363.84,6223-Special Guardianship Orders,TRANSFER PAYMENTS,CHILDREN SOCIAL SERVICES CLIENT,REVENUE
Walsall Council,http://opendatacommunities.org/id/metropolitan-district-council/walsall ,WC156-388,30.11.2023,CHILDRENS,REDACTED,16/11/2023,713.84,6223-Special Guardianship Orders,TRANSFER PAYMENTS,CHILDREN SOCIAL SERVICES CLIENT,REVENUE
Walsall Council,http://opendatacommunities.org/id/metropolitan-district-council/walsall ,WC156-389,30.11.2023,CHILDRENS,REDACTED,16/11/2023,350.96,6223-Residents Orders,TRANSFER PAYMENTS,CHILDREN SOCIAL SERVICES CLIENT,REVENUE
Walsall Council,http://opendatacommunities.org/id/metropolitan-district-council/walsall ,WC156-390,30.11.2023,ADULT SOCIAL CARE,REDACTED,02/11/2023,"2,177.80",6541-Direct Payment,THIRD PARTY PAYMENTS,PRIVATE CONTRACTOR,REVENUE
Walsall Council,http://opendatacommunities.org/id/metropolitan-district-council/walsall ,WC156-391,30.11.2023,ADULT SOCIAL CARE,ADVANCE HEALTH CARE (UK) LTD,15/11/2023,"1,242.00",6541-Domiciliary Care,THIRD PARTY PAYMENTS,PRIVATE CONTRACTOR,REVENUE
Walsall Council,http://opendatacommunities.org/id/metropolitan-district-council/walsall ,WC156-392,30.11.2023,ADULT SOCIAL CARE,ADVANCE HEALTH CARE (UK) LTD,15/11/2023,744.00,6541-Domiciliary Care,THIRD PARTY PAYMENTS,PRIVATE CONTRACTOR,REVENUE
Walsall Council,http://opendatacommunities.org/id/metropolitan-district-council/walsall ,WC156-393,30.11.2023,ADULT SOCIAL CARE,ADVANCE HEALTH CARE (UK) LTD,15/11/2023,"1,134.00",6541-Domiciliary Care,THIRD PARTY PAYMENTS,PRIVATE CONTRACTOR,REVENUE
Walsall Council,http://opendatacommunities.org/id/metropolitan-district-council/walsall ,WC156-394,30.11.2023,ADULT SOCIAL CARE,ADVANCE HEALTH CARE (UK) LTD,15/11/2023,"1,050.00",6541-Domiciliary Care,THIRD PARTY PAYMENTS,PRIVATE CONTRACTOR,REVENUE
Walsall Council,http://opendatacommunities.org/id/metropolitan-district-council/walsall ,WC156-395,30.11.2023,ADULT SOCIAL CARE,ADVANCE HEALTH CARE (UK) LTD,15/11/2023,"1,242.00",6541-Domiciliary Care,THIRD PARTY PAYMENTS,PRIVATE CONTRACTOR,REVENUE
Walsall Council,http://opendatacommunities.org/id/metropolitan-district-council/walsall ,WC156-396,30.11.2023,ADULT SOCIAL CARE,ADVANCE HEALTH CARE (UK) LTD,15/11/2023,"1,134.00",6541-Domiciliary Care,THIRD PARTY PAYMENTS,PRIVATE CONTRACTOR,REVENUE
Walsall Council,http://opendatacommunities.org/id/metropolitan-district-council/walsall ,WC156-397,30.11.2023,ADULT SOCIAL CARE,ADVANCE HEALTH CARE (UK) LTD,15/11/2023,840.00,6541-Domiciliary Care,THIRD PARTY PAYMENTS,PRIVATE CONTRACTOR,REVENUE
Walsall Council,http://opendatacommunities.org/id/metropolitan-district-council/walsall ,WC156-398,30.11.2023,ADULT SOCIAL CARE,ADVANCE HEALTH CARE (UK) LTD,15/11/2023,270.00,6541-Domiciliary Care,THIRD PARTY PAYMENTS,PRIVATE CONTRACTOR,REVENUE
Walsall Council,http://opendatacommunities.org/id/metropolitan-district-council/walsall ,WC156-399,30.11.2023,ADULT SOCIAL CARE,ADVANCE HEALTH CARE (UK) LTD,15/11/2023,828.00,6541-Domiciliary Care,THIRD PARTY PAYMENTS,PRIVATE CONTRACTOR,REVENUE
Walsall Council,http://opendatacommunities.org/id/metropolitan-district-council/walsall ,WC156-400,30.11.2023,ADULT SOCIAL CARE,ADVANCE HEALTH CARE (UK) LTD,15/11/2023,"1,050.00",6541-Domiciliary Care,THIRD PARTY PAYMENTS,PRIVATE CONTRACTOR,REVENUE
Walsall Council,http://opendatacommunities.org/id/metropolitan-district-council/walsall ,WC156-401,30.11.2023,ADULT SOCIAL CARE,ADVANCE HEALTH CARE (UK) LTD,15/11/2023,346.50,6541-Domiciliary Care,THIRD PARTY PAYMENTS,PRIVATE CONTRACTOR,REVENUE
Walsall Council,http://opendatacommunities.org/id/metropolitan-district-council/walsall ,WC156-402,30.11.2023,ADULT SOCIAL CARE,ADVANCE HEALTH CARE (UK) LTD,15/11/2023,948.00,6541-Domiciliary Care,THIRD PARTY PAYMENTS,PRIVATE CONTRACTOR,REVENUE
Walsall Council,http://opendatacommunities.org/id/metropolitan-district-council/walsall ,WC156-403,30.11.2023,ADULT SOCIAL CARE,ADVANCE HEALTH CARE (UK) LTD,15/11/2023,546.00,6541-Domiciliary Care,THIRD PARTY PAYMENTS,PRIVATE CONTRACTOR,REVENUE
Walsall Council,http://opendatacommunities.org/id/metropolitan-district-council/walsall ,WC156-404,30.11.2023,ADULT SOCIAL CARE,ADVANCE HEALTH CARE (UK) LTD,15/11/2023,786.00,6541-Domiciliary Care,THIRD PARTY PAYMENTS,PRIVATE CONTRACTOR,REVENUE
Walsall Council,http://opendatacommunities.org/id/metropolitan-district-council/walsall ,WC156-405,30.11.2023,ADULT SOCIAL CARE,ADVANCE HEALTH CARE (UK) LTD,15/11/2023,"1,278.00",6541-Domiciliary Care,THIRD PARTY PAYMENTS,PRIVATE CONTRACTOR,REVENUE
Walsall Council,http://opendatacommunities.org/id/metropolitan-district-council/walsall ,WC156-406,30.11.2023,ADULT SOCIAL CARE,ADVANCE HEALTH CARE (UK) LTD,06/11/2023,283.50,6541-Domiciliary Care,THIRD PARTY PAYMENTS,PRIVATE CONTRACTOR,REVENUE
Walsall Council,http://opendatacommunities.org/id/metropolitan-district-council/walsall ,WC156-407,30.11.2023,ADULT SOCIAL CARE,ADVANCE HEALTH CARE (UK) LTD,06/11/2023,420.00,6541-Domiciliary Care,THIRD PARTY PAYMENTS,PRIVATE CONTRACTOR,REVENUE
Walsall Council,http://opendatacommunities.org/id/metropolitan-district-council/walsall ,WC156-408,30.11.2023,ADULT SOCIAL CARE,ADVANCE HEALTH CARE (UK) LTD,06/11/2023,378.00,6541-Domiciliary Care,THIRD PARTY PAYMENTS,PRIVATE CONTRACTOR,REVENUE
Walsall Council,http://opendatacommunities.org/id/metropolitan-district-council/walsall ,WC156-409,30.11.2023,ADULT SOCIAL CARE,ADVANCE HEALTH CARE (UK) LTD,06/11/2023,963.00,6541-Domiciliary Care,THIRD PARTY PAYMENTS,PRIVATE CONTRACTOR,REVENUE
Walsall Council,http://opendatacommunities.org/id/metropolitan-district-council/walsall ,WC156-410,30.11.2023,ADULT SOCIAL CARE,ADVANCE HEALTH CARE (UK) LTD,06/11/2023,378.00,6541-Domiciliary Care,THIRD PARTY PAYMENTS,PRIVATE CONTRACTOR,REVENUE
Walsall Council,http://opendatacommunities.org/id/metropolitan-district-council/walsall ,WC156-411,30.11.2023,ADULT SOCIAL CARE,ADVANCE HEALTH CARE (UK) LTD,06/11/2023,441.00,6541-Domiciliary Care,THIRD PARTY PAYMENTS,PRIVATE CONTRACTOR,REVENUE
Walsall Council,http://opendatacommunities.org/id/metropolitan-district-council/walsall ,WC156-412,30.11.2023,ADULT SOCIAL CARE,ADVANCE HEALTH CARE (UK) LTD,06/11/2023,301.50,6541-Domiciliary Care,THIRD PARTY PAYMENTS,PRIVATE CONTRACTOR,REVENUE
Walsall Council,http://opendatacommunities.org/id/metropolitan-district-council/walsall ,WC156-413,30.11.2023,ADULT SOCIAL CARE,ADVANCE HEALTH CARE (UK) LTD,06/11/2023,301.50,6541-Domiciliary Care,THIRD PARTY PAYMENTS,PRIVATE CONTRACTOR,REVENUE
Walsall Council,http://opendatacommunities.org/id/metropolitan-district-council/walsall ,WC156-414,30.11.2023,ADULT SOCIAL CARE,ADVANCE HEALTH CARE (UK) LTD,06/11/2023,567.00,6541-Domiciliary Care,THIRD PARTY PAYMENTS,PRIVATE CONTRACTOR,REVENUE
Walsall Council,http://opendatacommunities.org/id/metropolitan-district-council/walsall ,WC156-415,30.11.2023,ADULT SOCIAL CARE,ADVANCE HEALTH CARE (UK) LTD,06/11/2023,630.00,6541-Domiciliary Care,THIRD PARTY PAYMENTS,PRIVATE CONTRACTOR,REVENUE
Walsall Council,http://opendatacommunities.org/id/metropolitan-district-council/walsall ,WC156-416,30.11.2023,ADULT SOCIAL CARE,ADVANCE HEALTH CARE (UK) LTD,06/11/2023,-441.00,6541-Domiciliary Care,THIRD PARTY PAYMENTS,PRIVATE CONTRACTOR,REVENUE
Walsall Council,http://opendatacommunities.org/id/metropolitan-district-council/walsall ,WC156-417,30.11.2023,ADULT SOCIAL CARE,ADVANCE HEALTH CARE (UK) LTD,06/11/2023,252.00,6541-Domiciliary Care,THIRD PARTY PAYMENTS,PRIVATE CONTRACTOR,REVENUE
Walsall Council,http://opendatacommunities.org/id/metropolitan-district-council/walsall ,WC156-418,30.11.2023,ADULT SOCIAL CARE,ADVANCE HEALTH CARE (UK) LTD,06/11/2023,504.00,6541-Domiciliary Care,THIRD PARTY PAYMENTS,PRIVATE CONTRACTOR,REVENUE
Walsall Council,http://opendatacommunities.org/id/metropolitan-district-council/walsall ,WC156-419,30.11.2023,ADULT SOCIAL CARE,ADVANCE HEALTH CARE (UK) LTD,06/11/2023,756.00,6541-Domiciliary Care,THIRD PARTY PAYMENTS,PRIVATE CONTRACTOR,REVENUE
Walsall Council,http://opendatacommunities.org/id/metropolitan-district-council/walsall ,WC156-420,30.11.2023,ADULT SOCIAL CARE,ADVANCE HEALTH CARE (UK) LTD,06/11/2023,283.50,6541-Domiciliary Care,THIRD PARTY PAYMENTS,PRIVATE CONTRACTOR,REVENUE
Walsall Council,http://opendatacommunities.org/id/metropolitan-district-council/walsall ,WC156-421,30.11.2023,ADULT SOCIAL CARE,ADVANCE HEALTH CARE (UK) LTD,06/11/2023,639.00,6541-Domiciliary Care,THIRD PARTY PAYMENTS,PRIVATE CONTRACTOR,REVENUE
Walsall Council,http://opendatacommunities.org/id/metropolitan-district-council/walsall ,WC156-422,30.11.2023,ADULT SOCIAL CARE,ADVANCE HEALTH CARE (UK) LTD,06/11/2023,567.00,6541-Domiciliary Care,THIRD PARTY PAYMENTS,PRIVATE CONTRACTOR,REVENUE
Walsall Council,http://opendatacommunities.org/id/metropolitan-district-council/walsall ,WC156-423,30.11.2023,ADULT SOCIAL CARE,ADVANCE HEALTH CARE (UK) LTD,06/11/2023,342.00,6541-Domiciliary Care,THIRD PARTY PAYMENTS,PRIVATE CONTRACTOR,REVENUE
Walsall Council,http://opendatacommunities.org/id/metropolitan-district-council/walsall ,WC156-424,30.11.2023,ADULT SOCIAL CARE,ADVANCE HEALTH CARE (UK) LTD,06/11/2023,567.00,6541-Domiciliary Care,THIRD PARTY PAYMENTS,PRIVATE CONTRACTOR,REVENUE
Walsall Council,http://opendatacommunities.org/id/metropolitan-district-council/walsall ,WC156-425,30.11.2023,ADULT SOCIAL CARE,ADVANCE HEALTH CARE (UK) LTD,06/11/2023,630.00,6541-Domiciliary Care,THIRD PARTY PAYMENTS,PRIVATE CONTRACTOR,REVENUE
Walsall Council,http://opendatacommunities.org/id/metropolitan-district-council/walsall ,WC156-426,30.11.2023,ADULT SOCIAL CARE,ADVANCE HEALTH CARE (UK) LTD,06/11/2023,567.00,6541-Domiciliary Care,THIRD PARTY PAYMENTS,PRIVATE CONTRACTOR,REVENUE
Walsall Council,http://opendatacommunities.org/id/metropolitan-district-council/walsall ,WC156-427,30.11.2023,ADULT SOCIAL CARE,ADVANCE HEALTH CARE (UK) LTD,06/11/2023,504.00,6541-Domiciliary Care,THIRD PARTY PAYMENTS,PRIVATE CONTRACTOR,REVENUE
Walsall Council,http://opendatacommunities.org/id/metropolitan-district-council/walsall ,WC156-428,30.11.2023,ADULT SOCIAL CARE,ADVANCE HEALTH CARE (UK) LTD,06/11/2023,441.00,6541-Domiciliary Care,THIRD PARTY PAYMENTS,PRIVATE CONTRACTOR,REVENUE
Walsall Council,http://opendatacommunities.org/id/metropolitan-district-council/walsall ,WC156-429,30.11.2023,ADULT SOCIAL CARE,ADVANCE HEALTH CARE (UK) LTD,06/11/2023,283.50,6541-Domiciliary Care,THIRD PARTY PAYMENTS,PRIVATE CONTRACTOR,REVENUE
Walsall Council,http://opendatacommunities.org/id/metropolitan-district-council/walsall ,WC156-430,30.11.2023,ADULT SOCIAL CARE,ADVANCE HEALTH CARE (UK) LTD,06/11/2023,459.00,6541-Domiciliary Care,THIRD PARTY PAYMENTS,PRIVATE CONTRACTOR,REVENUE
Walsall Council,http://opendatacommunities.org/id/metropolitan-district-council/walsall ,WC156-431,30.11.2023,ADULT SOCIAL CARE,ADVANCE HEALTH CARE (UK) LTD,06/11/2023,666.00,6541-Domiciliary Care,THIRD PARTY PAYMENTS,PRIVATE CONTRACTOR,REVENUE
Walsall Council,http://opendatacommunities.org/id/metropolitan-district-council/walsall ,WC156-432,30.11.2023,ADULT SOCIAL CARE,ADVANCE HEALTH CARE (UK) LTD,06/11/2023,963.00,6541-Domiciliary Care,THIRD PARTY PAYMENTS,PRIVATE CONTRACTOR,REVENUE
Walsall Council,http://opendatacommunities.org/id/metropolitan-district-council/walsall ,WC156-433,30.11.2023,ADULT SOCIAL CARE,ADVANCE HEALTH CARE (UK) LTD,06/11/2023,378.00,6541-Domiciliary Care,THIRD PARTY PAYMENTS,PRIVATE CONTRACTOR,REVENUE
Walsall Council,http://opendatacommunities.org/id/metropolitan-district-council/walsall ,WC156-434,30.11.2023,ADULT SOCIAL CARE,ADVANCE HEALTH CARE (UK) LTD,06/11/2023,666.00,6541-Domiciliary Care,THIRD PARTY PAYMENTS,PRIVATE CONTRACTOR,REVENUE
Walsall Council,http://opendatacommunities.org/id/metropolitan-district-council/walsall ,WC156-435,30.11.2023,ADULT SOCIAL CARE,ADVANCE HEALTH CARE (UK) LTD,06/11/2023,441.00,6541-Domiciliary Care,THIRD PARTY PAYMENTS,PRIVATE CONTRACTOR,REVENUE
Walsall Council,http://opendatacommunities.org/id/metropolitan-district-council/walsall ,WC156-436,30.11.2023,ADULT SOCIAL CARE,ADVANCE HEALTH CARE (UK) LTD,06/11/2023,301.50,6541-Domiciliary Care,THIRD PARTY PAYMENTS,PRIVATE CONTRACTOR,REVENUE
Walsall Council,http://opendatacommunities.org/id/metropolitan-district-council/walsall ,WC156-437,30.11.2023,ADULT SOCIAL CARE,ADVANCE HEALTH CARE (UK) LTD,06/11/2023,567.00,6541-Domiciliary Care,THIRD PARTY PAYMENTS,PRIVATE CONTRACTOR,REVENUE
Walsall Council,http://opendatacommunities.org/id/metropolitan-district-council/walsall ,WC156-438,30.11.2023,ADULT SOCIAL CARE,ADVANCE HEALTH CARE (UK) LTD,06/11/2023,630.00,6541-Domiciliary Care,THIRD PARTY PAYMENTS,PRIVATE CONTRACTOR,REVENUE
Walsall Council,http://opendatacommunities.org/id/metropolitan-district-council/walsall ,WC156-439,30.11.2023,ADULT SOCIAL CARE,ADVANCE HEALTH CARE (UK) LTD,06/11/2023,252.00,6541-Domiciliary Care,THIRD PARTY PAYMENTS,PRIVATE CONTRACTOR,REVENUE
Walsall Council,http://opendatacommunities.org/id/metropolitan-district-council/walsall ,WC156-440,30.11.2023,ADULT SOCIAL CARE,ADVANCE HEALTH CARE (UK) LTD,06/11/2023,567.00,6541-Domiciliary Care,THIRD PARTY PAYMENTS,PRIVATE CONTRACTOR,REVENUE
Walsall Council,http://opendatacommunities.org/id/metropolitan-district-council/walsall ,WC156-441,30.11.2023,ADULT SOCIAL CARE,ADVANCE HEALTH CARE (UK) LTD,06/11/2023,504.00,6541-Domiciliary Care,THIRD PARTY PAYMENTS,PRIVATE CONTRACTOR,REVENUE
Walsall Council,http://opendatacommunities.org/id/metropolitan-district-council/walsall ,WC156-442,30.11.2023,ADULT SOCIAL CARE,ADVANCE HEALTH CARE (UK) LTD,06/11/2023,283.50,6541-Domiciliary Care,THIRD PARTY PAYMENTS,PRIVATE CONTRACTOR,REVENUE
Walsall Council,http://opendatacommunities.org/id/metropolitan-district-council/walsall ,WC156-443,30.11.2023,ADULT SOCIAL CARE,ADVANCE HEALTH CARE (UK) LTD,06/11/2023,639.00,6541-Domiciliary Care,THIRD PARTY PAYMENTS,PRIVATE CONTRACTOR,REVENUE
Walsall Council,http://opendatacommunities.org/id/metropolitan-district-council/walsall ,WC156-444,30.11.2023,ADULT SOCIAL CARE,ADVANCE HEALTH CARE (UK) LTD,06/11/2023,283.50,6541-Domiciliary Care,THIRD PARTY PAYMENTS,PRIVATE CONTRACTOR,REVENUE
Walsall Council,http://opendatacommunities.org/id/metropolitan-district-council/walsall ,WC156-445,30.11.2023,ADULT SOCIAL CARE,ADVANCE HEALTH CARE (UK) LTD,06/11/2023,420.00,6541-Domiciliary Care,THIRD PARTY PAYMENTS,PRIVATE CONTRACTOR,REVENUE
Walsall Council,http://opendatacommunities.org/id/metropolitan-district-council/walsall ,WC156-446,30.11.2023,ADULT SOCIAL CARE,ADVANCE HEALTH CARE (UK) LTD,06/11/2023,378.00,6541-Domiciliary Care,THIRD PARTY PAYMENTS,PRIVATE CONTRACTOR,REVENUE
Walsall Council,http://opendatacommunities.org/id/metropolitan-district-council/walsall ,WC156-447,30.11.2023,ADULT SOCIAL CARE,ADVANCE HEALTH CARE (UK) LTD,06/11/2023,567.00,6541-Domiciliary Care,THIRD PARTY PAYMENTS,PRIVATE CONTRACTOR,REVENUE
Walsall Council,http://opendatacommunities.org/id/metropolitan-district-council/walsall ,WC156-448,30.11.2023,ADULT SOCIAL CARE,ADVANCE HEALTH CARE (UK) LTD,06/11/2023,756.00,6541-Domiciliary Care,THIRD PARTY PAYMENTS,PRIVATE CONTRACTOR,REVENUE
Walsall Council,http://opendatacommunities.org/id/metropolitan-district-council/walsall ,WC156-449,30.11.2023,ADULT SOCIAL CARE,ADVANCE HEALTH CARE (UK) LTD,06/11/2023,630.00,6541-Domiciliary Care,THIRD PARTY PAYMENTS,PRIVATE CONTRACTOR,REVENUE
Walsall Council,http://opendatacommunities.org/id/metropolitan-district-council/walsall ,WC156-450,30.11.2023,ADULT SOCIAL CARE,ADVANCE HEALTH CARE (UK) LTD,06/11/2023,567.00,6541-Domiciliary Care,THIRD PARTY PAYMENTS,PRIVATE CONTRACTOR,REVENUE
Walsall Council,http://opendatacommunities.org/id/metropolitan-district-council/walsall ,WC156-451,30.11.2023,ADULT SOCIAL CARE,ADVANCE HEALTH CARE (UK) LTD,06/11/2023,504.00,6541-Domiciliary Care,THIRD PARTY PAYMENTS,PRIVATE CONTRACTOR,REVENUE
Walsall Council,http://opendatacommunities.org/id/metropolitan-district-council/walsall ,WC156-452,30.11.2023,ADULT SOCIAL CARE,ADVANCE HEALTH CARE (UK) LTD,06/11/2023,342.00,6541-Domiciliary Care,THIRD PARTY PAYMENTS,PRIVATE CONTRACTOR,REVENUE
Walsall Council,http://opendatacommunities.org/id/metropolitan-district-council/walsall ,WC156-453,30.11.2023,ADULT SOCIAL CARE,ADVANCE HEALTH CARE (UK) LTD,06/11/2023,441.00,6541-Domiciliary Care,THIRD PARTY PAYMENTS,PRIVATE CONTRACTOR,REVENUE
Walsall Council,http://opendatacommunities.org/id/metropolitan-district-council/walsall ,WC156-454,30.11.2023,ADULT SOCIAL CARE,ADVANCE HEALTH CARE (UK) LTD,06/11/2023,360.00,6541-Domiciliary Care,THIRD PARTY PAYMENTS,PRIVATE CONTRACTOR,REVENUE
Walsall Council,http://opendatacommunities.org/id/metropolitan-district-council/walsall ,WC156-455,30.11.2023,ADULT SOCIAL CARE,ADVANCE HEALTH CARE (UK) LTD,06/11/2023,441.00,6541-Domiciliary Care,THIRD PARTY PAYMENTS,PRIVATE CONTRACTOR,REVENUE
Walsall Council,http://opendatacommunities.org/id/metropolitan-district-council/walsall ,WC156-456,30.11.2023,ADULT SOCIAL CARE,ADVANCE HEALTH CARE (UK) LTD,06/11/2023,283.50,6541-Domiciliary Care,THIRD PARTY PAYMENTS,PRIVATE CONTRACTOR,REVENUE
Walsall Council,http://opendatacommunities.org/id/metropolitan-district-council/walsall ,WC156-457,30.11.2023,ADULT SOCIAL CARE,ADVANCE HEALTH CARE (UK) LTD,06/11/2023,891.00,6541-Domiciliary Care,THIRD PARTY PAYMENTS,PRIVATE CONTRACTOR,REVENUE
Walsall Council,http://opendatacommunities.org/id/metropolitan-district-council/walsall ,WC156-458,30.11.2023,ADULT SOCIAL CARE,ADVANCE HEALTH CARE (UK) LTD,15/11/2023,532.50,6554-Professional Services-Priv Contractor & Other Agencies,THIRD PARTY PAYMENTS,PRIVATE CONTRACTOR,REVENUE
Walsall Council,http://opendatacommunities.org/id/metropolitan-district-council/walsall ,WC156-459,30.11.2023,ADULT SOCIAL CARE,ADVANCE HEALTH CARE (UK) LTD,15/11/2023,"1,458.00",6554-Professional Services-Priv Contractor & Other Agencies,THIRD PARTY PAYMENTS,PRIVATE CONTRACTOR,REVENUE
Walsall Council,http://opendatacommunities.org/id/metropolitan-district-council/walsall ,WC156-460,30.11.2023,ADULT SOCIAL CARE,ADVANCE HEALTH CARE (UK) LTD,15/11/2023,405.00,6554-Professional Services-Priv Contractor & Other Agencies,THIRD PARTY PAYMENTS,PRIVATE CONTRACTOR,REVENUE
Walsall Council,http://opendatacommunities.org/id/metropolitan-district-council/walsall ,WC156-461,30.11.2023,ADULT SOCIAL CARE,ADVANCE HEALTH CARE (UK) LTD,21/11/2023,283.50,6541-Domiciliary Care,THIRD PARTY PAYMENTS,PRIVATE CONTRACTOR,REVENUE
Walsall Council,http://opendatacommunities.org/id/metropolitan-district-council/walsall ,WC156-462,30.11.2023,ADULT SOCIAL CARE,ADVANCE HEALTH CARE (UK) LTD,21/11/2023,420.00,6541-Domiciliary Care,THIRD PARTY PAYMENTS,PRIVATE CONTRACTOR,REVENUE
Walsall Council,http://opendatacommunities.org/id/metropolitan-district-council/walsall ,WC156-463,30.11.2023,ADULT SOCIAL CARE,ADVANCE HEALTH CARE (UK) LTD,21/11/2023,378.00,6541-Domiciliary Care,THIRD PARTY PAYMENTS,PRIVATE CONTRACTOR,REVENUE
Walsall Council,http://opendatacommunities.org/id/metropolitan-district-council/walsall ,WC156-464,30.11.2023,ADULT SOCIAL CARE,ADVANCE HEALTH CARE (UK) LTD,21/11/2023,378.00,6541-Domiciliary Care,THIRD PARTY PAYMENTS,PRIVATE CONTRACTOR,REVENUE
Walsall Council,http://opendatacommunities.org/id/metropolitan-district-council/walsall ,WC156-465,30.11.2023,ADULT SOCIAL CARE,ADVANCE HEALTH CARE (UK) LTD,21/11/2023,963.00,6541-Domiciliary Care,THIRD PARTY PAYMENTS,PRIVATE CONTRACTOR,REVENUE
Walsall Council,http://opendatacommunities.org/id/metropolitan-district-council/walsall ,WC156-466,30.11.2023,ADULT SOCIAL CARE,ADVANCE HEALTH CARE (UK) LTD,21/11/2023,441.00,6541-Domiciliary Care,THIRD PARTY PAYMENTS,PRIVATE CONTRACTOR,REVENUE
Walsall Council,http://opendatacommunities.org/id/metropolitan-district-council/walsall ,WC156-467,30.11.2023,ADULT SOCIAL CARE,ADVANCE HEALTH CARE (UK) LTD,21/11/2023,301.50,6541-Domiciliary Care,THIRD PARTY PAYMENTS,PRIVATE CONTRACTOR,REVENUE
Walsall Council,http://opendatacommunities.org/id/metropolitan-district-council/walsall ,WC156-468,30.11.2023,ADULT SOCIAL CARE,ADVANCE HEALTH CARE (UK) LTD,21/11/2023,567.00,6541-Domiciliary Care,THIRD PARTY PAYMENTS,PRIVATE CONTRACTOR,REVENUE
Walsall Council,http://opendatacommunities.org/id/metropolitan-district-council/walsall ,WC156-469,30.11.2023,ADULT SOCIAL CARE,ADVANCE HEALTH CARE (UK) LTD,21/11/2023,630.00,6541-Domiciliary Care,THIRD PARTY PAYMENTS,PRIVATE CONTRACTOR,REVENUE
Walsall Council,http://opendatacommunities.org/id/metropolitan-district-council/walsall ,WC156-470,30.11.2023,ADULT SOCIAL CARE,ADVANCE HEALTH CARE (UK) LTD,21/11/2023,252.00,6541-Domiciliary Care,THIRD PARTY PAYMENTS,PRIVATE CONTRACTOR,REVENUE
Walsall Council,http://opendatacommunities.org/id/metropolitan-district-council/walsall ,WC156-471,30.11.2023,ADULT SOCIAL CARE,ADVANCE HEALTH CARE (UK) LTD,21/11/2023,567.00,6541-Domiciliary Care,THIRD PARTY PAYMENTS,PRIVATE CONTRACTOR,REVENUE
Walsall Council,http://opendatacommunities.org/id/metropolitan-district-council/walsall ,WC156-472,30.11.2023,ADULT SOCIAL CARE,ADVANCE HEALTH CARE (UK) LTD,21/11/2023,666.00,6541-Domiciliary Care,THIRD PARTY PAYMENTS,PRIVATE CONTRACTOR,REVENUE
Walsall Council,http://opendatacommunities.org/id/metropolitan-district-council/walsall ,WC156-473,30.11.2023,ADULT SOCIAL CARE,ADVANCE HEALTH CARE (UK) LTD,21/11/2023,504.00,6541-Domiciliary Care,THIRD PARTY PAYMENTS,PRIVATE CONTRACTOR,REVENUE
Walsall Council,http://opendatacommunities.org/id/metropolitan-district-council/walsall ,WC156-474,30.11.2023,ADULT SOCIAL CARE,ADVANCE HEALTH CARE (UK) LTD,21/11/2023,630.00,6541-Domiciliary Care,THIRD PARTY PAYMENTS,PRIVATE CONTRACTOR,REVENUE
Walsall Council,http://opendatacommunities.org/id/metropolitan-district-council/walsall ,WC156-475,30.11.2023,ADULT SOCIAL CARE,ADVANCE HEALTH CARE (UK) LTD,21/11/2023,567.00,6541-Domiciliary Care,THIRD PARTY PAYMENTS,PRIVATE CONTRACTOR,REVENUE
Walsall Council,http://opendatacommunities.org/id/metropolitan-district-council/walsall ,WC156-476,30.11.2023,ADULT SOCIAL CARE,ADVANCE HEALTH CARE (UK) LTD,21/11/2023,283.50,6541-Domiciliary Care,THIRD PARTY PAYMENTS,PRIVATE CONTRACTOR,REVENUE
Walsall Council,http://opendatacommunities.org/id/metropolitan-district-council/walsall ,WC156-477,30.11.2023,ADULT SOCIAL CARE,ADVANCE HEALTH CARE (UK) LTD,21/11/2023,639.00,6541-Domiciliary Care,THIRD PARTY PAYMENTS,PRIVATE CONTRACTOR,REVENUE
Walsall Council,http://opendatacommunities.org/id/metropolitan-district-council/walsall ,WC156-478,30.11.2023,ADULT SOCIAL CARE,ADVANCE HEALTH CARE (UK) LTD,21/11/2023,567.00,6541-Domiciliary Care,THIRD PARTY PAYMENTS,PRIVATE CONTRACTOR,REVENUE
Walsall Council,http://opendatacommunities.org/id/metropolitan-district-council/walsall ,WC156-479,30.11.2023,ADULT SOCIAL CARE,ADVANCE HEALTH CARE (UK) LTD,21/11/2023,756.00,6541-Domiciliary Care,THIRD PARTY PAYMENTS,PRIVATE CONTRACTOR,REVENUE
Walsall Council,http://opendatacommunities.org/id/metropolitan-district-council/walsall ,WC156-480,30.11.2023,ADULT SOCIAL CARE,ADVANCE HEALTH CARE (UK) LTD,21/11/2023,342.00,6541-Domiciliary Care,THIRD PARTY PAYMENTS,PRIVATE CONTRACTOR,REVENUE
Walsall Council,http://opendatacommunities.org/id/metropolitan-district-council/walsall ,WC156-481,30.11.2023,ADULT SOCIAL CARE,ADVANCE HEALTH CARE (UK) LTD,21/11/2023,480.00,6541-Domiciliary Care,THIRD PARTY PAYMENTS,PRIVATE CONTRACTOR,REVENUE
Walsall Council,http://opendatacommunities.org/id/metropolitan-district-council/walsall ,WC156-482,30.11.2023,ADULT SOCIAL CARE,ADVANCE HEALTH CARE (UK) LTD,21/11/2023,283.50,6541-Domiciliary Care,THIRD PARTY PAYMENTS,PRIVATE CONTRACTOR,REVENUE
Walsall Council,http://opendatacommunities.org/id/metropolitan-district-council/walsall ,WC156-483,30.11.2023,ADULT SOCIAL CARE,ADVANCE HEALTH CARE (UK) LTD,21/11/2023,891.00,6541-Domiciliary Care,THIRD PARTY PAYMENTS,PRIVATE CONTRACTOR,REVENUE
Walsall Council,http://opendatacommunities.org/id/metropolitan-district-council/walsall ,WC156-484,30.11.2023,ADULT SOCIAL CARE,ADVANCE HEALTH CARE (UK) LTD,21/11/2023,441.00,6541-Domiciliary Care,THIRD PARTY PAYMENTS,PRIVATE CONTRACTOR,REVENUE
Walsall Council,http://opendatacommunities.org/id/metropolitan-district-council/walsall ,WC156-485,30.11.2023,ADULT SOCIAL CARE,ADVANCE HEALTH CARE (UK) LTD,21/11/2023,441.00,6541-Domiciliary Care,THIRD PARTY PAYMENTS,PRIVATE CONTRACTOR,REVENUE
Walsall Council,http://opendatacommunities.org/id/metropolitan-district-council/walsall ,WC156-486,30.11.2023,ADULT SOCIAL CARE,ADVANCE HEALTH CARE (UK) LTD,21/11/2023,567.00,6541-Domiciliary Care,THIRD PARTY PAYMENTS,PRIVATE CONTRACTOR,REVENUE
Walsall Council,http://opendatacommunities.org/id/metropolitan-district-council/walsall ,WC156-487,30.11.2023,ADULT SOCIAL CARE,ADVANCE HEALTH CARE (UK) LTD,21/11/2023,963.00,6541-Domiciliary Care,THIRD PARTY PAYMENTS,PRIVATE CONTRACTOR,REVENUE
Walsall Council,http://opendatacommunities.org/id/metropolitan-district-council/walsall ,WC156-488,30.11.2023,ADULT SOCIAL CARE,ADVANCE HEALTH CARE (UK) LTD,21/11/2023,441.00,6541-Domiciliary Care,THIRD PARTY PAYMENTS,PRIVATE CONTRACTOR,REVENUE
Walsall Council,http://opendatacommunities.org/id/metropolitan-district-council/walsall ,WC156-489,30.11.2023,ADULT SOCIAL CARE,ADVANCE HEALTH CARE (UK) LTD,21/11/2023,283.50,6541-Domiciliary Care,THIRD PARTY PAYMENTS,PRIVATE CONTRACTOR,REVENUE
Walsall Council,http://opendatacommunities.org/id/metropolitan-district-council/walsall ,WC156-490,30.11.2023,ADULT SOCIAL CARE,ADVANCE HEALTH CARE (UK) LTD,21/11/2023,420.00,6541-Domiciliary Care,THIRD PARTY PAYMENTS,PRIVATE CONTRACTOR,REVENUE
Walsall Council,http://opendatacommunities.org/id/metropolitan-district-council/walsall ,WC156-491,30.11.2023,ADULT SOCIAL CARE,ADVANCE HEALTH CARE (UK) LTD,21/11/2023,378.00,6541-Domiciliary Care,THIRD PARTY PAYMENTS,PRIVATE CONTRACTOR,REVENUE
Walsall Council,http://opendatacommunities.org/id/metropolitan-district-council/walsall ,WC156-492,30.11.2023,ADULT SOCIAL CARE,ADVANCE HEALTH CARE (UK) LTD,21/11/2023,666.00,6541-Domiciliary Care,THIRD PARTY PAYMENTS,PRIVATE CONTRACTOR,REVENUE
Walsall Council,http://opendatacommunities.org/id/metropolitan-district-council/walsall ,WC156-493,30.11.2023,ADULT SOCIAL CARE,ADVANCE HEALTH CARE (UK) LTD,21/11/2023,301.50,6541-Domiciliary Care,THIRD PARTY PAYMENTS,PRIVATE CONTRACTOR,REVENUE
Walsall Council,http://opendatacommunities.org/id/metropolitan-district-council/walsall ,WC156-494,30.11.2023,ADULT SOCIAL CARE,ADVANCE HEALTH CARE (UK) LTD,21/11/2023,630.00,6541-Domiciliary Care,THIRD PARTY PAYMENTS,PRIVATE CONTRACTOR,REVENUE
Walsall Council,http://opendatacommunities.org/id/metropolitan-district-council/walsall ,WC156-495,30.11.2023,ADULT SOCIAL CARE,ADVANCE HEALTH CARE (UK) LTD,21/11/2023,252.00,6541-Domiciliary Care,THIRD PARTY PAYMENTS,PRIVATE CONTRACTOR,REVENUE
Walsall Council,http://opendatacommunities.org/id/metropolitan-district-council/walsall ,WC156-496,30.11.2023,ADULT SOCIAL CARE,ADVANCE HEALTH CARE (UK) LTD,21/11/2023,567.00,6541-Domiciliary Care,THIRD PARTY PAYMENTS,PRIVATE CONTRACTOR,REVENUE
Walsall Council,http://opendatacommunities.org/id/metropolitan-district-council/walsall ,WC156-497,30.11.2023,ADULT SOCIAL CARE,ADVANCE HEALTH CARE (UK) LTD,21/11/2023,504.00,6541-Domiciliary Care,THIRD PARTY PAYMENTS,PRIVATE CONTRACTOR,REVENUE
Walsall Council,http://opendatacommunities.org/id/metropolitan-district-council/walsall ,WC156-498,30.11.2023,ADULT SOCIAL CARE,ADVANCE HEALTH CARE (UK) LTD,21/11/2023,283.50,6541-Domiciliary Care,THIRD PARTY PAYMENTS,PRIVATE CONTRACTOR,REVENUE
Walsall Council,http://opendatacommunities.org/id/metropolitan-district-council/walsall ,WC156-499,30.11.2023,ADULT SOCIAL CARE,ADVANCE HEALTH CARE (UK) LTD,21/11/2023,639.00,6541-Domiciliary Care,THIRD PARTY PAYMENTS,PRIVATE CONTRACTOR,REVENUE
Walsall Council,http://opendatacommunities.org/id/metropolitan-district-council/walsall ,WC156-500,30.11.2023,ADULT SOCIAL CARE,ADVANCE HEALTH CARE (UK) LTD,21/11/2023,567.00,6541-Domiciliary Care,THIRD PARTY PAYMENTS,PRIVATE CONTRACTOR,REVENUE
Walsall Council,http://opendatacommunities.org/id/metropolitan-district-council/walsall ,WC156-501,30.11.2023,ADULT SOCIAL CARE,ADVANCE HEALTH CARE (UK) LTD,21/11/2023,630.00,6541-Domiciliary Care,THIRD PARTY PAYMENTS,PRIVATE CONTRACTOR,REVENUE
Walsall Council,http://opendatacommunities.org/id/metropolitan-district-council/walsall ,WC156-502,30.11.2023,ADULT SOCIAL CARE,ADVANCE HEALTH CARE (UK) LTD,21/11/2023,567.00,6541-Domiciliary Care,THIRD PARTY PAYMENTS,PRIVATE CONTRACTOR,REVENUE
Walsall Council,http://opendatacommunities.org/id/metropolitan-district-council/walsall ,WC156-503,30.11.2023,ADULT SOCIAL CARE,ADVANCE HEALTH CARE (UK) LTD,21/11/2023,504.00,6541-Domiciliary Care,THIRD PARTY PAYMENTS,PRIVATE CONTRACTOR,REVENUE
Walsall Council,http://opendatacommunities.org/id/metropolitan-district-council/walsall ,WC156-504,30.11.2023,ADULT SOCIAL CARE,ADVANCE HEALTH CARE (UK) LTD,21/11/2023,441.00,6541-Domiciliary Care,THIRD PARTY PAYMENTS,PRIVATE CONTRACTOR,REVENUE
Walsall Council,http://opendatacommunities.org/id/metropolitan-district-council/walsall ,WC156-505,30.11.2023,ADULT SOCIAL CARE,ADVANCE HEALTH CARE (UK) LTD,21/11/2023,283.50,6541-Domiciliary Care,THIRD PARTY PAYMENTS,PRIVATE CONTRACTOR,REVENUE
Walsall Council,http://opendatacommunities.org/id/metropolitan-district-council/walsall ,WC156-506,30.11.2023,ADULT SOCIAL CARE,ADVANCE HEALTH CARE (UK) LTD,21/11/2023,891.00,6541-Domiciliary Care,THIRD PARTY PAYMENTS,PRIVATE CONTRACTOR,REVENUE
Walsall Council,http://opendatacommunities.org/id/metropolitan-district-council/walsall ,WC156-507,30.11.2023,ADULT SOCIAL CARE,ADVANCE HEALTH CARE (UK) LTD,21/11/2023,756.00,6541-Domiciliary Care,THIRD PARTY PAYMENTS,PRIVATE CONTRACTOR,REVENUE
Walsall Council,http://opendatacommunities.org/id/metropolitan-district-council/walsall ,WC156-508,30.11.2023,ADULT SOCIAL CARE,ADVANCE HEALTH CARE (UK) LTD,21/11/2023,342.00,6541-Domiciliary Care,THIRD PARTY PAYMENTS,PRIVATE CONTRACTOR,REVENUE
Walsall Council,http://opendatacommunities.org/id/metropolitan-district-council/walsall ,WC156-509,30.11.2023,ADULT SOCIAL CARE,ADVANCE HEALTH CARE (UK) LTD,21/11/2023,441.00,6541-Domiciliary Care,THIRD PARTY PAYMENTS,PRIVATE CONTRACTOR,REVENUE
Walsall Council,http://opendatacommunities.org/id/metropolitan-district-council/walsall ,WC156-510,30.11.2023,ADULT SOCIAL CARE,ADVANCE HEALTH CARE (UK) LTD,21/11/2023,441.00,6541-Domiciliary Care,THIRD PARTY PAYMENTS,PRIVATE CONTRACTOR,REVENUE
Walsall Council,http://opendatacommunities.org/id/metropolitan-district-council/walsall ,WC156-511,30.11.2023,CHILDRENS,ADVANCED CHILD CARE ASSESSMENTS LTD,24/11/2023,"3,191.00",6222-Professional Fees & Services,SUPPLIES & SERVICES,SERVICES,REVENUE
Walsall Council,http://opendatacommunities.org/id/metropolitan-district-council/walsall ,WC156-512,30.11.2023,CHILDRENS CAPITAL,ADVANCED CONTRACTS (MIDLANDS) LTD,14/11/2023,"26,980.00",7150-Site Works Contractors,CAPITAL,"NEW CONSTRUCTION,CONVERSION & RENOVATION",CAPITAL
Walsall Council,http://opendatacommunities.org/id/metropolitan-district-council/walsall ,WC156-513,30.11.2023,CHILDRENS CAPITAL,ADVANCED CONTRACTS (MIDLANDS) LTD,21/11/2023,"1,152.00",7150-Site Works Contractors,CAPITAL,"NEW CONSTRUCTION,CONVERSION & RENOVATION",CAPITAL
Walsall Council,http://opendatacommunities.org/id/metropolitan-district-council/walsall ,WC156-514,30.11.2023,ADULT SOCIAL CARE,ADVINIA CARE HOMES LTD - HAMMERWICH HALL CARE HOME,21/11/2023,280.00,6541-Residential,THIRD PARTY PAYMENTS,PRIVATE CONTRACTOR,REVENUE
Walsall Council,http://opendatacommunities.org/id/metropolitan-district-council/walsall ,WC156-515,30.11.2023,ADULT SOCIAL CARE,ADVINIA CARE HOMES LTD - HAMMERWICH HALL CARE HOME,21/11/2023,"2,137.32",6541-Residential,THIRD PARTY PAYMENTS,PRIVATE CONTRACTOR,REVENUE
Walsall Council,http://opendatacommunities.org/id/metropolitan-district-council/walsall ,WC156-516,30.11.2023,ADULT SOCIAL CARE,ADVINIA CARE HOMES LTD - HAMMERWICH HALL CARE HOME,21/11/2023,"2,413.36",6541-Residential EMI,THIRD PARTY PAYMENTS,PRIVATE CONTRACTOR,REVENUE
Walsall Council,http://opendatacommunities.org/id/metropolitan-district-council/walsall ,WC156-517,30.11.2023,ADULT SOCIAL CARE,ADVINIA CARE HOMES LTD - HAMMERWICH HALL CARE HOME,21/11/2023,280.00,6541-Residential EMI,THIRD PARTY PAYMENTS,PRIVATE CONTRACTOR,REVENUE
Walsall Council,http://opendatacommunities.org/id/metropolitan-district-council/walsall ,WC156-518,30.11.2023,HOLDING ACCOUNTS,AEGIS LEGAL LIMITED,17/11/2023,360.00,2877-Insurance Payment Claims,SUPPLIES & SERVICES,INSURANCE,REVENUE
Walsall Council,http://opendatacommunities.org/id/metropolitan-district-council/walsall ,WC156-519,30.11.2023,ADULT SOCIAL CARE,AESOP ARTS AND SOCIETY LTD,28/11/2023,"6,248.75",6420-Professional Fees & Services,SUPPLIES & SERVICES,SERVICES,REVENUE
Walsall Council,http://opendatacommunities.org/id/metropolitan-district-council/walsall ,WC156-520,30.11.2023,ADULT SOCIAL CARE,AESOP ARTS AND SOCIETY LTD,28/11/2023,"6,248.75",6420-Professional Fees & Services,SUPPLIES & SERVICES,SERVICES,REVENUE
Walsall Council,http://opendatacommunities.org/id/metropolitan-district-council/walsall ,WC156-521,30.11.2023,ADULT SOCIAL CARE,REDACTED,02/11/2023,597.12,6541-Direct Payment,THIRD PARTY PAYMENTS,PRIVATE CONTRACTOR,REVENUE
Walsall Council,http://opendatacommunities.org/id/metropolitan-district-council/walsall ,WC156-522,30.11.2023,ADULT SOCIAL CARE,REDACTED,02/11/2023,"1,260.00",6541-Direct Payment,THIRD PARTY PAYMENTS,PRIVATE CONTRACTOR,REVENUE
Walsall Council,http://opendatacommunities.org/id/metropolitan-district-council/walsall ,WC156-523,30.11.2023,CHILDRENS,REDACTED,16/11/2023,535.08,6223-Special Guardianship Orders,TRANSFER PAYMENTS,CHILDREN SOCIAL SERVICES CLIENT,REVENUE
Walsall Council,http://opendatacommunities.org/id/metropolitan-district-council/walsall ,WC156-524,30.11.2023,"ECONOMY, ENVIRONMENT & COMMUNITIES",AGROVISTA UK LTD,21/11/2023,486.20,6410-Materials,SUPPLIES & SERVICES,EQUIPMENT FURNITURE & MATERIALS,REVENUE
Walsall Council,http://opendatacommunities.org/id/metropolitan-district-council/walsall ,WC156-525,30.11.2023,"ECONOMY, ENVIRONMENT & COMMUNITIES",AGROVISTA UK LTD,21/11/2023,497.87,6410-Materials,SUPPLIES & SERVICES,EQUIPMENT FURNITURE & MATERIALS,REVENUE
Walsall Council,http://opendatacommunities.org/id/metropolitan-district-council/walsall ,WC156-526,30.11.2023,"ECONOMY, ENVIRONMENT & COMMUNITIES",AGROVISTA UK LTD,30/11/2023,"3,996.50",6413-Materials,SUPPLIES & SERVICES,EQUIPMENT FURNITURE & MATERIALS,REVENUE
Walsall Council,http://opendatacommunities.org/id/metropolitan-district-council/walsall ,WC156-527,30.11.2023,CHILDRENS,AIM QUALIFICATIONS AND ASSESSMENT GROUP,14/11/2023,350.00,6211-Professional Fees & Services,SUPPLIES & SERVICES,SERVICES,REVENUE
Walsall Council,http://opendatacommunities.org/id/metropolitan-district-council/walsall ,WC156-528,30.11.2023,ADULT SOCIAL CARE,REDACTED,02/11/2023,"2,836.32",6541-Direct Payment,THIRD PARTY PAYMENTS,PRIVATE CONTRACTOR,REVENUE
Walsall Council,http://opendatacommunities.org/id/metropolitan-district-council/walsall ,WC156-529,30.11.2023,ADULT SOCIAL CARE,REDACTED,02/11/2023,"1,125.44",6541-Direct Payment,THIRD PARTY PAYMENTS,PRIVATE CONTRACTOR,REVENUE
Walsall Council,http://opendatacommunities.org/id/metropolitan-district-council/walsall ,WC156-530,30.11.2023,ADULT SOCIAL CARE,REDACTED,02/11/2023,513.88,6541-Direct Payment,THIRD PARTY PAYMENTS,PRIVATE CONTRACTOR,REVENUE
Walsall Council,http://opendatacommunities.org/id/metropolitan-district-council/walsall ,WC156-531,30.11.2023,ADULT SOCIAL CARE,REDACTED,02/11/2023,267.44,6541-Direct Payment,THIRD PARTY PAYMENTS,PRIVATE CONTRACTOR,REVENUE
Walsall Council,http://opendatacommunities.org/id/metropolitan-district-council/walsall ,WC156-532,30.11.2023,ADULT SOCIAL CARE,REDACTED,02/11/2023,"1,894.57",6541-Direct Payment,THIRD PARTY PAYMENTS,PRIVATE CONTRACTOR,REVENUE
Walsall Council,http://opendatacommunities.org/id/metropolitan-district-council/walsall ,WC156-533,30.11.2023,ADULT SOCIAL CARE,REDACTED,02/11/2023,"1,393.28",6541-Direct Payment,THIRD PARTY PAYMENTS,PRIVATE CONTRACTOR,REVENUE
Walsall Council,http://opendatacommunities.org/id/metropolitan-district-council/walsall ,WC156-534,30.11.2023,ADULT SOCIAL CARE,ALDBOURNE NURSING HOME LTD,21/11/2023,"5,920.00",6541-Nursing EMI,THIRD PARTY PAYMENTS,PRIVATE CONTRACTOR,REVENUE
Walsall Council,http://opendatacommunities.org/id/metropolitan-district-council/walsall ,WC156-535,30.11.2023,CHILDRENS,ALDRIDGE & BARONS LIMITED,06/11/2023,"2,400.00",6241-Hire of Vehicle with Driver,TRANSPORT,DIRECT TRANSPORT COSTS,REVENUE
Walsall Council,http://opendatacommunities.org/id/metropolitan-district-council/walsall ,WC156-536,30.11.2023,CHILDRENS,ALDRIDGE & BARONS LIMITED,06/11/2023,"2,900.00",6241-Hire of Vehicle with Driver,TRANSPORT,DIRECT TRANSPORT COSTS,REVENUE
Walsall Council,http://opendatacommunities.org/id/metropolitan-district-council/walsall ,WC156-537,30.11.2023,CHILDRENS,ALDRIDGE & BARONS LIMITED,06/11/2023,"2,887.60",6241-Hire of Vehicle with Driver,TRANSPORT,DIRECT TRANSPORT COSTS,REVENUE
Walsall Council,http://opendatacommunities.org/id/metropolitan-district-council/walsall ,WC156-538,30.11.2023,CHILDRENS,ALDRIDGE & BARONS LIMITED,06/11/2023,"2,340.00",6241-Hire of Vehicle with Driver,TRANSPORT,DIRECT TRANSPORT COSTS,REVENUE
Walsall Council,http://opendatacommunities.org/id/metropolitan-district-council/walsall ,WC156-539,30.11.2023,CHILDRENS,ALDRIDGE & BARONS LIMITED,06/11/2023,"2,250.00",6241-Hire of Vehicle with Driver,TRANSPORT,DIRECT TRANSPORT COSTS,REVENUE
Walsall Council,http://opendatacommunities.org/id/metropolitan-district-council/walsall ,WC156-540,30.11.2023,CHILDRENS,ALDRIDGE & BARONS LIMITED,06/11/2023,"1,920.00",6241-Hire of Vehicle with Driver,TRANSPORT,DIRECT TRANSPORT COSTS,REVENUE
Walsall Council,http://opendatacommunities.org/id/metropolitan-district-council/walsall ,WC156-541,30.11.2023,CHILDRENS,ALDRIDGE & BARONS LIMITED,06/11/2023,"2,800.00",6241-Hire of Vehicle with Driver,TRANSPORT,DIRECT TRANSPORT COSTS,REVENUE
Walsall Council,http://opendatacommunities.org/id/metropolitan-district-council/walsall ,WC156-542,30.11.2023,CHILDRENS,ALDRIDGE & BARONS LIMITED,06/11/2023,"3,552.00",6241-Hire of Vehicle with Driver,TRANSPORT,DIRECT TRANSPORT COSTS,REVENUE
Walsall Council,http://opendatacommunities.org/id/metropolitan-district-council/walsall ,WC156-543,30.11.2023,CHILDRENS,ALDRIDGE & BARONS LIMITED,06/11/2023,"3,110.40",6241-Hire of Vehicle with Driver,TRANSPORT,DIRECT TRANSPORT COSTS,REVENUE
Walsall Council,http://opendatacommunities.org/id/metropolitan-district-council/walsall ,WC156-544,30.11.2023,CHILDRENS,ALDRIDGE & BARONS LIMITED,06/11/2023,"3,156.00",6241-Hire of Vehicle with Driver,TRANSPORT,DIRECT TRANSPORT COSTS,REVENUE
Walsall Council,http://opendatacommunities.org/id/metropolitan-district-council/walsall ,WC156-545,30.11.2023,CHILDRENS,ALDRIDGE & BARONS LIMITED,06/11/2023,"2,811.60",6241-Hire of Vehicle with Driver,TRANSPORT,DIRECT TRANSPORT COSTS,REVENUE
Walsall Council,http://opendatacommunities.org/id/metropolitan-district-council/walsall ,WC156-546,30.11.2023,CHILDRENS,ALDRIDGE & BARONS LIMITED,06/11/2023,"3,182.50",6241-Hire of Vehicle with Driver,TRANSPORT,DIRECT TRANSPORT COSTS,REVENUE
Walsall Council,http://opendatacommunities.org/id/metropolitan-district-council/walsall ,WC156-547,30.11.2023,CHILDRENS,ALDRIDGE & BARONS LIMITED,06/11/2023,"2,124.00",6241-Hire of Vehicle with Driver,TRANSPORT,DIRECT TRANSPORT COSTS,REVENUE
Walsall Council,http://opendatacommunities.org/id/metropolitan-district-council/walsall ,WC156-548,30.11.2023,CHILDRENS,ALDRIDGE & BARONS LIMITED,06/11/2023,"1,914.00",6241-Hire of Vehicle with Driver,TRANSPORT,DIRECT TRANSPORT COSTS,REVENUE
Walsall Council,http://opendatacommunities.org/id/metropolitan-district-council/walsall ,WC156-549,30.11.2023,CHILDRENS,ALDRIDGE & BARONS LIMITED,06/11/2023,"3,604.80",6241-Hire of Vehicle with Driver,TRANSPORT,DIRECT TRANSPORT COSTS,REVENUE
Walsall Council,http://opendatacommunities.org/id/metropolitan-district-council/walsall ,WC156-550,30.11.2023,CHILDRENS,ALDRIDGE & BARONS LIMITED,06/11/2023,"2,232.00",6241-Hire of Vehicle with Driver,TRANSPORT,DIRECT TRANSPORT COSTS,REVENUE
Walsall Council,http://opendatacommunities.org/id/metropolitan-district-council/walsall ,WC156-551,30.11.2023,CHILDRENS,ALDRIDGE & BARONS LIMITED,06/11/2023,"3,000.00",6241-Hire of Vehicle with Driver,TRANSPORT,DIRECT TRANSPORT COSTS,REVENUE
Walsall Council,http://opendatacommunities.org/id/metropolitan-district-council/walsall ,WC156-552,30.11.2023,CHILDRENS,ALDRIDGE & BARONS LIMITED,06/11/2023,"1,800.00",6241-Hire of Vehicle with Driver,TRANSPORT,DIRECT TRANSPORT COSTS,REVENUE
Walsall Council,http://opendatacommunities.org/id/metropolitan-district-council/walsall ,WC156-553,30.11.2023,CHILDRENS,ALDRIDGE & BARONS LIMITED,06/11/2023,"3,173.80",6241-Hire of Vehicle with Driver,TRANSPORT,DIRECT TRANSPORT COSTS,REVENUE
Walsall Council,http://opendatacommunities.org/id/metropolitan-district-council/walsall ,WC156-554,30.11.2023,CHILDRENS,ALDRIDGE & BARONS LIMITED,06/11/2023,"2,434.00",6241-Hire of Vehicle with Driver,TRANSPORT,DIRECT TRANSPORT COSTS,REVENUE
Walsall Council,http://opendatacommunities.org/id/metropolitan-district-council/walsall ,WC156-555,30.11.2023,CHILDRENS,ALDRIDGE & BARONS LIMITED,06/11/2023,"2,791.67",6241-Hire of Vehicle with Driver,TRANSPORT,DIRECT TRANSPORT COSTS,REVENUE
Walsall Council,http://opendatacommunities.org/id/metropolitan-district-council/walsall ,WC156-556,30.11.2023,CHILDRENS,ALDRIDGE & BARONS LIMITED,06/11/2023,"2,860.00",6241-Hire of Vehicle with Driver,TRANSPORT,DIRECT TRANSPORT COSTS,REVENUE
Walsall Council,http://opendatacommunities.org/id/metropolitan-district-council/walsall ,WC156-557,30.11.2023,CHILDRENS,ALDRIDGE & BARONS LIMITED,06/11/2023,"2,600.00",6241-Hire of Vehicle with Driver,TRANSPORT,DIRECT TRANSPORT COSTS,REVENUE
Walsall Council,http://opendatacommunities.org/id/metropolitan-district-council/walsall ,WC156-558,30.11.2023,CHILDRENS,ALDRIDGE & BARONS LIMITED,06/11/2023,"3,000.00",6241-Hire of Vehicle with Driver,TRANSPORT,DIRECT TRANSPORT COSTS,REVENUE
Walsall Council,http://opendatacommunities.org/id/metropolitan-district-council/walsall ,WC156-559,30.11.2023,CHILDRENS,ALDRIDGE & BARONS LIMITED,06/11/2023,"3,600.00",6241-Hire of Vehicle with Driver,TRANSPORT,DIRECT TRANSPORT COSTS,REVENUE
Walsall Council,http://opendatacommunities.org/id/metropolitan-district-council/walsall ,WC156-560,30.11.2023,CHILDRENS,ALDRIDGE & BARONS LIMITED,06/11/2023,"1,980.00",6241-Hire of Vehicle with Driver,TRANSPORT,DIRECT TRANSPORT COSTS,REVENUE
Walsall Council,http://opendatacommunities.org/id/metropolitan-district-council/walsall ,WC156-561,30.11.2023,CHILDRENS,ALDRIDGE & BARONS LIMITED,06/11/2023,"2,860.00",6241-Hire of Vehicle with Driver,TRANSPORT,DIRECT TRANSPORT COSTS,REVENUE
Walsall Council,http://opendatacommunities.org/id/metropolitan-district-council/walsall ,WC156-562,30.11.2023,CHILDRENS,ALDRIDGE & BARONS LIMITED,06/11/2023,"3,004.00",6241-Hire of Vehicle with Driver,TRANSPORT,DIRECT TRANSPORT COSTS,REVENUE
Walsall Council,http://opendatacommunities.org/id/metropolitan-district-council/walsall ,WC156-563,30.11.2023,CHILDRENS,ALDRIDGE & BARONS LIMITED,06/11/2023,"2,160.00",6241-Hire of Vehicle with Driver,TRANSPORT,DIRECT TRANSPORT COSTS,REVENUE
Walsall Council,http://opendatacommunities.org/id/metropolitan-district-council/walsall ,WC156-564,30.11.2023,CHILDRENS,ALDRIDGE & BARONS LIMITED,06/11/2023,"2,860.00",6241-Hire of Vehicle with Driver,TRANSPORT,DIRECT TRANSPORT COSTS,REVENUE
Walsall Council,http://opendatacommunities.org/id/metropolitan-district-council/walsall ,WC156-565,30.11.2023,CHILDRENS,ALDRIDGE & BARONS LIMITED,06/11/2023,"2,500.00",6241-Hire of Vehicle with Driver,TRANSPORT,DIRECT TRANSPORT COSTS,REVENUE
Walsall Council,http://opendatacommunities.org/id/metropolitan-district-council/walsall ,WC156-566,30.11.2023,CHILDRENS,ALDRIDGE & BARONS LIMITED,06/11/2023,"2,200.00",6241-Hire of Vehicle with Driver,TRANSPORT,DIRECT TRANSPORT COSTS,REVENUE
Walsall Council,http://opendatacommunities.org/id/metropolitan-district-council/walsall ,WC156-567,30.11.2023,"ECONOMY, ENVIRONMENT & COMMUNITIES",ALDRIDGE SAILING CLUB,01/11/2023,"2,252.50",6430-Grants to Other Orgs,SUPPLIES & SERVICES,GRANTS (EXP) & SUBSCRIPTIONS,REVENUE
Walsall Council,http://opendatacommunities.org/id/metropolitan-district-council/walsall ,WC156-568,30.11.2023,ADULT SOCIAL CARE,REDACTED,02/11/2023,"1,728.00",6541-Direct Payment,THIRD PARTY PAYMENTS,PRIVATE CONTRACTOR,REVENUE
Walsall Council,http://opendatacommunities.org/id/metropolitan-district-council/walsall ,WC156-569,30.11.2023,"ECONOMY, ENVIRONMENT & COMMUNITIES",REDACTED,21/11/2023,315.00,6414-Professional Fees & Services,SUPPLIES & SERVICES,SERVICES,REVENUE
Walsall Council,http://opendatacommunities.org/id/metropolitan-district-council/walsall ,WC156-570,30.11.2023,CHILDRENS,ALEX JAMES LAW LTD,14/11/2023,325.00,6223-Professional Fees & Services,SUPPLIES & SERVICES,SERVICES,REVENUE
Walsall Council,http://opendatacommunities.org/id/metropolitan-district-council/walsall ,WC156-571,30.11.2023,ADULT SOCIAL CARE,ALEXANDRA HOUSE CARE SERVICES LTD T/A STONEBRIDGE NURSING HOME,21/11/2023,"7,546.24",6541-Residential,THIRD PARTY PAYMENTS,PRIVATE CONTRACTOR,REVENUE
Walsall Council,http://opendatacommunities.org/id/metropolitan-district-council/walsall ,WC156-572,30.11.2023,ADULT SOCIAL CARE,ALEXANDRA HOUSE SUPPORT SERVICES LTD,21/11/2023,"5,936.00",6541-Residential,THIRD PARTY PAYMENTS,PRIVATE CONTRACTOR,REVENUE
Walsall Council,http://opendatacommunities.org/id/metropolitan-district-council/walsall ,WC156-573,30.11.2023,ADULT SOCIAL CARE,REDACTED,02/11/2023,"1,094.72",6541-Direct Payment,THIRD PARTY PAYMENTS,PRIVATE CONTRACTOR,REVENUE
Walsall Council,http://opendatacommunities.org/id/metropolitan-district-council/walsall ,WC156-574,30.11.2023,CHILDRENS,REDACTED,16/11/2023,355.56,6223-Special Guardianship Orders,TRANSFER PAYMENTS,CHILDREN SOCIAL SERVICES CLIENT,REVENUE
Walsall Council,http://opendatacommunities.org/id/metropolitan-district-council/walsall ,WC156-575,30.11.2023,CHILDRENS,ALL SAINTS NATIONAL ACADEMY #1,07/11/2023,"23,734.29",1220-Top Up Funding -Grants to Schools,SUPPLIES & SERVICES,GRANTS (EXP) & SUBSCRIPTIONS,REVENUE
Walsall Council,http://opendatacommunities.org/id/metropolitan-district-council/walsall ,WC156-576,30.11.2023,CHILDRENS,ALLIANCE CARE LTD,23/11/2023,"3,024.00",6220-Professional Fees & Services,SUPPLIES & SERVICES,SERVICES,REVENUE
Walsall Council,http://opendatacommunities.org/id/metropolitan-district-council/walsall ,WC156-577,30.11.2023,CHILDRENS,ALLIANCE CARE LTD,23/11/2023,"-3,024.00",6220-Professional Fees & Services,SUPPLIES & SERVICES,SERVICES,REVENUE
Walsall Council,http://opendatacommunities.org/id/metropolitan-district-council/walsall ,WC156-578,30.11.2023,CHILDRENS,ALLIANCE CARE LTD,23/11/2023,"3,024.00",6220-Professional Fees & Services,SUPPLIES & SERVICES,SERVICES,REVENUE
Walsall Council,http://opendatacommunities.org/id/metropolitan-district-council/walsall ,WC156-579,30.11.2023,CHILDRENS,ALLIANCE CARE LTD,23/11/2023,"3,024.00",6220-Professional Fees & Services,SUPPLIES & SERVICES,SERVICES,REVENUE
Walsall Council,http://opendatacommunities.org/id/metropolitan-district-council/walsall ,WC156-580,30.11.2023,CHILDRENS,ALLIANCE CARE LTD,23/11/2023,"3,042.00",6220-Professional Fees & Services,SUPPLIES & SERVICES,SERVICES,REVENUE
Walsall Council,http://opendatacommunities.org/id/metropolitan-district-council/walsall ,WC156-581,30.11.2023,ECONOMY & ENVIRONMENT CAPITAL,ALLIANCE LEISURE SERVICES LTD,06/11/2023,"84,828.27",7200-Site Works Contractors,CAPITAL,"NEW CONSTRUCTION,CONVERSION & RENOVATION",CAPITAL
Walsall Council,http://opendatacommunities.org/id/metropolitan-district-council/walsall ,WC156-582,30.11.2023,ECONOMY & ENVIRONMENT CAPITAL,ALLIANCE LEISURE SERVICES LTD,27/11/2023,"8,867.28",7200-Site Works Contractors,CAPITAL,"NEW CONSTRUCTION,CONVERSION & RENOVATION",CAPITAL
Walsall Council,http://opendatacommunities.org/id/metropolitan-district-council/walsall ,WC156-583,30.11.2023,RESOURCES AND TRANSFORMATION,ALLIED PUBLICITY SERVICES (MANCHESTER) LIMITED T/A APS GROUP,07/11/2023,"1,322.11",6312-External Printing Services,SUPPLIES & SERVICES,PRINTING STATIONERY & GENERAL OFFICE,REVENUE
Walsall Council,http://opendatacommunities.org/id/metropolitan-district-council/walsall ,WC156-584,30.11.2023,ADULT SOCIAL CARE,ALMA COURT,21/11/2023,"6,718.40",6541-Residential,THIRD PARTY PAYMENTS,PRIVATE CONTRACTOR,REVENUE
Walsall Council,http://opendatacommunities.org/id/metropolitan-district-council/walsall ,WC156-585,30.11.2023,ADULT SOCIAL CARE,ALMA COURT,21/11/2023,"5,200.00",6541-Nursing EMI,THIRD PARTY PAYMENTS,PRIVATE CONTRACTOR,REVENUE
Walsall Council,http://opendatacommunities.org/id/metropolitan-district-council/walsall ,WC156-586,30.11.2023,ADULT SOCIAL CARE,ALMA COURT,21/11/2023,"4,861.00",6541-Nursing EMI,THIRD PARTY PAYMENTS,PRIVATE CONTRACTOR,REVENUE
Walsall Council,http://opendatacommunities.org/id/metropolitan-district-council/walsall ,WC156-587,30.11.2023,ADULT SOCIAL CARE,ALMA COURT,21/11/2023,"4,263.00",6541-Residential,THIRD PARTY PAYMENTS,PRIVATE CONTRACTOR,REVENUE
Walsall Council,http://opendatacommunities.org/id/metropolitan-district-council/walsall ,WC156-588,30.11.2023,ADULT SOCIAL CARE,ALMA COURT,21/11/2023,"4,055.28",6541-Nursing EMI,THIRD PARTY PAYMENTS,PRIVATE CONTRACTOR,REVENUE
Walsall Council,http://opendatacommunities.org/id/metropolitan-district-council/walsall ,WC156-589,30.11.2023,ADULT SOCIAL CARE,ALPHA HEALTH CARE LTD,21/11/2023,"2,936.84",6541-Residential EMI,THIRD PARTY PAYMENTS,PRIVATE CONTRACTOR,REVENUE
Walsall Council,http://opendatacommunities.org/id/metropolitan-district-council/walsall ,WC156-590,30.11.2023,ADULT SOCIAL CARE,ALPHA HEALTH CARE LTD,21/11/2023,"6,343.36",6541-Residential,THIRD PARTY PAYMENTS,PRIVATE CONTRACTOR,REVENUE
Walsall Council,http://opendatacommunities.org/id/metropolitan-district-council/walsall ,WC156-591,30.11.2023,ADULT SOCIAL CARE,ALPHA HEALTH CARE LTD,21/11/2023,"2,905.36",6541-Nursing,THIRD PARTY PAYMENTS,PRIVATE CONTRACTOR,REVENUE
Walsall Council,http://opendatacommunities.org/id/metropolitan-district-council/walsall ,WC156-592,30.11.2023,ADULT SOCIAL CARE,ALPHA HEALTH CARE LTD,21/11/2023,"3,829.36",6541-Residential EMI,THIRD PARTY PAYMENTS,PRIVATE CONTRACTOR,REVENUE
Walsall Council,http://opendatacommunities.org/id/metropolitan-district-council/walsall ,WC156-593,30.11.2023,ADULT SOCIAL CARE,ALPHA HEALTH CARE LTD,21/11/2023,"7,600.00",6541-Residential,THIRD PARTY PAYMENTS,PRIVATE CONTRACTOR,REVENUE
Walsall Council,http://opendatacommunities.org/id/metropolitan-district-council/walsall ,WC156-594,30.11.2023,ADULT SOCIAL CARE,ALPHA HEALTH CARE LTD,21/11/2023,"3,721.16",6541-Nursing EMI,THIRD PARTY PAYMENTS,PRIVATE CONTRACTOR,REVENUE
Walsall Council,http://opendatacommunities.org/id/metropolitan-district-council/walsall ,WC156-595,30.11.2023,ADULT SOCIAL CARE,ALPHA HEALTH CARE LTD,21/11/2023,"3,800.00",6541-Residential,THIRD PARTY PAYMENTS,PRIVATE CONTRACTOR,REVENUE
Walsall Council,http://opendatacommunities.org/id/metropolitan-district-council/walsall ,WC156-596,30.11.2023,ADULT SOCIAL CARE,ALPHA HEALTH CARE LTD,21/11/2023,"4,100.00",6541-Residential,THIRD PARTY PAYMENTS,PRIVATE CONTRACTOR,REVENUE
Walsall Council,http://opendatacommunities.org/id/metropolitan-district-council/walsall ,WC156-597,30.11.2023,ADULT SOCIAL CARE,ALPHA HEALTH CARE LTD,21/11/2023,"4,200.00",6541-Nursing EMI,THIRD PARTY PAYMENTS,PRIVATE CONTRACTOR,REVENUE
Walsall Council,http://opendatacommunities.org/id/metropolitan-district-council/walsall ,WC156-598,30.11.2023,ADULT SOCIAL CARE,ALPHA HEALTH CARE LTD,21/11/2023,"22,386.82",6541-Residential,THIRD PARTY PAYMENTS,PRIVATE CONTRACTOR,REVENUE
Walsall Council,http://opendatacommunities.org/id/metropolitan-district-council/walsall ,WC156-599,30.11.2023,ADULT SOCIAL CARE,ALPHA HEALTH CARE LTD,21/11/2023,"7,105.00",6541-Residential,THIRD PARTY PAYMENTS,PRIVATE CONTRACTOR,REVENUE
Walsall Council,http://opendatacommunities.org/id/metropolitan-district-council/walsall ,WC156-600,30.11.2023,ADULT SOCIAL CARE,ALPHA HEALTH CARE LTD,21/11/2023,"3,422.28",6541-Residential EMI,THIRD PARTY PAYMENTS,PRIVATE CONTRACTOR,REVENUE
Walsall Council,http://opendatacommunities.org/id/metropolitan-district-council/walsall ,WC156-601,30.11.2023,ADULT SOCIAL CARE,ALPHA HEALTH CARE LTD,21/11/2023,"3,047.12",6541-Nursing,THIRD PARTY PAYMENTS,PRIVATE CONTRACTOR,REVENUE
Walsall Council,http://opendatacommunities.org/id/metropolitan-district-council/walsall ,WC156-602,30.11.2023,ADULT SOCIAL CARE,ALPHA HEALTH CARE LTD,21/11/2023,"2,819.08",6541-Nursing EMI,THIRD PARTY PAYMENTS,PRIVATE CONTRACTOR,REVENUE
Walsall Council,http://opendatacommunities.org/id/metropolitan-district-council/walsall ,WC156-603,30.11.2023,ADULT SOCIAL CARE,ALPHA HEALTH CARE LTD,21/11/2023,"-15,263.75",6541-Nursing EMI,THIRD PARTY PAYMENTS,PRIVATE CONTRACTOR,REVENUE
Walsall Council,http://opendatacommunities.org/id/metropolitan-district-council/walsall ,WC156-604,30.11.2023,ADULT SOCIAL CARE,ALPHA HEALTH CARE LTD,21/11/2023,"3,445.36",6541-Residential EMI,THIRD PARTY PAYMENTS,PRIVATE CONTRACTOR,REVENUE
Walsall Council,http://opendatacommunities.org/id/metropolitan-district-council/walsall ,WC156-605,30.11.2023,ADULT SOCIAL CARE,ALPHA HEALTH CARE LTD,21/11/2023,"2,813.36",6541-Residential EMI,THIRD PARTY PAYMENTS,PRIVATE CONTRACTOR,REVENUE
Walsall Council,http://opendatacommunities.org/id/metropolitan-district-council/walsall ,WC156-606,30.11.2023,ADULT SOCIAL CARE,ALPHA HEALTH CARE LTD,21/11/2023,"4,027.32",6541-Residential EMI,THIRD PARTY PAYMENTS,PRIVATE CONTRACTOR,REVENUE
Walsall Council,http://opendatacommunities.org/id/metropolitan-district-council/walsall ,WC156-607,30.11.2023,ADULT SOCIAL CARE,ALPHA HEALTH CARE LTD,21/11/2023,"2,413.36",6541-Residential EMI,THIRD PARTY PAYMENTS,PRIVATE CONTRACTOR,REVENUE
Walsall Council,http://opendatacommunities.org/id/metropolitan-district-council/walsall ,WC156-608,30.11.2023,ADULT SOCIAL CARE,ALPHA HEALTH CARE LTD,21/11/2023,"5,000.00",6541-Nursing EMI,THIRD PARTY PAYMENTS,PRIVATE CONTRACTOR,REVENUE
Walsall Council,http://opendatacommunities.org/id/metropolitan-district-council/walsall ,WC156-609,30.11.2023,ADULT SOCIAL CARE,ALPHA HEALTH CARE LTD,21/11/2023,"2,705.71",6541-Residential,THIRD PARTY PAYMENTS,PRIVATE CONTRACTOR,REVENUE
Walsall Council,http://opendatacommunities.org/id/metropolitan-district-council/walsall ,WC156-610,30.11.2023,ADULT SOCIAL CARE,ALPHA HEALTH CARE LTD,21/11/2023,"4,440.00",6541-Nursing EMI,THIRD PARTY PAYMENTS,PRIVATE CONTRACTOR,REVENUE
Walsall Council,http://opendatacommunities.org/id/metropolitan-district-council/walsall ,WC156-611,30.11.2023,ADULT SOCIAL CARE,ALPHA HEALTH CARE LTD,21/11/2023,"2,413.36",6541-Residential EMI,THIRD PARTY PAYMENTS,PRIVATE CONTRACTOR,REVENUE
Walsall Council,http://opendatacommunities.org/id/metropolitan-district-council/walsall ,WC156-612,30.11.2023,ADULT SOCIAL CARE,ALPHA HEALTH CARE LTD,21/11/2023,"7,600.00",6541-Residential,THIRD PARTY PAYMENTS,PRIVATE CONTRACTOR,REVENUE
Walsall Council,http://opendatacommunities.org/id/metropolitan-district-council/walsall ,WC156-613,30.11.2023,ADULT SOCIAL CARE,ALPHA HEALTH CARE LTD,21/11/2023,"7,600.00",6541-Residential,THIRD PARTY PAYMENTS,PRIVATE CONTRACTOR,REVENUE
Walsall Council,http://opendatacommunities.org/id/metropolitan-district-council/walsall ,WC156-614,30.11.2023,ADULT SOCIAL CARE,ALPHA HEALTH CARE LTD,21/11/2023,"7,980.00",6541-Nursing EMI,THIRD PARTY PAYMENTS,PRIVATE CONTRACTOR,REVENUE
Walsall Council,http://opendatacommunities.org/id/metropolitan-district-council/walsall ,WC156-615,30.11.2023,ADULT SOCIAL CARE,ALPHA HEALTH CARE LTD,21/11/2023,"3,800.00",6541-Residential EMI,THIRD PARTY PAYMENTS,PRIVATE CONTRACTOR,REVENUE
Walsall Council,http://opendatacommunities.org/id/metropolitan-district-council/walsall ,WC156-616,30.11.2023,ADULT SOCIAL CARE,ALPHA HEALTH CARE LTD,21/11/2023,"6,380.00",6541-Nursing EMI,THIRD PARTY PAYMENTS,PRIVATE CONTRACTOR,REVENUE
Walsall Council,http://opendatacommunities.org/id/metropolitan-district-council/walsall ,WC156-617,30.11.2023,ADULT SOCIAL CARE,ALPHA HEALTH CARE LTD,21/11/2023,"1,422.60",6541-Nursing EMI,THIRD PARTY PAYMENTS,PRIVATE CONTRACTOR,REVENUE
Walsall Council,http://opendatacommunities.org/id/metropolitan-district-council/walsall ,WC156-618,30.11.2023,ADULT SOCIAL CARE,ALPHA HEALTH CARE LTD,21/11/2023,"1,224.00",6541-Nursing,THIRD PARTY PAYMENTS,PRIVATE CONTRACTOR,REVENUE
Walsall Council,http://opendatacommunities.org/id/metropolitan-district-council/walsall ,WC156-619,30.11.2023,ADULT SOCIAL CARE,ALPHA HEALTH CARE LTD,21/11/2023,"3,135.00",6541-Residential,THIRD PARTY PAYMENTS,PRIVATE CONTRACTOR,REVENUE
Walsall Council,http://opendatacommunities.org/id/metropolitan-district-council/walsall ,WC156-620,30.11.2023,ADULT SOCIAL CARE,ALPHA HEALTH CARE LTD,21/11/2023,"3,723.08",6541-Nursing EMI,THIRD PARTY PAYMENTS,PRIVATE CONTRACTOR,REVENUE
Walsall Council,http://opendatacommunities.org/id/metropolitan-district-council/walsall ,WC156-621,30.11.2023,ADULT SOCIAL CARE,ALPHA HEALTH CARE LTD,21/11/2023,"4,175.28",6541-Nursing EMI,THIRD PARTY PAYMENTS,PRIVATE CONTRACTOR,REVENUE
Walsall Council,http://opendatacommunities.org/id/metropolitan-district-council/walsall ,WC156-622,30.11.2023,ADULT SOCIAL CARE,ALPHA HEALTH CARE LTD,21/11/2023,"1,289.56",6541-Nursing,THIRD PARTY PAYMENTS,PRIVATE CONTRACTOR,REVENUE
Walsall Council,http://opendatacommunities.org/id/metropolitan-district-council/walsall ,WC156-623,30.11.2023,ADULT SOCIAL CARE,ALPHA HEALTH CARE LTD,21/11/2023,"3,090.44",6541-Residential,THIRD PARTY PAYMENTS,PRIVATE CONTRACTOR,REVENUE
Walsall Council,http://opendatacommunities.org/id/metropolitan-district-council/walsall ,WC156-624,30.11.2023,ADULT SOCIAL CARE,ALPHA HEALTH CARE LTD,21/11/2023,"3,567.32",6541-Residential EMI,THIRD PARTY PAYMENTS,PRIVATE CONTRACTOR,REVENUE
Walsall Council,http://opendatacommunities.org/id/metropolitan-district-council/walsall ,WC156-625,30.11.2023,ADULT SOCIAL CARE,ALPHA HEALTH CARE LTD,21/11/2023,"4,855.28",6541-Nursing EMI,THIRD PARTY PAYMENTS,PRIVATE CONTRACTOR,REVENUE
Walsall Council,http://opendatacommunities.org/id/metropolitan-district-council/walsall ,WC156-626,30.11.2023,ADULT SOCIAL CARE,ALPHA HEALTH CARE LTD,21/11/2023,"5,055.28",6541-Nursing EMI,THIRD PARTY PAYMENTS,PRIVATE CONTRACTOR,REVENUE
Walsall Council,http://opendatacommunities.org/id/metropolitan-district-council/walsall ,WC156-627,30.11.2023,ADULT SOCIAL CARE,ALPHA HEALTH CARE LTD,21/11/2023,"2,828.57",6541-Nursing,THIRD PARTY PAYMENTS,PRIVATE CONTRACTOR,REVENUE
Walsall Council,http://opendatacommunities.org/id/metropolitan-district-council/walsall ,WC156-628,30.11.2023,ADULT SOCIAL CARE,ALPHA HEALTH CARE LTD,21/11/2023,"3,800.00",6541-Residential,THIRD PARTY PAYMENTS,PRIVATE CONTRACTOR,REVENUE
Walsall Council,http://opendatacommunities.org/id/metropolitan-district-council/walsall ,WC156-629,30.11.2023,ADULT SOCIAL CARE,ALPHA HEALTH CARE LTD,21/11/2023,"4,600.00",6541-Residential,THIRD PARTY PAYMENTS,PRIVATE CONTRACTOR,REVENUE
Walsall Council,http://opendatacommunities.org/id/metropolitan-district-council/walsall ,WC156-630,30.11.2023,ADULT SOCIAL CARE,ALPHA HEALTH CARE LTD,21/11/2023,"1,224.00",6541-Nursing,THIRD PARTY PAYMENTS,PRIVATE CONTRACTOR,REVENUE
Walsall Council,http://opendatacommunities.org/id/metropolitan-district-council/walsall ,WC156-631,30.11.2023,ADULT SOCIAL CARE,ALPHA HEALTH CARE LTD,21/11/2023,"3,420.00",6541-Residential,THIRD PARTY PAYMENTS,PRIVATE CONTRACTOR,REVENUE
Walsall Council,http://opendatacommunities.org/id/metropolitan-district-council/walsall ,WC156-632,30.11.2023,"ECONOMY, ENVIRONMENT & COMMUNITIES",ALPHA PARKING LTD,01/11/2023,"1,790.00",6411-External Training,INDIRECT EMPLOYEES,EXTERNAL TRAINING,REVENUE
Walsall Council,http://opendatacommunities.org/id/metropolitan-district-council/walsall ,WC156-633,30.11.2023,CHILDRENS,ALPHA TRAINING ACADEMY UK LTD,07/11/2023,"3,910.00",1187-Materials,SUPPLIES & SERVICES,EQUIPMENT FURNITURE & MATERIALS,REVENUE
Walsall Council,http://opendatacommunities.org/id/metropolitan-district-council/walsall ,WC156-634,30.11.2023,CHILDRENS,ALPHABIOLABS,02/11/2023,485.00,6222-Professional Fees & Services,SUPPLIES & SERVICES,SERVICES,REVENUE
Walsall Council,http://opendatacommunities.org/id/metropolitan-district-council/walsall ,WC156-635,30.11.2023,CHILDRENS,ALPHABIOLABS,29/11/2023,960.00,6222-Professional Services-Priv Contractor & Other Agencies,THIRD PARTY PAYMENTS,PRIVATE CONTRACTOR,REVENUE
Walsall Council,http://opendatacommunities.org/id/metropolitan-district-council/walsall ,WC156-636,30.11.2023,ADULT SOCIAL CARE,REDACTED,02/11/2023,708.32,6541-Direct Payment,THIRD PARTY PAYMENTS,PRIVATE CONTRACTOR,REVENUE
Walsall Council,http://opendatacommunities.org/id/metropolitan-district-council/walsall ,WC156-637,30.11.2023,CHILDRENS,LITTLE BLOSSOMS CHILDMINDING,17/11/2023,"1,039.00",6223-Creche Facilities,SUPPLIES & SERVICES,SERVICES,REVENUE
Walsall Council,http://opendatacommunities.org/id/metropolitan-district-council/walsall ,WC156-638,30.11.2023,CHILDRENS,AMANS TRAVEL LTD,06/11/2023,"4,370.00",6241-Hire of Vehicle with Driver,TRANSPORT,DIRECT TRANSPORT COSTS,REVENUE
Walsall Council,http://opendatacommunities.org/id/metropolitan-district-council/walsall ,WC156-639,30.11.2023,CHILDRENS,AMANS TRAVEL LTD,06/11/2023,"4,370.00",6241-Hire of Vehicle with Driver,TRANSPORT,DIRECT TRANSPORT COSTS,REVENUE
Walsall Council,http://opendatacommunities.org/id/metropolitan-district-council/walsall ,WC156-640,30.11.2023,CHILDRENS,AMANS TRAVEL LTD,06/11/2023,"7,000.00",6241-Hire of Vehicle with Driver,TRANSPORT,DIRECT TRANSPORT COSTS,REVENUE
Walsall Council,http://opendatacommunities.org/id/metropolitan-district-council/walsall ,WC156-641,30.11.2023,CHILDRENS,AMANS TRAVEL LTD,06/11/2023,"3,105.00",6241-Hire of Vehicle with Driver,TRANSPORT,DIRECT TRANSPORT COSTS,REVENUE
Walsall Council,http://opendatacommunities.org/id/metropolitan-district-council/walsall ,WC156-642,30.11.2023,CHILDRENS,AMANS TRAVEL LTD,06/11/2023,"4,370.00",6241-Hire of Vehicle with Driver,TRANSPORT,DIRECT TRANSPORT COSTS,REVENUE
Walsall Council,http://opendatacommunities.org/id/metropolitan-district-council/walsall ,WC156-643,30.11.2023,ADULT SOCIAL CARE,REDACTED,02/11/2023,"2,024.84",6541-Direct Payment,THIRD PARTY PAYMENTS,PRIVATE CONTRACTOR,REVENUE
Walsall Council,http://opendatacommunities.org/id/metropolitan-district-council/walsall ,WC156-644,30.11.2023,"ECONOMY, ENVIRONMENT & COMMUNITIES",AMBUR RADIO,15/11/2023,520.00,6410-Publicity & Advertising (non staff),SUPPLIES & SERVICES,SERVICES,REVENUE
Walsall Council,http://opendatacommunities.org/id/metropolitan-district-council/walsall ,WC156-645,30.11.2023,RESOURCES AND TRANSFORMATION,AMBUR RADIO,28/11/2023,"5,776.49",6312-Grants to Other Orgs,SUPPLIES & SERVICES,GRANTS (EXP) & SUBSCRIPTIONS,REVENUE
Walsall Council,http://opendatacommunities.org/id/metropolitan-district-council/walsall ,WC156-646,30.11.2023,"ECONOMY, ENVIRONMENT & COMMUNITIES",AMEY LG LIMITED,03/11/2023,"20,971.55",6411-Materials,SUPPLIES & SERVICES,EQUIPMENT FURNITURE & MATERIALS,REVENUE
Walsall Council,http://opendatacommunities.org/id/metropolitan-district-council/walsall ,WC156-647,30.11.2023,ECONOMY & ENVIRONMENT CAPITAL,AMEY LG LIMITED,27/11/2023,"3,955.35",7200-Site Works Contractors,CAPITAL,"NEW CONSTRUCTION,CONVERSION & RENOVATION",CAPITAL
Walsall Council,http://opendatacommunities.org/id/metropolitan-district-council/walsall ,WC156-648,30.11.2023,ECONOMY & ENVIRONMENT CAPITAL,AMEY LG LIMITED,15/11/2023,735.03,7200-Project Fees,CAPITAL,"NEW CONSTRUCTION,CONVERSION & RENOVATION",CAPITAL
Walsall Council,http://opendatacommunities.org/id/metropolitan-district-council/walsall ,WC156-649,30.11.2023,ECONOMY & ENVIRONMENT CAPITAL,AMEY LG LIMITED,15/11/2023,735.03,7200-Project Fees,CAPITAL,"NEW CONSTRUCTION,CONVERSION & RENOVATION",CAPITAL
Walsall Council,http://opendatacommunities.org/id/metropolitan-district-council/walsall ,WC156-650,30.11.2023,ECONOMY & ENVIRONMENT CAPITAL,AMEY LG LIMITED,29/11/2023,"4,186.48",7200-Site Works Contractors,CAPITAL,"NEW CONSTRUCTION,CONVERSION & RENOVATION",CAPITAL
Walsall Council,http://opendatacommunities.org/id/metropolitan-district-council/walsall ,WC156-651,30.11.2023,ECONOMY & ENVIRONMENT CAPITAL,AMEY LG LIMITED,29/11/2023,"25,011.40",7200-Site Works Contractors,CAPITAL,"NEW CONSTRUCTION,CONVERSION & RENOVATION",CAPITAL
Walsall Council,http://opendatacommunities.org/id/metropolitan-district-council/walsall ,WC156-652,30.11.2023,ECONOMY & ENVIRONMENT CAPITAL,AMEY OW LTD,17/11/2023,581.05,7200-Project Fees,CAPITAL,"NEW CONSTRUCTION,CONVERSION & RENOVATION",CAPITAL
Walsall Council,http://opendatacommunities.org/id/metropolitan-district-council/walsall ,WC156-653,30.11.2023,CHILDRENS,AMG NURSING CARE SERVICES,28/11/2023,535.30,6220-Professional Fees & Services,SUPPLIES & SERVICES,SERVICES,REVENUE
Walsall Council,http://opendatacommunities.org/id/metropolitan-district-council/walsall ,WC156-654,30.11.2023,CHILDRENS,AMG NURSING CARE SERVICES,28/11/2023,"1,228.66",6220-Professional Fees & Services,SUPPLIES & SERVICES,SERVICES,REVENUE
Walsall Council,http://opendatacommunities.org/id/metropolitan-district-council/walsall ,WC156-655,30.11.2023,CHILDRENS,AMG NURSING CARE SERVICES,28/11/2023,406.96,6220-Professional Fees & Services,SUPPLIES & SERVICES,SERVICES,REVENUE
Walsall Council,http://opendatacommunities.org/id/metropolitan-district-council/walsall ,WC156-656,30.11.2023,CHILDRENS,AMG NURSING CARE SERVICES,28/11/2023,"1,076.26",6220-Professional Fees & Services,SUPPLIES & SERVICES,SERVICES,REVENUE
Walsall Council,http://opendatacommunities.org/id/metropolitan-district-council/walsall ,WC156-657,30.11.2023,CHILDRENS,AMG NURSING CARE SERVICES,28/11/2023,471.86,6220-Professional Fees & Services,SUPPLIES & SERVICES,SERVICES,REVENUE
Walsall Council,http://opendatacommunities.org/id/metropolitan-district-council/walsall ,WC156-658,30.11.2023,CHILDRENS,AMG NURSING CARE SERVICES,01/11/2023,689.40,6220-Professional Fees & Services,SUPPLIES & SERVICES,SERVICES,REVENUE
Walsall Council,http://opendatacommunities.org/id/metropolitan-district-council/walsall ,WC156-659,30.11.2023,CHILDRENS,AMG NURSING CARE SERVICES,01/11/2023,689.40,6220-Professional Fees & Services,SUPPLIES & SERVICES,SERVICES,REVENUE
Walsall Council,http://opendatacommunities.org/id/metropolitan-district-council/walsall ,WC156-660,30.11.2023,CHILDRENS,AMG NURSING CARE SERVICES,01/11/2023,574.50,6220-Professional Fees & Services,SUPPLIES & SERVICES,SERVICES,REVENUE
Walsall Council,http://opendatacommunities.org/id/metropolitan-district-council/walsall ,WC156-661,30.11.2023,CHILDRENS,AMG NURSING CARE SERVICES,01/11/2023,574.50,6220-Professional Fees & Services,SUPPLIES & SERVICES,SERVICES,REVENUE
Walsall Council,http://opendatacommunities.org/id/metropolitan-district-council/walsall ,WC156-662,30.11.2023,CHILDRENS,AMG NURSING CARE SERVICES,01/11/2023,535.30,6220-Professional Fees & Services,SUPPLIES & SERVICES,SERVICES,REVENUE
Walsall Council,http://opendatacommunities.org/id/metropolitan-district-council/walsall ,WC156-663,30.11.2023,CHILDRENS,AMG NURSING CARE SERVICES,06/11/2023,428.24,6220-Professional Fees & Services,SUPPLIES & SERVICES,SERVICES,REVENUE
Walsall Council,http://opendatacommunities.org/id/metropolitan-district-council/walsall ,WC156-664,30.11.2023,CHILDRENS,AMG NURSING CARE SERVICES,06/11/2023,"1,381.47",6220-Professional Fees & Services,SUPPLIES & SERVICES,SERVICES,REVENUE
Walsall Council,http://opendatacommunities.org/id/metropolitan-district-council/walsall ,WC156-665,30.11.2023,CHILDRENS,AMG NURSING CARE SERVICES,07/11/2023,406.96,6220-Professional Fees & Services,SUPPLIES & SERVICES,SERVICES,REVENUE
Walsall Council,http://opendatacommunities.org/id/metropolitan-district-council/walsall ,WC156-666,30.11.2023,CHILDRENS,AMG NURSING CARE SERVICES,28/11/2023,344.70,6220-Professional Fees & Services,SUPPLIES & SERVICES,SERVICES,REVENUE
Walsall Council,http://opendatacommunities.org/id/metropolitan-district-council/walsall ,WC156-667,30.11.2023,CHILDRENS,AMG NURSING CARE SERVICES,09/11/2023,428.24,6220-Professional Fees & Services,SUPPLIES & SERVICES,SERVICES,REVENUE
Walsall Council,http://opendatacommunities.org/id/metropolitan-district-council/walsall ,WC156-668,30.11.2023,CHILDRENS,AMG NURSING CARE SERVICES,09/11/2023,"1,315.98",6220-Professional Fees & Services,SUPPLIES & SERVICES,SERVICES,REVENUE
Walsall Council,http://opendatacommunities.org/id/metropolitan-district-council/walsall ,WC156-669,30.11.2023,CHILDRENS,AMG NURSING CARE SERVICES,09/11/2023,"-1,315.98",6220-Professional Fees & Services,SUPPLIES & SERVICES,SERVICES,REVENUE
Walsall Council,http://opendatacommunities.org/id/metropolitan-district-council/walsall ,WC156-670,30.11.2023,CHILDRENS,AMG NURSING CARE SERVICES,09/11/2023,392.60,6220-Professional Fees & Services,SUPPLIES & SERVICES,SERVICES,REVENUE
Walsall Council,http://opendatacommunities.org/id/metropolitan-district-council/walsall ,WC156-671,30.11.2023,CHILDRENS,AMG NURSING CARE SERVICES,09/11/2023,"1,315.98",6220-Professional Fees & Services,SUPPLIES & SERVICES,SERVICES,REVENUE
Walsall Council,http://opendatacommunities.org/id/metropolitan-district-council/walsall ,WC156-672,30.11.2023,CHILDRENS,AMMA CHILDCARE SERVICES LTD,28/11/2023,"24,760.00",6223-External Residential Care-Oth Agency Provision,THIRD PARTY PAYMENTS,PRIVATE CONTRACTOR,REVENUE
Walsall Council,http://opendatacommunities.org/id/metropolitan-district-council/walsall ,WC156-673,30.11.2023,"ECONOMY, ENVIRONMENT & COMMUNITIES",AMX SOLUTIONS LIMITED,27/11/2023,"13,500.00",6411-Materials,SUPPLIES & SERVICES,EQUIPMENT FURNITURE & MATERIALS,REVENUE
Walsall Council,http://opendatacommunities.org/id/metropolitan-district-council/walsall ,WC156-674,30.11.2023,ECONOMY & ENVIRONMENT CAPITAL,AMX SOLUTIONS LIMITED,09/11/2023,"2,500.00",7200-Site Works - Other Contractors,CAPITAL,"NEW CONSTRUCTION,CONVERSION & RENOVATION",CAPITAL
Walsall Council,http://opendatacommunities.org/id/metropolitan-district-council/walsall ,WC156-675,30.11.2023,CHILDRENS,REDACTED,16/11/2023,604.00,6223-Special Guardianship Orders,TRANSFER PAYMENTS,CHILDREN SOCIAL SERVICES CLIENT,REVENUE
Walsall Council,http://opendatacommunities.org/id/metropolitan-district-council/walsall ,WC156-676,30.11.2023,CHILDRENS,REDACTED,16/11/2023,374.00,6223-Special Guardianship Orders,TRANSFER PAYMENTS,CHILDREN SOCIAL SERVICES CLIENT,REVENUE
Walsall Council,http://opendatacommunities.org/id/metropolitan-district-council/walsall ,WC156-677,30.11.2023,ADULT SOCIAL CARE,ANCHOR HANOVER GROUP - BLOOMFIELD COURT,21/11/2023,"2,413.36",6541-Residential EMI,THIRD PARTY PAYMENTS,PRIVATE CONTRACTOR,REVENUE
Walsall Council,http://opendatacommunities.org/id/metropolitan-district-council/walsall ,WC156-678,30.11.2023,ADULT SOCIAL CARE,ANCHOR HANOVER GROUP - BLOOMFIELD COURT,21/11/2023,"2,413.36",6541-Residential EMI,THIRD PARTY PAYMENTS,PRIVATE CONTRACTOR,REVENUE
Walsall Council,http://opendatacommunities.org/id/metropolitan-district-council/walsall ,WC156-679,30.11.2023,ADULT SOCIAL CARE,ANCHOR HANOVER GROUP - HARDEN HALL CARE HOME,21/11/2023,"2,413.36",6541-Residential EMI,THIRD PARTY PAYMENTS,PRIVATE CONTRACTOR,REVENUE
Walsall Council,http://opendatacommunities.org/id/metropolitan-district-council/walsall ,WC156-680,30.11.2023,ADULT SOCIAL CARE,ANCHOR HANOVER GROUP - HARDEN HALL CARE HOME,21/11/2023,"2,773.36",6541-Residential EMI,THIRD PARTY PAYMENTS,PRIVATE CONTRACTOR,REVENUE
Walsall Council,http://opendatacommunities.org/id/metropolitan-district-council/walsall ,WC156-681,30.11.2023,ADULT SOCIAL CARE,ANCHOR HANOVER GROUP - HARDEN HALL CARE HOME,21/11/2023,"2,773.36",6541-Residential EMI,THIRD PARTY PAYMENTS,PRIVATE CONTRACTOR,REVENUE
Walsall Council,http://opendatacommunities.org/id/metropolitan-district-council/walsall ,WC156-682,30.11.2023,ADULT SOCIAL CARE,ANCHOR HANOVER GROUP - HARDEN HALL CARE HOME,21/11/2023,"2,497.32",6541-Residential,THIRD PARTY PAYMENTS,PRIVATE CONTRACTOR,REVENUE
Walsall Council,http://opendatacommunities.org/id/metropolitan-district-council/walsall ,WC156-683,30.11.2023,ADULT SOCIAL CARE,ANCHOR HANOVER GROUP - HARDEN HALL CARE HOME,21/11/2023,"1,584.77",6541-Residential EMI,THIRD PARTY PAYMENTS,PRIVATE CONTRACTOR,REVENUE
Walsall Council,http://opendatacommunities.org/id/metropolitan-district-council/walsall ,WC156-684,30.11.2023,ADULT SOCIAL CARE,ANCHOR HANOVER GROUP - HARDEN HALL CARE HOME,21/11/2023,"2,773.36",6541-Residential EMI,THIRD PARTY PAYMENTS,PRIVATE CONTRACTOR,REVENUE
Walsall Council,http://opendatacommunities.org/id/metropolitan-district-council/walsall ,WC156-685,30.11.2023,ADULT SOCIAL CARE,ANCHOR HANOVER GROUP - HARDEN HALL CARE HOME,21/11/2023,"2,773.36",6541-Residential EMI,THIRD PARTY PAYMENTS,PRIVATE CONTRACTOR,REVENUE
Walsall Council,http://opendatacommunities.org/id/metropolitan-district-council/walsall ,WC156-686,30.11.2023,ADULT SOCIAL CARE,ANCHOR HANOVER GROUP - HARDEN HALL CARE HOME,21/11/2023,"2,413.36",6541-Residential EMI,THIRD PARTY PAYMENTS,PRIVATE CONTRACTOR,REVENUE
Walsall Council,http://opendatacommunities.org/id/metropolitan-district-council/walsall ,WC156-687,30.11.2023,ADULT SOCIAL CARE,ANCHOR HANOVER GROUP - HARDEN HALL CARE HOME,21/11/2023,"2,413.36",6541-Residential EMI,THIRD PARTY PAYMENTS,PRIVATE CONTRACTOR,REVENUE
Walsall Council,http://opendatacommunities.org/id/metropolitan-district-council/walsall ,WC156-688,30.11.2023,ADULT SOCIAL CARE,ANCHOR HANOVER GROUP - HARDEN HALL CARE HOME,21/11/2023,"2,137.32",6541-Residential,THIRD PARTY PAYMENTS,PRIVATE CONTRACTOR,REVENUE
Walsall Council,http://opendatacommunities.org/id/metropolitan-district-council/walsall ,WC156-689,30.11.2023,ADULT SOCIAL CARE,ANCHOR HANOVER GROUP - HARDEN HALL CARE HOME,21/11/2023,"2,413.36",6541-Residential EMI,THIRD PARTY PAYMENTS,PRIVATE CONTRACTOR,REVENUE
Walsall Council,http://opendatacommunities.org/id/metropolitan-district-council/walsall ,WC156-690,30.11.2023,ADULT SOCIAL CARE,ANCHOR HANOVER GROUP - HARDEN HALL CARE HOME,21/11/2023,"2,413.36",6541-Residential EMI,THIRD PARTY PAYMENTS,PRIVATE CONTRACTOR,REVENUE
Walsall Council,http://opendatacommunities.org/id/metropolitan-district-council/walsall ,WC156-691,30.11.2023,ADULT SOCIAL CARE,ANCHOR HANOVER GROUP - HARDEN HALL CARE HOME,21/11/2023,"2,413.36",6541-Residential EMI,THIRD PARTY PAYMENTS,PRIVATE CONTRACTOR,REVENUE
Walsall Council,http://opendatacommunities.org/id/metropolitan-district-council/walsall ,WC156-692,30.11.2023,ADULT SOCIAL CARE,ANCHOR HANOVER GROUP - HARDEN HALL CARE HOME,21/11/2023,"2,413.36",6541-Residential EMI,THIRD PARTY PAYMENTS,PRIVATE CONTRACTOR,REVENUE
Walsall Council,http://opendatacommunities.org/id/metropolitan-district-council/walsall ,WC156-693,30.11.2023,ADULT SOCIAL CARE,ANCHOR HANOVER GROUP - HARDEN HALL CARE HOME,21/11/2023,"2,413.36",6541-Residential EMI,THIRD PARTY PAYMENTS,PRIVATE CONTRACTOR,REVENUE
Walsall Council,http://opendatacommunities.org/id/metropolitan-district-council/walsall ,WC156-694,30.11.2023,ADULT SOCIAL CARE,ANCHOR HANOVER GROUP - HARDEN HALL CARE HOME,21/11/2023,"2,613.36",6541-Residential EMI,THIRD PARTY PAYMENTS,PRIVATE CONTRACTOR,REVENUE
Walsall Council,http://opendatacommunities.org/id/metropolitan-district-council/walsall ,WC156-695,30.11.2023,ADULT SOCIAL CARE,ANCHOR HANOVER GROUP - HARDEN HALL CARE HOME,21/11/2023,"2,773.36",6541-Residential EMI,THIRD PARTY PAYMENTS,PRIVATE CONTRACTOR,REVENUE
Walsall Council,http://opendatacommunities.org/id/metropolitan-district-council/walsall ,WC156-696,30.11.2023,ADULT SOCIAL CARE,ANCHOR HANOVER GROUP - HARDEN HALL CARE HOME,21/11/2023,"2,137.32",6541-Residential,THIRD PARTY PAYMENTS,PRIVATE CONTRACTOR,REVENUE
Walsall Council,http://opendatacommunities.org/id/metropolitan-district-council/walsall ,WC156-697,30.11.2023,ADULT SOCIAL CARE,ANCHOR HANOVER GROUP - HARDEN HALL CARE HOME,21/11/2023,"2,137.32",6541-Residential,THIRD PARTY PAYMENTS,PRIVATE CONTRACTOR,REVENUE
Walsall Council,http://opendatacommunities.org/id/metropolitan-district-council/walsall ,WC156-698,30.11.2023,ADULT SOCIAL CARE,ANCHOR HANOVER GROUP - HARDEN HALL CARE HOME,21/11/2023,776.25,6541-Residential,THIRD PARTY PAYMENTS,PRIVATE CONTRACTOR,REVENUE
Walsall Council,http://opendatacommunities.org/id/metropolitan-district-council/walsall ,WC156-699,30.11.2023,ADULT SOCIAL CARE,ANCHOR HANOVER GROUP - HARDEN HALL CARE HOME,21/11/2023,"2,773.36",6541-Residential EMI,THIRD PARTY PAYMENTS,PRIVATE CONTRACTOR,REVENUE
Walsall Council,http://opendatacommunities.org/id/metropolitan-district-council/walsall ,WC156-700,30.11.2023,ADULT SOCIAL CARE,ANCHOR HANOVER GROUP - HARDEN HALL CARE HOME,21/11/2023,"2,497.32",6541-Residential,THIRD PARTY PAYMENTS,PRIVATE CONTRACTOR,REVENUE
Walsall Council,http://opendatacommunities.org/id/metropolitan-district-council/walsall ,WC156-701,30.11.2023,ADULT SOCIAL CARE,ANCHOR HANOVER GROUP - HARDEN HALL CARE HOME,21/11/2023,"2,773.36",6541-Residential EMI,THIRD PARTY PAYMENTS,PRIVATE CONTRACTOR,REVENUE
Walsall Council,http://opendatacommunities.org/id/metropolitan-district-council/walsall ,WC156-702,30.11.2023,ADULT SOCIAL CARE,ANCHOR HANOVER GROUP - HARDEN HALL CARE HOME,21/11/2023,"2,693.36",6541-Residential EMI,THIRD PARTY PAYMENTS,PRIVATE CONTRACTOR,REVENUE
Walsall Council,http://opendatacommunities.org/id/metropolitan-district-council/walsall ,WC156-703,30.11.2023,ADULT SOCIAL CARE,ANCHOR HANOVER GROUP - HARDEN HALL CARE HOME,21/11/2023,"2,413.36",6541-Residential EMI,THIRD PARTY PAYMENTS,PRIVATE CONTRACTOR,REVENUE
Walsall Council,http://opendatacommunities.org/id/metropolitan-district-council/walsall ,WC156-704,30.11.2023,ADULT SOCIAL CARE,ANCHOR HANOVER GROUP - HARDEN HALL CARE HOME,21/11/2023,"2,773.36",6541-Residential EMI,THIRD PARTY PAYMENTS,PRIVATE CONTRACTOR,REVENUE
Walsall Council,http://opendatacommunities.org/id/metropolitan-district-council/walsall ,WC156-705,30.11.2023,ADULT SOCIAL CARE,ANCHOR HANOVER GROUP - HARDEN HALL CARE HOME,21/11/2023,"2,773.36",6541-Residential EMI,THIRD PARTY PAYMENTS,PRIVATE CONTRACTOR,REVENUE
Walsall Council,http://opendatacommunities.org/id/metropolitan-district-council/walsall ,WC156-706,30.11.2023,ADULT SOCIAL CARE,ANCHOR HANOVER GROUP - HARDEN HALL CARE HOME,21/11/2023,"2,773.36",6541-Residential EMI,THIRD PARTY PAYMENTS,PRIVATE CONTRACTOR,REVENUE
Walsall Council,http://opendatacommunities.org/id/metropolitan-district-council/walsall ,WC156-707,30.11.2023,ADULT SOCIAL CARE,ANCHOR HANOVER GROUP - HARDEN HALL CARE HOME,21/11/2023,"5,843.86",6541-Residential EMI,THIRD PARTY PAYMENTS,PRIVATE CONTRACTOR,REVENUE
Walsall Council,http://opendatacommunities.org/id/metropolitan-district-council/walsall ,WC156-708,30.11.2023,ADULT SOCIAL CARE,ANCHOR HANOVER GROUP - HARDEN HALL CARE HOME,17/11/2023,"2,495.05",6541-Residential,THIRD PARTY PAYMENTS,PRIVATE CONTRACTOR,REVENUE
Walsall Council,http://opendatacommunities.org/id/metropolitan-district-council/walsall ,WC156-709,30.11.2023,ADULT SOCIAL CARE,ANCHOR HANOVER GROUP - HARDEN HALL CARE HOME,17/11/2023,"14,707.49",6541-Residential EMI,THIRD PARTY PAYMENTS,PRIVATE CONTRACTOR,REVENUE
Walsall Council,http://opendatacommunities.org/id/metropolitan-district-council/walsall ,WC156-710,30.11.2023,CHILDRENS,REDACTED,16/11/2023,355.56,6223-Special Guardianship Orders,TRANSFER PAYMENTS,CHILDREN SOCIAL SERVICES CLIENT,REVENUE
Walsall Council,http://opendatacommunities.org/id/metropolitan-district-council/walsall ,WC156-711,30.11.2023,ADULT SOCIAL CARE,REDACTED,02/11/2023,763.80,6541-Direct Payment,THIRD PARTY PAYMENTS,PRIVATE CONTRACTOR,REVENUE
Walsall Council,http://opendatacommunities.org/id/metropolitan-district-council/walsall ,WC156-712,30.11.2023,ADULT SOCIAL CARE,REDACTED,02/11/2023,"3,132.00",6541-Direct Payment,THIRD PARTY PAYMENTS,PRIVATE CONTRACTOR,REVENUE
Walsall Council,http://opendatacommunities.org/id/metropolitan-district-council/walsall ,WC156-713,30.11.2023,CHILDRENS CAPITAL,ANDREWS ELECTRICAL LTD,06/11/2023,"22,492.00",7150-Site Works Contractors,CAPITAL,"NEW CONSTRUCTION,CONVERSION & RENOVATION",CAPITAL
Walsall Council,http://opendatacommunities.org/id/metropolitan-district-council/walsall ,WC156-714,30.11.2023,CHILDRENS CAPITAL,ANDREWS ELECTRICAL LTD,08/11/2023,"2,958.00",7150-Site Works Contractors,CAPITAL,"NEW CONSTRUCTION,CONVERSION & RENOVATION",CAPITAL
Walsall Council,http://opendatacommunities.org/id/metropolitan-district-council/walsall ,WC156-715,30.11.2023,CHILDRENS,REDACTED,16/11/2023,401.32,6223-Special Guardianship Orders,TRANSFER PAYMENTS,CHILDREN SOCIAL SERVICES CLIENT,REVENUE
Walsall Council,http://opendatacommunities.org/id/metropolitan-district-council/walsall ,WC156-716,30.11.2023,ADULT SOCIAL CARE,REDACTED,02/11/2023,"2,886.23",6541-Direct Payment,THIRD PARTY PAYMENTS,PRIVATE CONTRACTOR,REVENUE
Walsall Council,http://opendatacommunities.org/id/metropolitan-district-council/walsall ,WC156-717,30.11.2023,CHILDRENS,REDACTED,16/11/2023,352.00,6223-Special Guardianship Orders,TRANSFER PAYMENTS,CHILDREN SOCIAL SERVICES CLIENT,REVENUE
Walsall Council,http://opendatacommunities.org/id/metropolitan-district-council/walsall ,WC156-718,30.11.2023,ADULT SOCIAL CARE,REDACTED,02/11/2023,"1,320.00",6541-Direct Payment,THIRD PARTY PAYMENTS,PRIVATE CONTRACTOR,REVENUE
Walsall Council,http://opendatacommunities.org/id/metropolitan-district-council/walsall ,WC156-719,30.11.2023,ADULT SOCIAL CARE,REDACTED,15/11/2023,-411.60,6541-Shared Lives,THIRD PARTY PAYMENTS,PRIVATE CONTRACTOR,REVENUE
Walsall Council,http://opendatacommunities.org/id/metropolitan-district-council/walsall ,WC156-720,30.11.2023,ADULT SOCIAL CARE,REDACTED,15/11/2023,601.20,6541-Shared Lives,THIRD PARTY PAYMENTS,PRIVATE CONTRACTOR,REVENUE
Walsall Council,http://opendatacommunities.org/id/metropolitan-district-council/walsall ,WC156-721,30.11.2023,CHILDRENS,REDACTED,16/11/2023,417.96,6223-Residents Orders,TRANSFER PAYMENTS,CHILDREN SOCIAL SERVICES CLIENT,REVENUE
Walsall Council,http://opendatacommunities.org/id/metropolitan-district-council/walsall ,WC156-722,30.11.2023,CHILDRENS,REDACTED,16/11/2023,534.00,6223-Internal Foster Carers-Carer Fees,TRANSFER PAYMENTS,CHILDREN SOCIAL SERVICES CLIENT,REVENUE
Walsall Council,http://opendatacommunities.org/id/metropolitan-district-council/walsall ,WC156-723,30.11.2023,CHILDRENS,REDACTED,16/11/2023,756.00,6223-Foster Carers Maintenance Allowance,TRANSFER PAYMENTS,CHILDREN SOCIAL SERVICES CLIENT,REVENUE
Walsall Council,http://opendatacommunities.org/id/metropolitan-district-council/walsall ,WC156-724,30.11.2023,ADULT SOCIAL CARE,REDACTED,02/11/2023,579.84,6541-Direct Payment,THIRD PARTY PAYMENTS,PRIVATE CONTRACTOR,REVENUE
Walsall Council,http://opendatacommunities.org/id/metropolitan-district-council/walsall ,WC156-725,30.11.2023,ADULT SOCIAL CARE,ANSON COURT RESIDENTIAL HOME,21/11/2023,"2,413.36",6541-Residential EMI,THIRD PARTY PAYMENTS,PRIVATE CONTRACTOR,REVENUE
Walsall Council,http://opendatacommunities.org/id/metropolitan-district-council/walsall ,WC156-726,30.11.2023,ADULT SOCIAL CARE,ANSON COURT RESIDENTIAL HOME,21/11/2023,"2,413.36",6541-Residential EMI,THIRD PARTY PAYMENTS,PRIVATE CONTRACTOR,REVENUE
Walsall Council,http://opendatacommunities.org/id/metropolitan-district-council/walsall ,WC156-727,30.11.2023,ADULT SOCIAL CARE,ANSON COURT RESIDENTIAL HOME,21/11/2023,"2,413.36",6541-Residential EMI,THIRD PARTY PAYMENTS,PRIVATE CONTRACTOR,REVENUE
Walsall Council,http://opendatacommunities.org/id/metropolitan-district-council/walsall ,WC156-728,30.11.2023,ADULT SOCIAL CARE,ANSON COURT RESIDENTIAL HOME,21/11/2023,"2,413.36",6541-Residential EMI,THIRD PARTY PAYMENTS,PRIVATE CONTRACTOR,REVENUE
Walsall Council,http://opendatacommunities.org/id/metropolitan-district-council/walsall ,WC156-729,30.11.2023,ADULT SOCIAL CARE,ANSON COURT RESIDENTIAL HOME,21/11/2023,"2,413.36",6541-Residential EMI,THIRD PARTY PAYMENTS,PRIVATE CONTRACTOR,REVENUE
Walsall Council,http://opendatacommunities.org/id/metropolitan-district-council/walsall ,WC156-730,30.11.2023,ADULT SOCIAL CARE,ANSON COURT RESIDENTIAL HOME,21/11/2023,"2,257.32",6541-Residential,THIRD PARTY PAYMENTS,PRIVATE CONTRACTOR,REVENUE
Walsall Council,http://opendatacommunities.org/id/metropolitan-district-council/walsall ,WC156-731,30.11.2023,ADULT SOCIAL CARE,ANSON COURT RESIDENTIAL HOME,21/11/2023,"2,413.36",6541-Residential EMI,THIRD PARTY PAYMENTS,PRIVATE CONTRACTOR,REVENUE
Walsall Council,http://opendatacommunities.org/id/metropolitan-district-council/walsall ,WC156-732,30.11.2023,ADULT SOCIAL CARE,ANSON COURT RESIDENTIAL HOME,21/11/2023,381.66,6541-Residential,THIRD PARTY PAYMENTS,PRIVATE CONTRACTOR,REVENUE
Walsall Council,http://opendatacommunities.org/id/metropolitan-district-council/walsall ,WC156-733,30.11.2023,ADULT SOCIAL CARE,ANSON COURT RESIDENTIAL HOME,21/11/2023,"2,337.32",6541-Residential,THIRD PARTY PAYMENTS,PRIVATE CONTRACTOR,REVENUE
Walsall Council,http://opendatacommunities.org/id/metropolitan-district-council/walsall ,WC156-734,30.11.2023,ADULT SOCIAL CARE,ANSON COURT RESIDENTIAL HOME,21/11/2023,"2,413.36",6541-Residential EMI,THIRD PARTY PAYMENTS,PRIVATE CONTRACTOR,REVENUE
Walsall Council,http://opendatacommunities.org/id/metropolitan-district-council/walsall ,WC156-735,30.11.2023,ADULT SOCIAL CARE,ANSON COURT RESIDENTIAL HOME,21/11/2023,"2,413.36",6541-Residential EMI,THIRD PARTY PAYMENTS,PRIVATE CONTRACTOR,REVENUE
Walsall Council,http://opendatacommunities.org/id/metropolitan-district-council/walsall ,WC156-736,30.11.2023,ADULT SOCIAL CARE,ANSON COURT RESIDENTIAL HOME,21/11/2023,"2,613.36",6541-Residential EMI,THIRD PARTY PAYMENTS,PRIVATE CONTRACTOR,REVENUE
Walsall Council,http://opendatacommunities.org/id/metropolitan-district-council/walsall ,WC156-737,30.11.2023,ADULT SOCIAL CARE,ANSON COURT RESIDENTIAL HOME,21/11/2023,"2,613.36",6541-Residential EMI,THIRD PARTY PAYMENTS,PRIVATE CONTRACTOR,REVENUE
Walsall Council,http://opendatacommunities.org/id/metropolitan-district-council/walsall ,WC156-738,30.11.2023,ADULT SOCIAL CARE,ANSON COURT RESIDENTIAL HOME,21/11/2023,"2,772.96",6541-Short Stay Residential,THIRD PARTY PAYMENTS,PRIVATE CONTRACTOR,REVENUE
Walsall Council,http://opendatacommunities.org/id/metropolitan-district-council/walsall ,WC156-739,30.11.2023,ADULT SOCIAL CARE,ANSON COURT RESIDENTIAL HOME,21/11/2023,"2,413.36",6541-Residential EMI,THIRD PARTY PAYMENTS,PRIVATE CONTRACTOR,REVENUE
Walsall Council,http://opendatacommunities.org/id/metropolitan-district-council/walsall ,WC156-740,30.11.2023,ADULT SOCIAL CARE,ANSON COURT RESIDENTIAL HOME,21/11/2023,"2,413.36",6541-Residential EMI,THIRD PARTY PAYMENTS,PRIVATE CONTRACTOR,REVENUE
Walsall Council,http://opendatacommunities.org/id/metropolitan-district-council/walsall ,WC156-741,30.11.2023,ADULT SOCIAL CARE,ANSON COURT RESIDENTIAL HOME,21/11/2023,"2,137.32",6541-Residential,THIRD PARTY PAYMENTS,PRIVATE CONTRACTOR,REVENUE
Walsall Council,http://opendatacommunities.org/id/metropolitan-district-council/walsall ,WC156-742,30.11.2023,ADULT SOCIAL CARE,ANSON COURT RESIDENTIAL HOME,21/11/2023,"2,613.64",6541-Residential EMI,THIRD PARTY PAYMENTS,PRIVATE CONTRACTOR,REVENUE
Walsall Council,http://opendatacommunities.org/id/metropolitan-district-council/walsall ,WC156-743,30.11.2023,ADULT SOCIAL CARE,ANSON COURT RESIDENTIAL HOME,21/11/2023,"2,413.36",6541-Residential EMI,THIRD PARTY PAYMENTS,PRIVATE CONTRACTOR,REVENUE
Walsall Council,http://opendatacommunities.org/id/metropolitan-district-council/walsall ,WC156-744,30.11.2023,ADULT SOCIAL CARE,ANSON COURT RESIDENTIAL HOME,21/11/2023,"2,137.32",6541-Residential,THIRD PARTY PAYMENTS,PRIVATE CONTRACTOR,REVENUE
Walsall Council,http://opendatacommunities.org/id/metropolitan-district-council/walsall ,WC156-745,30.11.2023,ADULT SOCIAL CARE,ANSON COURT RESIDENTIAL HOME,21/11/2023,"2,413.36",6541-Residential EMI,THIRD PARTY PAYMENTS,PRIVATE CONTRACTOR,REVENUE
Walsall Council,http://opendatacommunities.org/id/metropolitan-district-council/walsall ,WC156-746,30.11.2023,ADULT SOCIAL CARE,ANSON COURT RESIDENTIAL HOME,21/11/2023,"2,413.36",6541-Residential EMI,THIRD PARTY PAYMENTS,PRIVATE CONTRACTOR,REVENUE
Walsall Council,http://opendatacommunities.org/id/metropolitan-district-council/walsall ,WC156-747,30.11.2023,ADULT SOCIAL CARE,ANSON COURT RESIDENTIAL HOME,21/11/2023,"2,413.36",6541-Residential EMI,THIRD PARTY PAYMENTS,PRIVATE CONTRACTOR,REVENUE
Walsall Council,http://opendatacommunities.org/id/metropolitan-district-council/walsall ,WC156-748,30.11.2023,ADULT SOCIAL CARE,ANSON COURT RESIDENTIAL HOME,21/11/2023,"2,613.36",6541-Residential EMI,THIRD PARTY PAYMENTS,PRIVATE CONTRACTOR,REVENUE
Walsall Council,http://opendatacommunities.org/id/metropolitan-district-council/walsall ,WC156-749,30.11.2023,ADULT SOCIAL CARE,ANSON COURT RESIDENTIAL HOME,21/11/2023,"2,893.36",6541-Residential EMI,THIRD PARTY PAYMENTS,PRIVATE CONTRACTOR,REVENUE
Walsall Council,http://opendatacommunities.org/id/metropolitan-district-council/walsall ,WC156-750,30.11.2023,ADULT SOCIAL CARE,ANSON COURT RESIDENTIAL HOME,17/11/2023,"6,782.09",6541-Residential,THIRD PARTY PAYMENTS,PRIVATE CONTRACTOR,REVENUE
Walsall Council,http://opendatacommunities.org/id/metropolitan-district-council/walsall ,WC156-751,30.11.2023,ADULT SOCIAL CARE,ANSON COURT RESIDENTIAL HOME,17/11/2023,"25,031.75",6541-Residential EMI,THIRD PARTY PAYMENTS,PRIVATE CONTRACTOR,REVENUE
Walsall Council,http://opendatacommunities.org/id/metropolitan-district-council/walsall ,WC156-752,30.11.2023,ADULT SOCIAL CARE,REDACTED,02/11/2023,"1,134.00",6541-Direct Payment,THIRD PARTY PAYMENTS,PRIVATE CONTRACTOR,REVENUE
Walsall Council,http://opendatacommunities.org/id/metropolitan-district-council/walsall ,WC156-753,30.11.2023,CHILDRENS,ANTI-PEST PEST CONTROL SERVICES,06/11/2023,-310.00,6222-Professional Services-Priv Contractor & Other Agencies,THIRD PARTY PAYMENTS,PRIVATE CONTRACTOR,REVENUE
Walsall Council,http://opendatacommunities.org/id/metropolitan-district-council/walsall ,WC156-754,30.11.2023,CHILDRENS,ANTI-PEST PEST CONTROL SERVICES,06/11/2023,310.00,6222-Professional Services-Priv Contractor & Other Agencies,THIRD PARTY PAYMENTS,PRIVATE CONTRACTOR,REVENUE
Walsall Council,http://opendatacommunities.org/id/metropolitan-district-council/walsall ,WC156-755,30.11.2023,CHILDRENS,ANTI-PEST PEST CONTROL SERVICES,06/11/2023,310.00,6222-Professional Services-Priv Contractor & Other Agencies,THIRD PARTY PAYMENTS,PRIVATE CONTRACTOR,REVENUE
Walsall Council,http://opendatacommunities.org/id/metropolitan-district-council/walsall ,WC156-756,30.11.2023,CHILDRENS,REDACTED,16/11/2023,371.92,6223-Special Guardianship Orders,TRANSFER PAYMENTS,CHILDREN SOCIAL SERVICES CLIENT,REVENUE
Walsall Council,http://opendatacommunities.org/id/metropolitan-district-council/walsall ,WC156-757,30.11.2023,"ECONOMY, ENVIRONMENT & COMMUNITIES",APCOA PARKING SERVICES (UK) LTD,02/11/2023,"62,346.62",6411-Parking Enforcement Activity-Priv Contractor Fees,THIRD PARTY PAYMENTS,PRIVATE CONTRACTOR,REVENUE
Walsall Council,http://opendatacommunities.org/id/metropolitan-district-council/walsall ,WC156-758,30.11.2023,RESOURCES AND TRANSFORMATION,APCOA PARKING SERVICES (UK) LTD,02/11/2023,-904.03,6634-Oxygen Finance Rebates ,SUPPLIES & SERVICES,SERVICES,REVENUE
Walsall Council,http://opendatacommunities.org/id/metropolitan-district-council/walsall ,WC156-759,30.11.2023,CHILDRENS,APP CARZ,28/11/2023,598.50,6314-Other Travel Allowances,TRANSPORT,CAR ALLOWANCES,REVENUE
Walsall Council,http://opendatacommunities.org/id/metropolitan-district-council/walsall ,WC156-760,30.11.2023,CHILDRENS,APP CARZ,06/11/2023,"2,720.00",6241-Hire of Vehicle with Driver,TRANSPORT,DIRECT TRANSPORT COSTS,REVENUE
Walsall Council,http://opendatacommunities.org/id/metropolitan-district-council/walsall ,WC156-761,30.11.2023,CHILDRENS,APP CARZ,06/11/2023,"2,470.00",6241-Hire of Vehicle with Driver,TRANSPORT,DIRECT TRANSPORT COSTS,REVENUE
Walsall Council,http://opendatacommunities.org/id/metropolitan-district-council/walsall ,WC156-762,30.11.2023,CHILDRENS,APP CARZ,06/11/2023,"1,224.00",6241-Hire of Vehicle with Driver,TRANSPORT,DIRECT TRANSPORT COSTS,REVENUE
Walsall Council,http://opendatacommunities.org/id/metropolitan-district-council/walsall ,WC156-763,30.11.2023,CHILDRENS,APP CARZ,06/11/2023,"1,440.00",6241-Hire of Vehicle with Driver,TRANSPORT,DIRECT TRANSPORT COSTS,REVENUE
Walsall Council,http://opendatacommunities.org/id/metropolitan-district-council/walsall ,WC156-764,30.11.2023,CHILDRENS,APP CARZ,06/11/2023,"2,000.00",6241-Hire of Vehicle with Driver,TRANSPORT,DIRECT TRANSPORT COSTS,REVENUE
Walsall Council,http://opendatacommunities.org/id/metropolitan-district-council/walsall ,WC156-765,30.11.2023,CHILDRENS,APP CARZ,06/11/2023,"1,300.00",6241-Hire of Vehicle with Driver,TRANSPORT,DIRECT TRANSPORT COSTS,REVENUE
Walsall Council,http://opendatacommunities.org/id/metropolitan-district-council/walsall ,WC156-766,30.11.2023,CHILDRENS,APPLE TRANSCRIPTION LIMITED,08/11/2023,325.26,6220-School Only Payments - Catering,THIRD PARTY PAYMENTS,INDEPENDENT UNIT WITHIN COUNCIL,REVENUE
Walsall Council,http://opendatacommunities.org/id/metropolitan-district-council/walsall ,WC156-767,30.11.2023,RESOURCES AND TRANSFORMATION,APSE 001,21/11/2023,667.67,6310-Professional Fees & Services,SUPPLIES & SERVICES,SERVICES,REVENUE
Walsall Council,http://opendatacommunities.org/id/metropolitan-district-council/walsall ,WC156-768,30.11.2023,RESOURCES AND TRANSFORMATION,APSE 001,21/11/2023,667.67,6310-Professional Fees & Services,SUPPLIES & SERVICES,SERVICES,REVENUE
Walsall Council,http://opendatacommunities.org/id/metropolitan-district-council/walsall ,WC156-769,30.11.2023,RESOURCES AND TRANSFORMATION,APSE 001,21/11/2023,667.67,6413-Professional Fees & Services,SUPPLIES & SERVICES,SERVICES,REVENUE
Walsall Council,http://opendatacommunities.org/id/metropolitan-district-council/walsall ,WC156-770,30.11.2023,"ECONOMY, ENVIRONMENT & COMMUNITIES",APSE 001,21/11/2023,667.96,6440-Professional Fees & Services,SUPPLIES & SERVICES,SERVICES,REVENUE
Walsall Council,http://opendatacommunities.org/id/metropolitan-district-council/walsall ,WC156-771,30.11.2023,"ECONOMY, ENVIRONMENT & COMMUNITIES",APSE 001,21/11/2023,"1,335.34",6411-Professional Fees & Services,SUPPLIES & SERVICES,SERVICES,REVENUE
Walsall Council,http://opendatacommunities.org/id/metropolitan-district-council/walsall ,WC156-772,30.11.2023,"ECONOMY, ENVIRONMENT & COMMUNITIES",APSE 001,21/11/2023,"1,335.34",6413-Professional Fees & Services,SUPPLIES & SERVICES,SERVICES,REVENUE
Walsall Council,http://opendatacommunities.org/id/metropolitan-district-council/walsall ,WC156-773,30.11.2023,"ECONOMY, ENVIRONMENT & COMMUNITIES",APSE 001,21/11/2023,"3,338.35",6410-Professional Fees & Services,SUPPLIES & SERVICES,SERVICES,REVENUE
Walsall Council,http://opendatacommunities.org/id/metropolitan-district-council/walsall ,WC156-774,30.11.2023,CHILDRENS,APT TRAINING AND CONSULTANCY LTD,16/11/2023,440.00,6222-External Training,INDIRECT EMPLOYEES,EXTERNAL TRAINING,REVENUE
Walsall Council,http://opendatacommunities.org/id/metropolitan-district-council/walsall ,WC156-775,30.11.2023,CHILDRENS,ARBORETUM HOUSE LTD T/A SAFE HAVEN ARBORETUM HOUSE,28/11/2023,"24,760.00",6223-External Residential Care-Oth Agency Provision,THIRD PARTY PAYMENTS,PRIVATE CONTRACTOR,REVENUE
Walsall Council,http://opendatacommunities.org/id/metropolitan-district-council/walsall ,WC156-776,30.11.2023,ADULT SOCIAL CARE,ARBORETUM NURSING HOME.,15/11/2023,"1,252.68",6541-Nursing,THIRD PARTY PAYMENTS,PRIVATE CONTRACTOR,REVENUE
Walsall Council,http://opendatacommunities.org/id/metropolitan-district-council/walsall ,WC156-777,30.11.2023,ADULT SOCIAL CARE,ARBORETUM NURSING HOME.,21/11/2023,"2,505.36",6541-Nursing,THIRD PARTY PAYMENTS,PRIVATE CONTRACTOR,REVENUE
Walsall Council,http://opendatacommunities.org/id/metropolitan-district-council/walsall ,WC156-778,30.11.2023,ADULT SOCIAL CARE,ARBORETUM NURSING HOME.,21/11/2023,"2,505.36",6541-Nursing,THIRD PARTY PAYMENTS,PRIVATE CONTRACTOR,REVENUE
Walsall Council,http://opendatacommunities.org/id/metropolitan-district-council/walsall ,WC156-779,30.11.2023,ADULT SOCIAL CARE,ARBORETUM NURSING HOME.,21/11/2023,"2,729.36",6541-Nursing,THIRD PARTY PAYMENTS,PRIVATE CONTRACTOR,REVENUE
Walsall Council,http://opendatacommunities.org/id/metropolitan-district-council/walsall ,WC156-780,30.11.2023,ADULT SOCIAL CARE,ARBORETUM NURSING HOME.,21/11/2023,"2,785.36",6541-Nursing,THIRD PARTY PAYMENTS,PRIVATE CONTRACTOR,REVENUE
Walsall Council,http://opendatacommunities.org/id/metropolitan-district-council/walsall ,WC156-781,30.11.2023,ADULT SOCIAL CARE,ARBORETUM NURSING HOME.,21/11/2023,"3,120.00",6541-Nursing,THIRD PARTY PAYMENTS,PRIVATE CONTRACTOR,REVENUE
Walsall Council,http://opendatacommunities.org/id/metropolitan-district-council/walsall ,WC156-782,30.11.2023,ADULT SOCIAL CARE,ARBORETUM NURSING HOME.,21/11/2023,"2,745.36",6541-Nursing,THIRD PARTY PAYMENTS,PRIVATE CONTRACTOR,REVENUE
Walsall Council,http://opendatacommunities.org/id/metropolitan-district-council/walsall ,WC156-783,30.11.2023,ADULT SOCIAL CARE,ARBORETUM NURSING HOME.,21/11/2023,"3,220.00",6554-Professional Services-Priv Contractor & Other Agencies,THIRD PARTY PAYMENTS,PRIVATE CONTRACTOR,REVENUE
Walsall Council,http://opendatacommunities.org/id/metropolitan-district-council/walsall ,WC156-784,30.11.2023,ADULT SOCIAL CARE,ARBORETUM NURSING HOME.,21/11/2023,"2,745.36",6541-Nursing,THIRD PARTY PAYMENTS,PRIVATE CONTRACTOR,REVENUE
Walsall Council,http://opendatacommunities.org/id/metropolitan-district-council/walsall ,WC156-785,30.11.2023,ADULT SOCIAL CARE,ARBORETUM NURSING HOME.,21/11/2023,"3,640.00",6554-Professional Services-Priv Contractor & Other Agencies,THIRD PARTY PAYMENTS,PRIVATE CONTRACTOR,REVENUE
Walsall Council,http://opendatacommunities.org/id/metropolitan-district-council/walsall ,WC156-786,30.11.2023,ADULT SOCIAL CARE,ARBORETUM NURSING HOME.,21/11/2023,420.00,6554-Professional Services-Priv Contractor & Other Agencies,THIRD PARTY PAYMENTS,PRIVATE CONTRACTOR,REVENUE
Walsall Council,http://opendatacommunities.org/id/metropolitan-district-council/walsall ,WC156-787,30.11.2023,ADULT SOCIAL CARE,ARBORETUM NURSING HOME.,21/11/2023,"2,685.36",6541-Nursing,THIRD PARTY PAYMENTS,PRIVATE CONTRACTOR,REVENUE
Walsall Council,http://opendatacommunities.org/id/metropolitan-district-council/walsall ,WC156-788,30.11.2023,ADULT SOCIAL CARE,ARBORETUM NURSING HOME.,21/11/2023,"1,960.00",6554-Professional Services-Priv Contractor & Other Agencies,THIRD PARTY PAYMENTS,PRIVATE CONTRACTOR,REVENUE
Walsall Council,http://opendatacommunities.org/id/metropolitan-district-council/walsall ,WC156-789,30.11.2023,ADULT SOCIAL CARE,ARBORETUM NURSING HOME.,21/11/2023,"2,505.36",6541-Nursing,THIRD PARTY PAYMENTS,PRIVATE CONTRACTOR,REVENUE
Walsall Council,http://opendatacommunities.org/id/metropolitan-district-council/walsall ,WC156-790,30.11.2023,ADULT SOCIAL CARE,ARBORETUM NURSING HOME.,21/11/2023,"2,505.36",6541-Nursing,THIRD PARTY PAYMENTS,PRIVATE CONTRACTOR,REVENUE
Walsall Council,http://opendatacommunities.org/id/metropolitan-district-council/walsall ,WC156-791,30.11.2023,ADULT SOCIAL CARE,ARBORETUM NURSING HOME.,21/11/2023,"2,685.36",6541-Nursing,THIRD PARTY PAYMENTS,PRIVATE CONTRACTOR,REVENUE
Walsall Council,http://opendatacommunities.org/id/metropolitan-district-council/walsall ,WC156-792,30.11.2023,ADULT SOCIAL CARE,ARBORETUM NURSING HOME.,21/11/2023,"2,505.36",6541-Nursing,THIRD PARTY PAYMENTS,PRIVATE CONTRACTOR,REVENUE
Walsall Council,http://opendatacommunities.org/id/metropolitan-district-council/walsall ,WC156-793,30.11.2023,ADULT SOCIAL CARE,ARBORETUM NURSING HOME.,21/11/2023,"2,685.36",6541-Nursing,THIRD PARTY PAYMENTS,PRIVATE CONTRACTOR,REVENUE
Walsall Council,http://opendatacommunities.org/id/metropolitan-district-council/walsall ,WC156-794,30.11.2023,ADULT SOCIAL CARE,ARBORETUM NURSING HOME.,21/11/2023,"1,540.00",6554-Professional Services-Priv Contractor & Other Agencies,THIRD PARTY PAYMENTS,PRIVATE CONTRACTOR,REVENUE
Walsall Council,http://opendatacommunities.org/id/metropolitan-district-council/walsall ,WC156-795,30.11.2023,ADULT SOCIAL CARE,ARBORETUM NURSING HOME.,21/11/2023,"3,920.00",6554-Professional Services-Priv Contractor & Other Agencies,THIRD PARTY PAYMENTS,PRIVATE CONTRACTOR,REVENUE
Walsall Council,http://opendatacommunities.org/id/metropolitan-district-council/walsall ,WC156-796,30.11.2023,ADULT SOCIAL CARE,ARBORETUM NURSING HOME.,21/11/2023,"4,200.00",6554-Professional Services-Priv Contractor & Other Agencies,THIRD PARTY PAYMENTS,PRIVATE CONTRACTOR,REVENUE
Walsall Council,http://opendatacommunities.org/id/metropolitan-district-council/walsall ,WC156-797,30.11.2023,ADULT SOCIAL CARE,ARBORETUM NURSING HOME.,21/11/2023,"3,236.43",6554-Professional Services-Priv Contractor & Other Agencies,THIRD PARTY PAYMENTS,PRIVATE CONTRACTOR,REVENUE
Walsall Council,http://opendatacommunities.org/id/metropolitan-district-council/walsall ,WC156-798,30.11.2023,ADULT SOCIAL CARE,ARBORETUM NURSING HOME.,21/11/2023,"1,120.00",6554-Professional Services-Priv Contractor & Other Agencies,THIRD PARTY PAYMENTS,PRIVATE CONTRACTOR,REVENUE
Walsall Council,http://opendatacommunities.org/id/metropolitan-district-council/walsall ,WC156-799,30.11.2023,ADULT SOCIAL CARE,ARBORETUM NURSING HOME.,21/11/2023,"2,705.36",6541-Nursing,THIRD PARTY PAYMENTS,PRIVATE CONTRACTOR,REVENUE
Walsall Council,http://opendatacommunities.org/id/metropolitan-district-council/walsall ,WC156-800,30.11.2023,ADULT SOCIAL CARE,ARBORETUM NURSING HOME.,21/11/2023,"3,649.12",6541-Nursing,THIRD PARTY PAYMENTS,PRIVATE CONTRACTOR,REVENUE
Walsall Council,http://opendatacommunities.org/id/metropolitan-district-council/walsall ,WC156-801,30.11.2023,ADULT SOCIAL CARE,ARBORETUM NURSING HOME.,21/11/2023,"2,029.02",6541-Nursing,THIRD PARTY PAYMENTS,PRIVATE CONTRACTOR,REVENUE
Walsall Council,http://opendatacommunities.org/id/metropolitan-district-council/walsall ,WC156-802,30.11.2023,ADULT SOCIAL CARE,ARBORETUM NURSING HOME.,21/11/2023,"2,647.31",6541-Nursing,THIRD PARTY PAYMENTS,PRIVATE CONTRACTOR,REVENUE
Walsall Council,http://opendatacommunities.org/id/metropolitan-district-council/walsall ,WC156-803,30.11.2023,ADULT SOCIAL CARE,ARBORETUM NURSING HOME.,21/11/2023,"1,680.00",6554-Professional Services-Priv Contractor & Other Agencies,THIRD PARTY PAYMENTS,PRIVATE CONTRACTOR,REVENUE
Walsall Council,http://opendatacommunities.org/id/metropolitan-district-council/walsall ,WC156-804,30.11.2023,ADULT SOCIAL CARE,ARBORETUM NURSING HOME.,21/11/2023,840.00,6554-Professional Services-Priv Contractor & Other Agencies,THIRD PARTY PAYMENTS,PRIVATE CONTRACTOR,REVENUE
Walsall Council,http://opendatacommunities.org/id/metropolitan-district-council/walsall ,WC156-805,30.11.2023,ADULT SOCIAL CARE,ARBORETUM NURSING HOME.,21/11/2023,"2,685.36",6541-Nursing,THIRD PARTY PAYMENTS,PRIVATE CONTRACTOR,REVENUE
Walsall Council,http://opendatacommunities.org/id/metropolitan-district-council/walsall ,WC156-806,30.11.2023,ADULT SOCIAL CARE,ARBORETUM NURSING HOME.,21/11/2023,"2,549.12",6541-Nursing,THIRD PARTY PAYMENTS,PRIVATE CONTRACTOR,REVENUE
Walsall Council,http://opendatacommunities.org/id/metropolitan-district-council/walsall ,WC156-807,30.11.2023,ADULT SOCIAL CARE,ARBORETUM NURSING HOME.,21/11/2023,"2,745.36",6541-Nursing,THIRD PARTY PAYMENTS,PRIVATE CONTRACTOR,REVENUE
Walsall Council,http://opendatacommunities.org/id/metropolitan-district-council/walsall ,WC156-808,30.11.2023,ADULT SOCIAL CARE,ARBORETUM NURSING HOME.,21/11/2023,"2,745.36",6541-Nursing,THIRD PARTY PAYMENTS,PRIVATE CONTRACTOR,REVENUE
Walsall Council,http://opendatacommunities.org/id/metropolitan-district-council/walsall ,WC156-809,30.11.2023,ADULT SOCIAL CARE,ARBORETUM NURSING HOME.,21/11/2023,980.00,6554-Professional Services-Priv Contractor & Other Agencies,THIRD PARTY PAYMENTS,PRIVATE CONTRACTOR,REVENUE
Walsall Council,http://opendatacommunities.org/id/metropolitan-district-council/walsall ,WC156-810,30.11.2023,"ECONOMY, ENVIRONMENT & COMMUNITIES",ARCADIS,17/11/2023,"3,500.00",6313-Professional Fees & Services,SUPPLIES & SERVICES,SERVICES,REVENUE
Walsall Council,http://opendatacommunities.org/id/metropolitan-district-council/walsall ,WC156-811,30.11.2023,HOLDING ACCOUNTS,ARTHUR J GALLAGHER T/A HEATH LAMBERT LIMITED,02/11/2023,"7,800.00",2877-Insurance Premium,SUPPLIES & SERVICES,INSURANCE,REVENUE
Walsall Council,http://opendatacommunities.org/id/metropolitan-district-council/walsall ,WC156-812,30.11.2023,CHILDRENS,ASDAN LIMITED,08/11/2023,475.00,6211-Other Expenses,SUPPLIES & SERVICES,EXPENSES,REVENUE
Walsall Council,http://opendatacommunities.org/id/metropolitan-district-council/walsall ,WC156-813,30.11.2023,ADULT SOCIAL CARE,ASH GRANGE CARE HOME,21/11/2023,"2,646.08",6541-Residential,THIRD PARTY PAYMENTS,PRIVATE CONTRACTOR,REVENUE
